Workbook

Sheet BUNTEP (hidden)
A1: Brandon University
A2: BUNTEP Schedule of Operating Expenses
A3: =#REF! -> 
F5: Preliminary Budget 2013-14
F8: Maintenance | H8: Operating
B9: ACTUAL | E9: BUDGET | F9: Of Existing | G9: Factors and | H9: Grant
B10: =#REF! ->  | C10: =#REF! ->  | D10: =#REF! ->  | E10: =#REF! ->  | F10: Programs | G10: Assumptions | H10: 5% Increase
A11: REVENUES:
A12: Student Academic Fees | B12: 164631 | C12: 192993 | D12: 95179 | E12: 11100 | F12: 0 | G12: =F12/E12-1 -> -1 | H12: =F12 -> 0
A13: COPSE re: tuition rebate | B13: 18292 | C13: 0 | D13: 0 | E13: 0 | F13: 0 | H13: =F13 -> 0
A14: Council Operating Funds | B14: 1880100 | C14: 1839900 | D14: 2004000 | E14: 2104800 | F14: 1119424 | G14: =F14/E14-1 -> -0.4681565945 | H14: =(E14*1.05)/4 -> 552510
A15: Transfer of grant to UCN | D15: -279650 | E15: -340500
A16: TOTAL REVENUES | B16: =SUM(B12:B15) -> 2063023 | C16: =SUM(C12:C15) -> 2032893 | D16: 1819529 | E16: 1775400 | F16: 1119424 | G16: =F16/E16-1 -> -0.3694806804 | H16: 552510
A18: EXPENDITURES:
A19: A. BUDGET BASE
A20: Academic Salaries | B20: 1155629 | C20: 1261618 | D20: 1156662 | E20: 1078544 | F20: =699124.05+160846.91-80561.33 -> 779409.63 | G20: =F20/E20-1 -> -0.2773501776 | H20: =F20 -> 779409.63
A21: Support Staff Salaries | B21: 200936 | C21: 188827 | D21: 186733 | E21: 226422 | F21: =138101.31+67902.27 -> 206003.58 | G21: =F21/E21-1 -> -0.09017860455 | H21: =F21 -> 206003.58
A22: Employee Benefits | B22: 212364 | C22: 271465 | D22: 265219 | E22: 259286 | F22: 67438.98 | G22: =F22/E22-1 -> -0.7399050469 | H22: =F22 -> 67438.98
A23: Conference Travel incl. Professional Dev. | B23: 152433 | C23: 177825 | D23: 86897 | E23: 75465 | F23: 6231 | G23: =F23/E23-1 -> -0.9174319221 | H23: =F23 -> 6231
A24: Supplies and Expenses | B24: 148444 | C24: 165464 | D24: 117663 | E24: 135683 | F24: 60341 | G24: =F24/E24-1 -> -0.5552795855 | H24: =F24 -> 60341
A26: Renovations & Equipment | B26: 10641 | C26: 6751 | D26: 7571 | E26: 0 | F26: 0 | H26: =F26 -> 0
A28: Program Reductions | H28: -566914
A30: TOTAL GENERAL OPERATING EXPENDITURES | B30: =SUM(B20:B28) -> 1880447 | C30: =SUM(C20:C28) -> 2071950 | D30: =SUM(D20:D28) -> 1820745 | E30: =SUM(E20:E28) -> 1775400 | F30: =SUM(F20:F28) -> 1119424.19 | G30: =F30/E30-1 -> -0.3694805734 | H30: =SUM(H20:H28) -> 552510.19
A32: EXCESS OF INCOME OVER EXPENDITURES | B32: =B16-B30 -> 182576 | C32: =C16-C30 -> -39057 | D32: =D16-D30 -> -1216 | E32: =E16-E30 -> 0 | F32: =F16-F30 -> -0.1900000002 | H32: =H16-H30 -> -0.1900000002
A34: For the 2012/13 fiscal year the grant and expenses are for the period of April 1 - June 30, only.

Sheet Summary - Annual
A1: Summary Operating Budget for the year ended March 31, 2018 | G1: DRAFT
A2: 2018-01-23
B4: 2018/19 | C4: 2017/18 | G4: 2018/19 | H4: 2017/18
A5: By Function | B5: Draft | C5: Approved | F5: By Object | G5: Draft | H5: Approved
A8: Revenues | F8: Revenues
A10: ALD - Operating Grant | B10: 38357000 | C10: 38357000 | D10: 0 | F10: ALD - Operating Grant | G10: 38357000 | H10: 38357000 | I10: 0
A11: Tuition Fees | B11: 10263870.63 | C11: 9065721 | D11: 0.1321626414 | F11: Tuition Fees | G11: 10263870.63 | H11: 9065721 | I11: 0.1321626414
A12: Other Income | B12: 141200 | C12: 141200 | D12: 0 | F12: Other Income | G12: 141200 | H12: 141200 | I12: 0
A13: Other Student Fees | B13: 557503.59 | C13: 522886 | D13: 0.06620485154 | F13: Other Student Fees | G13: 557503.59 | H13: 522886 | I13: 0.06620485154
B14: 49319574.22 | C14: 48086807 | D14: 0.0256362878 | G14: 49319574.22 | H14: 48086807 | I14: 0.0256362878
A16: Expenses | F16: Expenses
A17: Faculty of Arts | B17: 8499430.57 | C17: 8194132.4 | D17: 0.0372581446 | F17: Academic Salaries | G17: 25479943.87 | H17: 24085809 | I17: 0.05788200316
A18: Faculty of Science | B18: 9049043.682 | C18: 8676653.4 | D18: 0.04291865359 | F18: Academic Support Salaries | G18: 2960408.77 | H18: 2780062 | I18: 0.064871492
A19: Faculty of Education | B19: 3980475.024 | C19: 3878091 | D19: 0.02640062438 | F19: Support Staff Salaries | G19: 10359891.99 | H19: 10183309 | I19: 0.01734043341
A20: School of Music | B20: 3416098.262 | C20: 3337116 | D20: 0.02366782033 | F20: Employee Benefits | G20: 6819877.701 | H20: 6694499 | I20: 0.01872861592
A21: Faculty of Health Studies | B21: 6515609.163 | C21: 6206710 | D21: 0.04976858313 | F21: Pension liability costs | G21: 664000 | H21: 678000 | I21: -0.02064896755
A22: Rural Development Institute | B22: 188035.4958 | C22: 177829 | D22: 0.05739500212 | F22: Travel | G22: 1356330.46 | H22: 1370515 | I22: -0.01034978822
A23: Library Services | B23: 2803094.418 | C23: 2695415 | D23: 0.03994910541 | F23: Insurance | G23: 311867.04 | H23: 306437 | I23: 0.01771992286
A24: IT Services | B24: 1201141.045 | C24: 1169247 | D24: 0.02727742317 | F24: Library Acquisitions | G24: 989132.55 | H24: 942032 | I24: 0.04999888539 | J24: (includes books and data royalties)
A25: Student Services | B25: 2454297.997 | C25: 2532091 | D25: -0.03072283065 | F25: Supplies and Expenses | G25: 3854953.183 | H25: 3682454 | I25: 0.04684354052
A26: Registrar | B26: 847385.627 | C26: 733488 | D26: 0.1552821956 | F26: University Property Taxes | G26: 114710 | H26: 114710 | I26: 0
A27: Athletics | B27: 1059854.773 | C27: 948034 | D27: 0.1179501715 | F27: Utilities | G27: 817662.16 | H27: 791244 | I27: 0.03338813312
A28: Campus Recreation | B28: 55835.35062 | C28: 55218 | D28: 0.0111802424 | F28: External Recoveries | G28: -2075433.98 | H28: -2074261 | I28: 0.0005654929635
A29: Executive Offices | B29: 788341.9761 | C29: 732877 | D29: 0.07568115262 | F29: Equipment | G29: 173361.26 | H29: 171413 | I29: 0.0113658824
A30: Vice-President (A&P) | B30: 1304342.49 | C30: 1215634 | D30: 0.07297302479 | F30: Ancillary contribution | G30: 0 | H30: -200000 | I30: -1
A31: Advancement | B31: 220784.7444 | C31: 271960 | D31: -0.1881719946 | F31: Carry forward contributions | G31: 0 | H31: -470014 | I31: -1
A32: External Relations | B32: 249176.2401 | C32: 231484 | D32: 0.07642964553 | F32: Unappropriated surplus | G32: 0 | H32: -969402 | I32: 0
A33: Administration & Finance | B33: 5996928.822 | C33: 5909017 | D33: 0.01487757132
A34: Healthy Living Centre | B34: 196154.7152 | C34: 196155 | D34: -1.451913028e-06
A35: Pension liability costs | B35: 664000 | C35: 678000 | D35: -0.02064896755
A36: Misellaneous Initiatives | B36: 2336674.614 | C36: 1687071 | D36: 0.3850481774
A37: Carry forward contributions | B37: 0 | C37: -470014
A38: Unappropriated surplus | B38: 0 | C38: -969402 | G38: 51826705.01 | H38: 48086807 | I38: 0.07777388937
B39: 51826705.01 | C39: 48086806.8 | D39: 0.07777389385
G40: -2507130.784 | H40: 0
B41: -2507130.784 | C41: 0.200000003
G43: 1.490116119e-08

Sheet Summary - Multi Year
A1: BRANDON UNIVERSITY
A2: OPERATING BUDGET
B4: 2018/19 | C4: 2019/20 | D4: 2020/21 | F4: 2021/22 | G4: 2022/23 | H4: 2023/24 | I4: 2024/25
B5: Budget | C5: Budget | D5: Budget | F5: Projections | G5: Projections | H5: Projections | I5: Projections
A6: REVENUES
A7: - Grants
A8: - Province of Manitoba (ALD) | B8: 38357000 | C8: 38740570 | D8: 39127975.7 | F8: 39519255.46 | G8: 39914448.01 | H8: 40313592.49 | I8: 40716728.42
A10: - Tuition and Fees | B10: 9445689.146 | C10: 10343029.61 | D10: 11325617.43 | F10: 12401551.08 | G10: 13579698.44 | H10: 14869769.79 | I10: 16282397.92
A11: - International Visa Premium | B11: 818181.4877 | C11: 912272.3587 | D11: 1017183.68 | F11: 1134159.803 | G11: 1264588.181 | H11: 1410015.821 | I11: 1572167.641
A12: - Other Student Fees | B12: 557503.59 | C12: 557503.59 | D12: 557503.59 | F12: 593741.3233 | G12: 632334.5094 | H12: 673436.2525 | I12: 717209.6089
A14: - Other Income | B14: 141200 | C14: 141200 | D14: 141200 | F14: 141200 | G14: 141200 | H14: 141200 | I14: 141200
B15: 49319574.22 | C15: 50694575.56 | D15: 52169480.4 | F15: 53789907.67 | G15: 55532269.14 | H15: 57408014.35 | I15: 59429703.58
A18: EXPENSES
A19: - Salaries - BUFA | B19: 28440352.64 | C19: 29298810.43 | D19: 30060251.96 | F19: 30871878.77 | G19: 31798035.13 | H19: 33228946.71 | I19: 34225815.11
A20: - Salaries - Support | B20: 10395355.99 | C20: 10788838.89 | D20: 10884436.11 | F20: 11102124.83 | G20: 11401882.2 | H20: 11743938.67 | I20: 12272415.91
A21: - Benefits | B21: 7448413.701 | C21: 8495231.451 | D21: 8669361.861 | F21: 8887302.433 | G21: 9146869.431 | H21: 9522266.15 | I21: 9845232.912
A22: - Travel & Consumables | B22: 4724920.513 | C22: 4883042.679 | D22: 5068433.054 | F22: 5169801.715 | G22: 5273197.749 | H22: 5378661.704 | I22: 5486234.938
A23: - Utilities | B23: 817662.16 | C23: 844459.5584 | D23: 867153.3452 | F23: 893167.9455 | G23: 919962.9839 | H23: 947561.8734 | I23: 975988.7296
B24: 51826705.01 | C24: 54310383.01 | D24: 55549636.33 | F24: 56924275.69 | G24: 58539947.5 | H24: 60821375.11 | I24: 62805687.6
A27: Annual Budget Surplus/(Deficit) | B27: -2507130.784 | C27: -3615807.444 | D27: -3380155.935 | F27: -3134368.024 | G27: -3007678.358 | H27: -3413360.753 | I27: -3375984.016
B29: -0.04837526877 | C29: -0.06657672518 | D29: -0.06084929007 | F29: -0.05506206247 | G29: -0.05137822096 | H29: -0.05612107169 | I29: -0.05375283903

Sheet Position Details
A1: BRANDON UNIVERSITY
A2: 1 | C2: Rank/
C3: Grade
A4: EXECUTIVE OFFICES
A5: 5301003 | B5: VACANT (Fearon, G.) | C5: Prof.
A6: 5301003 | B6: Robinson, S. (trm 170801-?) | C6: Assoc.
A7: 5301003 | B7: McFarlin, M. | C7: III-2
A8: 5301003 | B8: White, B. (trm 161212-171208)
A9: 5301003 | B9: Lamontagne, M. | C9: III-2
A10: 5301003 | B10: Fisher, K. | C10: VI-3
A11: 5301005 | B11: Student Assist and O.T.
A13: VICE-PRESIDENT (ACADEMIC & PROVOST)
A14: 5303001 | B14: Mitton, K. | C14: PAII
A15: 5303002 | B15: Academic Advisors/Release BUREC
A16: 5303003 | B16: Robinson, S. (trm 160701-210630) | C16: Assoc.
A17: 5303003 | B17: Serfaty, M. (trm 170801-180730) | C17: Prof.c
A18: 5303003 | B18: Tryphonopoulos, D. (D Grad Studies) (170101-181231)
A19: 5303003 | B19: Duncan, H. (AVP Research) (151130-180731)
A20: 5303003 | B20: Navid, C. | C20: V-4
A21: 5303003 | B21: Downey, S. | C21: IV-3
A22: 5303003 | B22: Murkin, K. | C22: Vt
A23: 5303099 | B23: Indirect Cost Recoveries - Research Admin salary & benefits
A25: CENTRE FOR TEACHING, LEARNING & TECHNOLOGY
A26: 5306003 | B26: Care, D. (CTLT) (trm 170801-180731)
A27: 5306001 | B27: Gross, G. | C27: PAII
A28: 5306001 | B28: Shoultz, C. (.5) (Novak, D.) | C28: PAIII
A30: INSTITUTIONAL DATA & ANALYSIS
A31: 5304003 | B31: Berkan, D | C31: VIIt
A32: 5304003 | B32: Maltais LaPointe, G. | C32: 7-2
A34: ADVANCEMENT
A35: 5320003 | B35: VACANT (Macdonald, H.) | C35: AVP
A36: 5320003 | B36: Eisler, C. (Director trm 170601-181201) | C36: VI-3
A37: 5320003 | B37: English, S. | C37: IVt
A38: 5320003 | B38: Long, R. | C38: 5-2
A39: 5320003 | B39: Vodon, C. | C39: 3-5
A40: 5320005 | B40: Student Assistance/Casual
A42: EXTERNAL RELATIONS
A43: 5327003 | B43: Hamilton, G. (Director) | C43: VII
A44: 5327003 | B44: Henderson, R. | C44: IV-2
A45: 5327003 | B45: Misener, G. | C45: 6-6
A46: 5327003 | B46: Cesmystruk, C | C46: 4-6
A48: LIBRARY SERVICES
A49: 5002006 | B49: Braaksma, B. - Librarian (130916-180915) | C49: PAIV
A50: 5002006 | B50: Schira, R. | C50: PAIII
A51: 5002006 | B51: Kazakoff-Lane, C. (92%) | C51: PAIV
A52: 5002006 | B52: Hurst, C. | C52: PAIIc
A53: 5002006 | B53: Lee, S. | C53: PAII
A54: 5002003 | B54: Anderson K. | C54: 5-6
A55: 5002003 | B55: Blyth J. | C55: 5-6
A56: 5002003 | B56: Lowe, D. | C56: 6-3
A57: 5002003 | B57: Ramage, M. | C57: 4-6
A58: 5002003 | B58: Bambridge, K. (Patton, R.) | C58: 5-4
A59: 5002003 | B59: Coulter, H. | C59: 6-6
A60: 5002003 | B60: Warsaba, J. | C60: 4-2
A61: 5002003 | B61: Cantlon, T. | C61: 9-6
A62: 5002003 | B62: Revet, A. | C62: 5-6
A63: 5002003 | B63: VACANT (Bambridge K. (LOA 20180131)) | C63: 5-2
A64: 5002003 | B64: Combs (trm 160831-180131) | C64: 5-1
A65: 5002003 | B65: Tornblom, H. (Webber) | C65: 5-2
A66: 5002004 | B66: Webber, J. (80%) | C66: 2-5
A67: 5002004 | B67: Ahmadu, M. (trm 160906-180131)(Combs, J. (50%)) | C67: 3-1
A68: 5002005 | B68: Student Asst/Casual/overtime
B69: Archives
A70: 5006006 | B70: Henry, C. | C70: PAI
C71: Grade
A72: INFORMATION TECHNOLOGY SERVICES
A73: 5012003 | B73: Dunthorne A. | C73: VIIt
A74: 5012003 | B74: Gebreselasse, D. | C74: 7-5
A75: 5012003 | B75: Wiebe J. | C75: 12-6
A76: 5012003 | B76: Raine E. | C76: 8-6
A77: 5012003 | B77: Sheppard B. | C77: 8-6
A78: 5012003 | B78: Baumgertner, J. | C78: 8-6
A79: 5012003 | B79: Leroy, M. | C79: 12-1
A80: 5012003 | B80: Johanneson, P. | C80: 8-6
A81: 5012003 | B81: Joice, T. | C81: 6-6
A82: 5012003 | B82: Blair, M. | C82: 5-6
A83: 5012003 | B83: Klassen, K. | C83: 11-6
A84: 5012003 | B84: Lane, B. | C84: 6-1
A85: 5012005 | B85: Casual and overtime
A87: FACULTY OF ARTS
B88: Dean
A89: 4001001 | B89: Tryphonopoulos, D.(trm 150101-191231) | C89: Prof.c
A90: 4001001 | B90: Position left vacant as per budget plan
A91: 4001002 | B91: Sessionals/Overload
A92: 4001005 | B92: Student Assistants
B93: Drama
A94: 4002001 | B94: Forsythe J. (sb170701-180630) | C94: Prof.
B95: Economics
A96: 4003001 | B96: Abdou, A. (sb 170101-170630-100%) | C96: Assoc.
A97: 4003001 | B97: Dolecki J. | C97: Assoc.c
A98: 4003001 | B98: Zehtab-Jadid, F. | C98: Asst.c
B99: English
A100: 4004001 | B100: Allan, D. (Smid) | C100: Asst.
A101: 4004001 | B101: Kramer R. | C101: Prof.
A102: 4004001 | B102: Rose, B. (sb 160701-170630) | C102: Asst.c
A103: 4004001 | B103: Gasse R. (sb 170701-180630) | C103: Prof.
A104: 4004001 | B104: Robson, L. | C104: Assoc.
A105: 4004001 | B105: Lakevold, D. | C105: Assoc.
B106: History
A107: 4005001 | B107: Hinther, R. | C107: Assoc.
A108: 4005001 | B108: MacKay, L. (sb 160701-170630) | C108: Prof.
A109: 4005001 | B109: Winter, D. | C109: Assoc.
A110: 4005001 | B110: Harms, P. | C110: Assoc.
A111: 4005001 | B111: Naylor, J. (sb 170701-180630) | C111: Prof.
A112: 4005001 | B112: Strang, B. (sb 180101-180630) | C112: Prof.
B113: Languages
A114: 4006001 | B114: Combet, D. | C114: Assoc.
A115: 4006001 | B115: Bouliane, C. (Major) | C115: Asst.
A116: 4006001 | B116: Mihelakis, E. (Pollex, M.) | C116: Asst.
A117: 4006004 | B117: French Assistant
B118: Gender & Women's Studies
A119: 4007001 | B119: Mason, C. 50% | C119: Assoc.
A120: 4007001 | B120: Allan, J.( CRC 140430-190430) | C120: Assoc.
B121: Philosophy
A122: 4008001 | B122: VACANT (Behme, C.) | C122: Assoc.
A123: 4008001 | B123: Venema, H. (sb170101-170630-100%) | C123: Assoc.
A124: 4008001 | B124: Brown, D. (LOA 170415-190415) | C124: Assoc.
A125: 4008001 | B125: Boult, C. (Bondy, P.) | C125: Asst.
B126: Political Science
A127: 4009001 | B127: McCulloch, A. | C127: Assoc.
A128: 4009001 | B128: Saunders, K. | C128: Assoc.
A129: 4009001 | B129: Serfaty, M. | C129: Prof.c
A130: 4009001 | B130: Baker, R. (trm 170801-180731) | C130: Asst.
B131: Religion
A132: 4010001 | B132: Medd, S. | C132: Asst.
A133: 4010001 | B133: Noll, K. | C133: Prof.
A134: 4010001 | B134: Marshall, A. | C134: Prof.
B135: Sociology
A136: 4011001 | B136: Schneider, C. | C136: Assoc.
A137: 4011001 | B137: Grills, S. | C137: Prof.c
A138: 4011001 | B138: Hanemaayer, A. | C138: Asst.
A139: 4011001 | B139: Petrella, S. | C139: Assoc.
A140: 4011001 | B140: Mason, C. 50% | C140: Assoc.
A141: 4011001 | B141: Wong, K. | C141: Assoc.
B142: Native Studies
B143: Native Studies
A144: 4013001 | B144: Racine D. | C144: Asst.c
A145: 4013001 | B145: Whitt, L. (50%) | C145: Prof.c
A146: 4013001 | B146: Maud, V. (50%) (trm 180101-180630) | C146: Lect.
A147: 4013001 | B147: VACANT (Muehlbauer, J.) | C147: Asst.
A148: 4013001 | B148: Mayer, L. | C148: Prof.
A149: 4013001 | B149: Boyer, Y. (CRC 140101-180831) | C149: Prof.
B150: Clinical Specialization
A151: 4014001 | B151: Irvine, K. | C151: Asst.c
B152: Business Administration
A153: 4015001 | B153: Gillander, H. | C153: Asst.c
A154: 4015001 | B154: VACANT - Levy, A. (LTD) | C154: Assoc.
A155: 4015001 | B155: Zhuang, H | C155: Asst.
A156: 4015001 | B156: Klonowski, D. (sb 190101-190630 80%) | C156: Prof.
B157: Visual Arts
A158: 4016001 | B158: Morin, P. | C158: Asst.
A159: 4016001 | B159: Xu, L. (sb 170701-171231-100%) | C159: Assoc.
A160: 4016001 | B160: DeForest, K. (sb 180701-181231-100%) | C160: Assoc.
A161: 4016001 | B161: Mattes, C. (sb 170701-171231-100%) | C161: Assoc.
A162: 4016001 | B162: Wood, L.(Gouthro) | C162: Asst.
A163: 4016005 | B163: Student Assistants
B164: Anthropology
A165: 4017001 | B165: Malainey, M. (sb 180701-190630) | C165: Prof.
A166: 4017001 | B166: Holland, E. | C166: Asst.
A167: 4017001 | B167: Varley, E | C167: Assoc.
B168: Archeology Field School
A169: 4018005 | B169: Student Assistants
A170: 4018002 | B170: Sessionals
B171: Rural Development
A172: 4019001 | B172: Robles, W. (Beesley) | C172: Asst.
A173: 4019001 | B173: Bessant, K. (sb 180701-181231) | C173: Prof.
A174: 4019001 | B174: Ramsey, D. (sb 170101-170630-100%) | C174: Prof.
B175: Clerical - Full-Time
A176: 4001003 | B176: Murray, L. | C176: 8-6
A177: 4001003 | B177: Mahoney, J. | C177: 4-6
A178: 4001003 | B178: Maguire, S. | C178: 4-6
A180: RURAL DEVELOPMENT INSTITUTE
A181: 4801001 | B181: Ashton, W. | C181: PAIV
A182: 4801005 | B182: O.T./Student Assistants/Casual
A184: FACULTY OF SCIENCE
B185: Dean
A186: 4101001 | B186: Ardelli, B. (trm 180101-221231) | C186: Prof.
A187: 4101001 | B187: Gulliver, A. (trm 160107-171231) | C187: Prof.
A188: 4101001 | B188: Krieser, L.(60%) | C188: IAIIc
A189: 4xxx001 | B189: Position left vacant as per budget plan
A190: 4101005 | B190: Student assistants
A191: 4101002 | B191: Sessionals
B192: Biology
A193: 4102001 | B193: Untereiner, W. | C193: Prof.
A194: 4102001 | B194: VACANT (Paton W.)
A195: 4102001 | B195: McGonigle, T. | C195: Prof.
A196: 4102001 | B196: Morton, P. | C196: IAIII
A197: 4102001 | B197: Ahmad, Faiz | C197: Prof.c
A198: 4102001 | B198: Majumder, M. | C198: Asst.
A199: 4102001 | B199: Cassone, B. | C199: Asst.
A200: 4102001 | B200: LeMoine, C. | C200: Asst.
A201: 4102001 | B201: VACANT (Ardelli, B.) | C201: Prof.
A202: 4102001 | B202: Greenwood, D. | C202: Prof.c
A203: 4102001 | B203: Rutherford, P. | C203: Assoc.
A204: 4102001 | B204: Boudreau, M. (Gallaway, W) | C204: IAIV
A205: 4102005 | B205: Greenhouse operator
A206: 4102005 | B206: Student assistants
B207: Chemistry
A208: 4103001 | B208: Charette, M. | C208: Asst.
A209: 4103001 | B209: Bushnell, E. | C209: Asst.
... 392 more rows

Sheet Departmental Detail
A1: BRANDON UNIVERSITY
A2: Operating Budget
B3: Baseline | D3: Adj. Baseline | E3: 2018/19 | F3: 2018/19 | G3: 2018/19 | H3: 2018/19 | I3: 2019/20 | J3: 2020/21
B4: Budget | C4: 2017/18 | D4: Budget | E4: Annual | F4: Annual | G4: Other | H4: Budget | I4: Budget | J4: Budget
A5: Budget Unit | B5: Mar 31/17 | C5: Adjustments | D5: Mar 31/17 | E5: Scale Incr. | F5: Increment | G5: Adjustments | H5: Allocation | I5: Allocation | J5: Allocation
A7: Executive Offices | B7: 732877 | C7: -14737 | D7: 718140 | E7: 11874.71333 | F7: 6141.6 | G7: 52185.66275 | H7: 788341.9761 | I7: 822637.0672 | J7: 834667.7742
A9: VP (Academic & Provost) | B9: 1215634 | C9: 38693 | D9: 1254327 | E9: 23363.6 | F9: 16843.40313 | G9: 9808.486894 | H9: 1304342.49 | I9: 1310443.007 | J9: 1326915.627
A11: Advancement | B11: 503444 | C11: -109393 | D11: 394051 | E11: 6396.14875 | F11: 5663.9 | G11: -3842.304396 | H11: 220784.7444 | I11: 366666.9452 | J11: 374002.9929
A13: External Relations | B13: 0 | C13: 3000 | D13: 3000 | E13: 6517.045 | F13: 7162.6 | G13: 1012.595065 | H13: 249176.2401 | I13: 264488.0286 | J13: 276202.9003
A15: Library Services | B15: 2695415 | C15: 7979 | D15: 2703394 | E15: 28671.97 | F15: 18325.991 | G15: 52702.45697 | H15: 2803094.418 | I15: 2910925.498 | J15: 2990912.407
A17: Information Technology Services | B17: 1169247 | C17: -81 | D17: 1169166 | E17: 17747.40792 | F17: 3748.52 | G17: 10479.11729 | H17: 1201141.045 | I17: 1233244.987 | J17: 1247297.733
A19: Faculty of Arts | B19: 8194132 | C19: 22848 | D19: 8216980 | E19: 176166.0688 | F19: 135029.2 | G19: -28744.69889 | H19: 8499430.57 | I19: 9004892.794 | J19: 9392459.938
A21: Rural Development Institute | B21: 177829 | C21: -43 | D21: 177786 | E21: 3335.610833 | F21: 3618.6 | G21: 3295.284998 | H21: 188035.4958 | I21: 197943.7231 | J21: 202874.4616
A23: Faculty of Science | B23: 8676653 | C23: 1310 | D23: 8677963 | E23: 175115.4213 | F23: 134450.1306 | G23: 61515.12976 | H23: 9049043.682 | I23: 9447690.606 | J23: 9636171.441
A25: Faculty of Health Studies | B25: 6206710 | C25: -74590 | D25: 6132120 | E25: 113227.1279 | F25: 90514.2575 | G25: 179747.7772 | H25: 6515609.163 | I25: 6907340.307 | J25: 7059286.985
A27: Faculty of Education | B27: 3878091 | C27: 15589 | D27: 3893680 | E27: 80146.85842 | F27: 44624.45231 | G27: -37976.28692 | H27: 3980475.024 | I27: 4167939.768 | J27: 4217507.441
A29: School of Music | B29: 3337116 | C29: 19609 | D29: 3356725 | E29: 65639.07333 | F29: 51192.02375 | G29: -57457.83519 | H29: 3416098.262 | I29: 3620902.427 | J29: 3705264.826
A31: Student Services | B31: 2532091 | C31: -71698 | D31: 2460393 | E31: 38352.82917 | F31: 38637.94 | G31: -78085.77216 | H31: 2454297.997 | I31: 2586210.32 | J31: 2636357.852
A33: Registrar | B33: 733488 | C33: 16322 | D33: 749810 | E33: 13519.68333 | F33: 10265.65875 | G33: 68790.28497 | H33: 847385.627 | I33: 871846.8435 | J33: 884679.5056
A35: Athletics | B35: 948034 | C35: 91628 | D35: 1039662 | E35: 13856.8988 | F35: 9880.155625 | G35: -3544.281526 | H35: 1059854.773 | I35: 1154670.452 | J35: 1172393.991
A37: Campus Recreation | B37: 55218 | C37: 0 | D37: 55218 | E37: 944.8875 | F37: 0 | G37: -327.536875 | H37: 55835.35062 | I37: 54581.5856 | J37: 58249.42843
A39: Healthy Living Centre | B39: 196155 | C39: -179 | D39: 195976 | E39: 6641.61 | F39: 1769.96 | G39: -8232.8548 | H39: 196154.7152 | I39: 200645.7219 | J39: 205827.7696
A41: Administration & Finance | B41: 5909017 | C41: 14146 | D41: 5923163 | E41: 86038.63788 | F41: 46330.21 | G41: -58603.02602 | H41: 5996928.822 | I41: 6135821.886 | J41: 6220261.325
A43: Other Initiatives | B43: 925655 | C43: -72169.3 | D43: 853485.7 | E43: 0 | F43: 0 | G43: 2147189.306 | H43: 3000674.614 | I43: 3051491.041 | J43: 3108301.934
A45: TOTAL EXPENSES | B45: 48086806 | C45: -111766.3 | D45: 47975039.7 | E45: 867555.5922 | F45: 624198.6027 | G45: 2309911.505 | H45: 51826705.01 | I45: 54310383.01 | J45: 55549636.33

Sheet Executive Off.
C1: BRANDON UNIVERSITY ** EXECUTIVE OFFICES **
C2: REFERENCE BUDGET
C3: APRIL 2018 TO MARCH 2019
D4: 5301 | E4: 5314 | F4: 5315 | G4: 2018/19 | H4: 2019/20 | I4: 2020/21 | J4: 2017/18
D5: PRES. | E5: Board of | F5: CHANCELLOR | G5: REF'NCE | H5: PROJ. | I5: PROJ. | J5: APPROVED
C6: EXPENDITURE: | D6: OFFICES | E6: Governors | G6: BUDGET | H6: BUDGET | I6: BUDGET | J6: BUDGET
A7: 001 | C7: Academic Salaries | D7: 0 | E7: 0 | F7: 0 | G7: 0 | H7: 0 | I7: 0 | J7: 0
A8: 003 | C8: F.T. Support | D8: 506245.46 | E8: 0 | F8: 0 | G8: 506245.46 | H8: 512104.698 | I8: 518858.232 | J8: 463677
A9: 005 | C9: O.T./Student Assistants/Casual | D9: 3474.103333 | E9: 0 | F9: 0 | G9: 3474.103333 | H9: 3502.764686 | I9: 3559.684612 | J9: 3533
A10: 100 | C10: Benefits | D10: 78496.81275 | E10: 0 | F10: 0 | G10: 78496.81275 | H10: 103121.4925 | I10: 104483.5833 | J10: 65877
A11: 099/199 | C11: Recoveries | D11: 0 | E11: 0 | F11: 0 | G11: 0 | H11: 0 | I11: 0
C12: SUB-TOTAL: SALARIES & BENEFITS: | D12: 588216.3761 | E12: 0 | F12: 0 | G12: 588216.3761 | H12: 618728.9552 | I12: 626901.4999 | J12: 533087
A13: 201/02/06 | C13: Travel/Moving/Recruitment | D13: 16211.88 | E13: 4851.12 | F13: 3611.82 | G13: 24674.82 | H13: 25168.3164 | I13: 25671.68273 | J13: 24191
A14: 208 | C14: Designated Travel | D14: 2661.18 | E14: 0 | F14: 0 | G14: 2661.18 | H14: 2714.4036 | I14: 2768.691672 | J14: 2609
A15: 204/05/10 | C15: Prof. Dev. Allowances | D15: 11000 | E15: 0 | F15: 0 | G15: 11000 | H15: 11000 | I15: 11000 | J15: 14000
A16: 299 | C16: Recoveries | D16: 0 | E16: 0 | F16: 0 | G16: 0 | H16: 0 | I16: 0
C17: SUB-TOTAL: TRAVEL & MOVING: | D17: 29873.06 | E17: 4851.12 | F17: 3611.82 | G17: 38336 | H17: 38882.72 | I17: 39440.3744 | J17: 40800
A18: 301 | C18: Advertising | D18: 2166.48 | E18: 0 | F18: 0 | G18: 2166.48 | H18: 2209.8096 | I18: 2254.005792 | J18: 2124
A19: 302 | C19: Special Allowances | D19: 9408.48 | E19: 0 | F19: 0 | G19: 9408.48 | H19: 9596.6496 | I19: 9788.582592 | J19: 9224
A20: 304 | C20: Consumables | D20: 3371.1 | E20: 409.02 | F20: 150.96 | G20: 3931.08 | H20: 4009.7016 | I20: 4089.895632 | J20: 3854
A21: 305 | C21: Photocopying - Printing | D21: 1797.24 | E21: 1115.88 | F21: 362.1 | G21: 3275.22 | H21: 3340.7244 | I21: 3407.538888 | J21: 3211
A22: 306 | C22: Films - Film Rental/Photography | D22: 0 | E22: 0 | F22: 0 | G22: 0 | H22: 0 | I22: 0 | J22: 0
A23: 307 | C23: Membership Subscriptions | D23: 1442.28 | E23: 295.8 | F23: 0 | G23: 1738.08 | H23: 1772.8416 | I23: 1808.298432 | J23: 1704
A24: 308 | C24: Postage | D24: 1959.42 | E24: 402.9 | F24: 35.7 | G24: 2398.02 | H24: 2445.9804 | I24: 2494.900008 | J24: 2351
A25: 309 | C25: Telephone - Long Dist. | D25: 3621 | E25: 0 | F25: 60.18 | G25: 3681.18 | H25: 3754.8036 | I25: 3829.899672 | J25: 3609
A26: 310 | C26: Telephone - Rental | D26: 1449.42 | E26: 0 | F26: 0 | G26: 1449.42 | H26: 1478.4084 | I26: 1507.976568 | J26: 1421
A27: 311 | C27: Repairs & Maintenance | D27: 119.34 | E27: 0 | F27: 0 | G27: 119.34 | H27: 121.7268 | I27: 124.161336 | J27: 117
A28: 313 | C28: Publications (Annual Report) | D28: 5494.74 | E28: 5202 | F28: 0 | G28: 10696.74 | H28: 10910.6748 | I28: 11128.8883 | J28: 10487
A29: 314 | C29: Consulting Fees | D29: 0 | E29: 0 | F29: 0 | G29: 0 | H29: 0 | I29: 0
A30: 317 | C30: Special Functions | D30: 11050.68 | E30: 3861.72 | F30: 960.84 | G30: 15873.24 | H30: 16190.7048 | I30: 16514.5189 | J30: 15562
A31: 318 | C31: Promotion & Recruitment | D31: 70099.5 | E31: 0 | F31: 0 | G31: 70099.5 | H31: 71501.49 | I31: 72931.5198 | J31: 68725
A32: 327 | C32: Printed Material | D32: 0 | E32: 0 | F32: 0 | G32: 0 | H32: 0 | I32: 0 | J32: 0
A33: 335 | C33: Program Expenses - Community Relations | D33: 15300 | E33: 0 | F33: 0 | G33: 15300 | H33: 15606 | I33: 15918.12 | J33: 15400
A34: 339 | C34: Parking | D34: 0 | E34: 0 | F34: 0 | G34: 0 | H34: 0 | I34: 0 | J34: 0
A35: 340 | C35: Alumni news | D35: 0 | E35: 0 | F35: 0 | G35: 0 | H35: 0 | I35: 0 | J35: 0
A36: 345 | C36: Staff Development | D36: 0 | E36: 5520.24 | F36: 0 | G36: 5520.24 | H36: 5630.6448 | I36: 5743.257696 | J36: 5412
A37: 354 | C37: Fax Expenses | D37: 543.66 | E37: 0 | F37: 0 | G37: 543.66 | H37: 554.5332 | I37: 565.623864 | J37: 533
A38: 356 | C38: Service/Retirement/Recognition | D38: 0 | E38: 7239.96 | F38: 0 | G38: 7239.96 | H38: 7384.7592 | I38: 7532.454384 | J38: 7098
A39: 334 | C39: Presidential Search/Farewell/Inaugeration | D39: 0 | E39: 0 | F39: 0 | G39: 0 | H39: 0
A40: 376 | C40: Faculty & Staff Affairs | D40: 9336.06 | E40: 0 | F40: 0 | G40: 9336.06 | H40: 9522.7812 | I40: 9713.236824 | J40: 9153
A41: 378 | C41: Special Allocations | D41: 0 | E41: 402.9 | F41: 0 | G41: 402.9 | H41: 410.958 | I41: 419.17716 | J41: 395
A42: 393 | C42: Equipment - furniture (under $1000) | D42: 0 | E42: 0 | F42: 0 | G42: 0 | H42: 0 | I42: 0
A43: 399 | C43: Recoveries | D43: -1390 | E43: 0 | F43: 0 | G43: -1390 | H43: -1417.8 | I43: -1446.156 | J43: -1390
A44: 434 | C44: Student Costs - homestay (Net) | D44: 0 | E44: 0 | F44: 0 | G44: 0 | H44: 0 | I44: 0 | J44: 0
A45: 454 | C45: Student Costs - airport pick-up (Net) | D45: 0 | E45: 0 | F45: 0 | G45: 0 | H45: 0 | I45: 0 | J45: 0
A46: 401/474 | C46: Recruitment/Aboriginal Rec. Students Material | D46: 0 | E46: 0 | F46: 0 | G46: 0 | H46: 0 | I46: 0 | J46: 0
A47: 799 | C47: Interfund Transfer | D47: 0 | E47: 0 | F47: 0 | G47: 0 | H47: 0 | I47: 0
A48: *** | C48: Unallocated | D48: 0 | E48: 0 | F48: 0 | G48: 0 | H48: 0 | I48: 0
C49: SUB-TOTAL: SUPPL & OTHER: | D49: 135769.4 | E49: 24450.42 | F49: 1569.78 | G49: 161789.6 | H49: 165025.392 | I49: 168325.8998 | J49: 158990
A50: 503 | C50: Transfers from BU Foundation | D50: 0 | E50: 0 | F50: 0 | G50: 0 | H50: 0 | I50: 0
A51: 5xx | C51: Revenues | D51: 0 | E51: 0 | F51: 0 | G51: 0 | H51: 0 | I51: 0
C52: SUB-TOTAL:RECOVERIES | D52: 0 | E52: 0 | F52: 0 | G52: 0 | H52: 0 | I52: 0 | J52: 0
A53: 901 | C53: Equipment purchases | D53: 0 | E53: 0 | F53: 0 | G53: 0 | H53: 0 | I53: 0
C54: SUB-TOTAL: RENOV & EQUIP: | D54: 0 | E54: 0 | F54: 0 | G54: 0 | H54: 0 | I54: 0 | J54: 0
C55: ANNUAL BUDGET: | D55: 753858.8361 | E55: 29301.54 | F55: 5181.6 | G55: 788341.9761 | H55: 822637.0672 | I55: 834667.7742 | J55: 732877

Sheet VP Academic
C1: BRANDON UNIVERSITY ** VP (ACADEMIC & PROVOST) **
C2: REFERENCE BUDGET
C3: APRIL 2018 TO MARCH 2019
D4: 5303 | E4: 5304 | F4: 5306 | G4: 2018/19 | H4: 2019/20 | I4: 2020/21 | J4: 2017/18
D5: VP A & P | E5: IDA | F5: CTLT | G5: REF'NCE | H5: PROJ. | I5: PROJ. | J5: APPROVED
C6: EXPENDITURE: | D6: OFFICE | E6: OFFICE | G6: BUDGET | H6: BUDGET | I6: BUDGET | J6: BUDGET
A7: 001 | C7: Academic Salaries | D7: 84737.81875 | E7: 0 | F7: 155084.6406 | G7: 239822.4594 | H7: 246106.8446 | I7: 250087.8707 | J7: 147564
A8: 002 | C8: Sessionals | D8: 38685 | E8: 0 | F8: 0 | G8: 38685 | H8: 38685 | I8: 38685 | J8: 38685
A9: 003 | C9: F.T. Support | D9: 520788.7938 | E9: 206978.1 | F9: 27052.65 | G9: 754819.5438 | H9: 758036.7626 | I9: 765715.9413 | J9: 783960
A10: 005 | C10: O.T./Student Assistants/Casual | D10: 0 | E10: 0 | F10: 0 | G10: 0 | H10: 0 | I10: 0
A11: 100 | C11: Benefits | D11: 132063.3806 | E11: 44086.3353 | F11: 38248.83103 | G11: 214398.5469 | H11: 208565.7214 | I11: 210897.7624 | J11: 199118
A12: 099/199 | C12: Recoveries | D12: -130200 | E12: 0 | F12: 0 | G12: -130200 | H12: -130200 | I12: -130200 | J12: -130200
C13: SUB-TOTAL: SALARIES & BENEFITS: | D13: 646074.9931 | E13: 251064.4353 | F13: 220386.1217 | G13: 1117525.55 | H13: 1121194.329 | I13: 1135186.574 | J13: 1039127
A14: 201/02/06 | C14: Travel/Moving/Recruitment | D14: 22743.96 | E14: 1020 | F14: 510 | G14: 24273.96 | H14: 24759.4392 | I14: 25254.62798 | J14: 23798
A15: 204/05/10 | C15: Prof. Dev. Allowances | D15: 60230 | E15: 2000 | F15: 3000 | G15: 65230 | H15: 65230 | I15: 65230 | J15: 61610
A16: 299 | C16: Recoveries | D16: 0 | E16: 0 | F16: 0 | G16: 0 | H16: 0 | I16: 0
C17: SUB-TOTAL: TRAVEL & MOVING: | D17: 82973.96 | E17: 3020 | F17: 3510 | G17: 89503.96 | H17: 89989.4392 | I17: 90484.62798 | J17: 85408
A18: 301 | C18: Advertising | D18: 1159.74 | E18: 0 | F18: 0 | G18: 1159.74 | H18: 1182.9348 | I18: 1206.593496 | J18: 1137
A19: 302 | C19: Special Allowances | D19: 0 | E19: 3980 | F19: 0 | G19: 3980 | H19: 4059.6 | I19: 4140.792 | J19: 5000
A20: 304 | C20: Consumables | D20: 2320.5 | E20: 1020 | F20: 2040 | G20: 5380.5 | H20: 5488.11 | I20: 5597.8722 | J20: 5275
A21: 305 | C21: Photocopying - Printing | D21: 1740.12 | E21: 408 | F21: 510 | G21: 2658.12 | H21: 2711.2824 | I21: 2765.508048 | J21: 2606
A22: 307 | C22: Membership Subscriptions | D22: 1740.12 | E22: 1346.4 | F22: 1020 | G22: 4106.52 | H22: 4188.6504 | I22: 4272.423408 | J22: 4026
A23: 308 | C23: Postage | D23: 580.38 | E23: 0 | F23: 612 | G23: 1192.38 | H23: 1216.2276 | I23: 1240.552152 | J23: 1169
A24: 309 | C24: Telephone - Long Dist. | D24: 870.06 | E24: 0 | F24: 408 | G24: 1278.06 | H24: 1303.6212 | I24: 1329.693624 | J24: 1253
A25: 310 | C25: Telephone - Rental | D25: 1740.12 | E25: 648.72 | F25: 0 | G25: 2388.84 | H25: 2436.6168 | I25: 2485.349136 | J25: 2342
A26: 311 | C26: Repairs & Maintenance | D26: 580.38 | E26: 0 | F26: 0 | G26: 580.38 | H26: 591.9876 | I26: 603.827352 | J26: 569
A27: 314 | C27: Consulting Fees | D27: 0 | E27: 0 | F27: 0 | G27: 0 | H27: 0 | I27: 0
A28: 317 | C28: Special Functions | D28: 2161.38 | E28: 0 | F28: 0 | G28: 2161.38 | H28: 2204.6076 | I28: 2248.699752 | J28: 2119
A29: 318 | C29: Promotion & Recruitment | D29: 22084.02 | E29: 0 | F29: 0 | G29: 22084.02 | H29: 22525.7004 | I29: 22976.21441 | J29: 21651
A30: 330 | C30: Food Purchases | D30: 0 | E30: 0 | F30: 0 | G30: 0 | H30: 0 | I30: 0
A31: 345 | C31: Staff Development | D31: 0 | E31: 510 | F31: 0 | G31: 510 | H31: 520.2 | I31: 530.604 | J31: 500
A32: 354 | C32: Fax Expenses | D32: 0 | E32: 0 | F32: 0 | G32: 0 | H32: 0 | I32: 0
A33: 357/358 | C33: Software/Software Licensing | D33: 0 | E33: 1020 | F33: 0 | G33: 1020 | H33: 1040.4 | I33: 1061.208
A34: 372 | C34: Research Development/Research Dev. | D34: 21158.88 | E34: 0 | F34: 0 | G34: 21158.88 | H34: 21582.0576 | I34: 22013.69875 | J34: 20744
A35: 378 | C35: Special Allocations (Senate Pgrm Reviews) | D35: 22754.16 | E35: 0 | F35: 5100 | G35: 27854.16 | H35: 28411.2432 | I35: 28979.46806 | J35: 27308
A36: 393 | C36: Equipment - furniture (under $1000) | D36: 0 | E36: 0 | F36: 0 | G36: 0 | H36: 0 | I36: 0
A37: 399 | C37: Recoveries | D37: -200 | E37: 0 | F37: 0 | G37: -200 | H37: -204 | I37: -208.08 | J37: -200
A38: 434 | C38: Student Costs - homestay (Net) | D38: 0 | E38: 0 | F38: 0 | G38: 0 | H38: 0 | I38: 0 | J38: 0
A39: 454 | C39: Student Costs - airport pick-up (Net) | D39: 0 | E39: 0 | F39: 0 | G39: 0 | H39: 0 | I39: 0 | J39: 0
A40: 799 | C40: Interfund Transfer | D40: 0 | E40: 0 | F40: 0 | G40: 0 | H40: 0 | I40: 0
A41: *** | C41: Unallocated | D41: 0 | E41: 0 | F41: 0 | G41: 0 | H41: 0 | I41: 0
C42: SUB-TOTAL: SUPPL & OTHER: | D42: 78689.86 | E42: 8933.12 | F42: 9690 | G42: 97312.98 | H42: 99259.2396 | I42: 101244.4244 | J42: 95499
A43: 503 | C43: Transfers from BU Foundation | D43: 0 | E43: 0 | G43: 0 | H43: 0 | I43: 0
A44: 5xx | C44: Revenues | D44: 0 | E44: 0 | G44: 0 | H44: 0 | I44: 0 | J44: -4400
C45: SUB-TOTAL:RECOVERIES | D45: 0 | E45: 0 | F45: 0 | G45: 0 | H45: 0 | I45: 0 | J45: -4400
A46: 901 | C46: Equipment purchases | D46: 0 | E46: 0 | G46: 0 | H46: 0 | I46: 0
C47: SUB-TOTAL: RENOV & EQUIP: | D47: 0 | E47: 0 | F47: 0 | G47: 0 | H47: 0 | I47: 0 | J47: 0
C48: ANNUAL BUDGET: | D48: 807738.8131 | E48: 263017.5553 | F48: 233586.1217 | G48: 1304342.49 | H48: 1310443.007 | I48: 1326915.627 | J48: 1215634

Sheet Advancement
C1: BRANDON UNIVERSITY ** ADVANCEMENT**
C2: REFERENCE BUDGET
C3: APRIL 2018 TO MARCH 2019
D4: 5320 | E4: 5321 | F4: 5323 | G4: 5324 | H4: 5325 | I4: 5326 | J4: 2018/19 | K4: 2019/20 | L4: 2020/21 | M4: 2017/18
D5: ADVANCEMENT | E5: ANNUAL | F5: HOME- | G5: ALUMNI | H5: ALUMNI | I5: PRESIDENT | J5: REF'NCE | K5: PROJ. | L5: PROJ. | M5: APPROVED
C6: EXPENDITURE: | E6: FUND | F6: COMING | G6: EVENTS | H6: ACTIVITIES | I6: CLUB | J6: BUDGET | K6: BUDGET | L6: BUDGET | M6: BUDGET
A7: 001 | C7: Acad./Sabb/I.A. | D7: 0 | E7: 0 | H7: 0 | I7: 0 | J7: 0 | K7: 0 | L7: 0 | M7: 0
A8: 003 | C8: F.T. Support | D8: 317761.125 | J8: 317761.125 | K8: 437274.468 | L8: 442090.8328 | M8: 685541
A9: 005 | C9: O.T./Student Assistants/Casual | D9: 2036.92375 | J9: 2036.92375 | K9: 2053.728371 | L9: 2087.101457 | M9: 2031
A10: 100 | C10: Benefits | D10: 63000.2156 | J10: 63000.2156 | K10: 87865.63927 | L10: 88835.58685 | M10: 132014
A11: 099/199 | C11: Recoveries | D11: 0 | J11: 0 | K11: 0 | L11: 0
C12: SUB-TOTAL: SALARIES & BENEFITS: | D12: 382798.2644 | E12: 0 | F12: 0 | G12: 0 | H12: 0 | I12: 0 | J12: 382798.2644 | K12: 527193.8356 | L12: 533013.5211 | M12: 819586
A13: 201/02/06 | C13: Travel/Moving/Recruitment | D13: 540.6 | E13: 0 | F13: 0 | G13: 1548.36 | H13: 0 | I13: 354.96 | J13: 2443.92 | K13: 2492.7984 | L13: 2542.654368 | M13: 5926
A14: 204/05/10 | C14: Prof. Dev. Allowances | D14: 4000 | E14: 0 | F14: 0 | G14: 0 | H14: 0 | I14: 0 | J14: 4000 | K14: 4000 | L14: 4000 | M14: 10000
A15: 299 | C15: Recoveries | D15: 0 | E15: 0 | F15: 0 | G15: 0 | H15: 0 | I15: 0 | J15: 0 | K15: 0 | L15: 0
C16: SUB-TOTAL: TRAVEL & MOVING: | D16: 4540.6 | E16: 0 | F16: 0 | G16: 1548.36 | H16: 0 | I16: 354.96 | J16: 6443.92 | K16: 6492.7984 | L16: 6542.654368 | M16: 15926
A17: 301 | C17: Advertising | D17: 1205.64 | E17: 0 | F17: 540.6 | G17: 0 | H17: 0 | I17: 0 | J17: 1746.24 | K17: 1781.1648 | L17: 1816.788096 | M17: 1712
A18: 302 | C18: Special Allowances | D18: 0 | E18: 0 | F18: 0 | G18: 0 | H18: 0 | I18: 0 | J18: 0 | K18: 0 | L18: 0
A19: 304 | C19: Consumables | D19: 3057.96 | E19: 0 | F19: 540.6 | G19: 0 | H19: 0 | I19: 0 | J19: 3598.56 | K19: 3670.5312 | L19: 3743.941824 | M19: 3528
A20: 305 | C20: Photocopying - Printing | D20: 1020 | E20: 4925.58 | F20: 1623.84 | G20: 106.08 | H20: 0 | I20: 845.58 | J20: 8521.08 | K20: 8691.5016 | L20: 8865.331632 | M20: 30260
A21: 306 | C21: Films - Film Rental/Photography | D21: 0 | E21: 0 | F21: 0 | G21: 0 | H21: 0 | I21: 0 | J21: 0 | K21: 0 | L21: 0 | M21: 903
A22: 307 | C22: Membership Subscriptions | D22: 4766.46 | E22: 0 | F22: 0 | G22: 0 | H22: 0 | I22: 0 | J22: 4766.46 | K22: 4861.7892 | L22: 4959.024984 | M22: 2673
A23: 308 | C23: Postage | D23: 374.34 | E23: 7473.54 | F23: 1948.2 | G23: 540.6 | H23: 482.46 | I23: 603.84 | J23: 11422.98 | K23: 11651.4396 | L23: 11884.46839 | M23: 22737
A24: 309 | C24: Telephone - Long Dist. | D24: 1632 | E24: 0 | F24: 0 | G24: 0 | H24: 0 | I24: 0 | J24: 1632 | K24: 1664.64 | L24: 1697.9328 | M24: 3200
A25: 310 | C25: Telephone - Rental | D25: 1697.28 | E25: 0 | F25: 0 | G25: 0 | H25: 0 | I25: 0 | J25: 1697.28 | K25: 1731.2256 | L25: 1765.850112 | M25: 3329
A26: 311 | C26: Repairs & Maintenance | D26: 602.82 | E26: 0 | F26: 0 | G26: 0 | H26: 0 | I26: 0 | J26: 602.82 | K26: 614.8764 | L26: 627.173928 | M26: 1182
A27: 313 | C27: Publications/Legacy PG News | D27: 0 | E27: 0 | F27: 0 | G27: 0 | H27: 0 | I27: 0 | J27: 0 | K27: 0 | L27: 0 | M27: 415
A28: 314 | C28: Consulting Fees | D28: 0 | E28: 0 | F28: 0 | G28: 0 | H28: 0 | I28: 0 | J28: 0 | K28: 0 | L28: 0
A29: 317 | C29: Special Functions | D29: 510 | E29: 280.5 | F29: 1564.68 | G29: 3116.1 | H29: 0 | I29: 3854.58 | J29: 9325.86 | K29: 9512.3772 | L29: 9702.624744 | M29: 9549
A30: 330 | C30: Food Purchases | D30: 255 | E30: 0 | F30: 2916.18 | G30: 4519.62 | H30: 714 | I30: 0 | J30: 8404.8 | K30: 8572.896 | L30: 8744.35392 | M30: 8582
A31: 345 | C31: Staff Development | D31: 3755.64 | E31: 0 | F31: 0 | G31: 0 | H31: 0 | I31: 0 | J31: 3755.64 | K31: 3830.7528 | L31: 3907.367856 | M31: 7367
A32: 354 | C32: Fax Expenses | D32: 603.84 | E32: 0 | F32: 0 | G32: 0 | H32: 0 | I32: 0 | J32: 603.84 | K32: 615.9168 | L32: 628.235136 | M32: 592
A33: 357/358 | C33: Software Licensing/Support | D33: 15810 | E33: 0 | F33: 0 | G33: 0 | H33: 0 | I33: 0 | J33: 15810 | K33: 16126.2 | L33: 16448.724 | M33: 10406
A34: 378 | C34: Special Allocations | D34: 0 | E34: 0 | F34: 0 | G34: 0 | H34: 0 | I34: 0 | J34: 0 | K34: 0 | L34: 0
A35: 393 | C35: Equipment purchases (under $1000) | D35: 0 | E35: 0 | F35: 0 | G35: 0 | H35: 0 | I35: 0 | J35: 0 | K35: 0 | L35: 0
A36: 399 | C36: Recoveries | D36: 0 | E36: 0 | F36: 0 | G36: 0 | H36: 0 | I36: 0 | J36: 0 | K36: 0 | L36: 0
A37: 799 | C37: Interfund Transfer | D37: 0 | E37: 0 | F37: 0 | G37: 0 | H37: 0 | I37: 0 | J37: 0 | K37: 0 | L37: 0
A38: *** | C38: Unallocated | D38: 0 | E38: 0 | F38: 0 | G38: 0 | H38: 0 | I38: 0 | J38: 0 | K38: 0 | L38: 0
C39: SUB-TOTAL: SUPPL & OTHER: | D39: 35290.98 | E39: 12679.62 | F39: 9134.1 | G39: 8282.4 | H39: 1196.46 | I39: 5304 | J39: 71887.56 | K39: 73325.3112 | L39: 74791.81742 | M39: 106435
A40: 503 | C40: Transfers from BU Foundation | D40: -230845 | E40: 0 | F40: 0 | H40: -5000 | I40: 0 | J40: -235845 | K40: -235845 | L40: -235845 | M40: -434002
A41: 510 | C41: Special Events | D41: 0 | E41: 0 | F41: -4500 | H41: 0 | I41: 0 | J41: -4500 | K41: -4500 | L41: -4500 | M41: -4500
C42: SUB-TOTAL:RECOVERIES | D42: -230845 | E42: 0 | F42: -4500 | G42: 0 | H42: -5000 | I42: 0 | J42: -240345 | K42: -240345 | L42: -240345 | M42: -438502
A43: 901 | C43: Equipment purchases | D43: 0 | E43: 0 | F43: 0 | H43: 0 | I43: 0 | J43: 0 | K43: 0 | L43: 0
C44: SUB-TOTAL: RENOV & EQUIP: | D44: 0 | E44: 0 | F44: 0 | G44: 0 | H44: 0 | I44: 0 | J44: 0 | K44: 0 | L44: 0 | M44: 0
C45: ANNUAL BUDGET: | D45: 191784.8444 | E45: 12679.62 | F45: 4634.1 | G45: 9830.76 | H45: -3803.54 | I45: 5658.96 | J45: 220784.7444 | K45: 366666.9452 | L45: 374002.9929 | M45: 503445

Sheet External
C1: BRANDON UNIVERSITY **EXTERNAL RELATIONS**
C2: REFERENCE BUDGET
C3: APRIL 2018 TO MARCH 2019
D4: 5327 | E4: 5322 | F4: 2018/19 | G4: 2019/20 | H4: 2020/21 | I4: 2017/18
D5: EXTERNAL | E5: ALUMNI | F5: REF'NCE | G5: PROJ. | H5: PROJ. | I5: APPROVED
C6: EXPENDITURE: | D6: RELATIONS | E6: NEWS | F6: BUDGET | G6: BUDGET | H6: BUDGET | I6: BUDGET
A7: 001 | C7: Acad./Sabb/I.A. | D7: 0 | F7: 0 | G7: 0 | H7: 0 | I7: 0
A8: 003 | C8: F.T. Support | D8: 294764.645 | F8: 294764.645 | G8: 304994.3245 | H8: 312927.6203
A9: 005 | C9: O.T./Student Assistants/Casual | F9: 0
A10: 100 | C10: Benefits | D10: 58068.63507 | F10: 58068.63507 | G10: 60998.8649 | H10: 62585.52405
A11: 099/199 | C11: Recoveries | F11: 0 | G11: 0 | H11: 0
C12: SUB-TOTAL: SALARIES & BENEFITS: | D12: 352833.2801 | E12: 0 | F12: 352833.2801 | G12: 365993.1894 | H12: 375513.1443
A13: 201/02/06 | C13: Travel/Moving/Recruitment | D13: 540.6 | E13: 0 | F13: 540.6 | G13: 551.412 | H13: 562.44024
A14: 204/05/10 | C14: Prof. Dev. Allowances | D14: 4000 | E14: 0 | F14: 4000 | G14: 4000 | H14: 4000
A15: 299 | C15: Recoveries | D15: 0 | E15: 0 | F15: 0 | G15: 0 | H15: 0
C16: SUB-TOTAL: TRAVEL & MOVING: | D16: 4540.6 | E16: 0 | F16: 4540.6 | G16: 4551.412 | H16: 4562.44024
A17: 301 | C17: Advertising | D17: 35060 | E17: 0 | F17: 35060 | G17: 35761.2 | H17: 36476.424
A18: 302 | C18: Special Allowances | D18: 5100 | E18: -200 | F18: 4900 | G18: 4998 | H18: 5097.96
A19: 304 | C19: Consumables | D19: 0 | E19: 0 | F19: 0 | G19: 0 | H19: 0
A20: 305 | C20: Photocopying - Printing | D20: 185.64 | E20: 22471.62 | F20: 22657.26 | G20: 23110.4052 | H20: 23572.6133
A21: 306 | C21: Films - Film Rental/Photography | D21: 607.92 | E21: 1530 | F21: 2137.92 | G21: 2180.6784 | H21: 2224.291968
A22: 307 | C22: Membership Subscriptions | D22: 423.3 | E22: 0 | F22: 423.3 | G22: 431.766 | H22: 440.40132
A23: 308 | C23: Postage | D23: 0 | E23: 19728.76 | F23: 19728.76 | G23: 20123.3352 | H23: 20525.8019
A24: 309 | C24: Telephone - Long Dist. | D24: 1632 | E24: 0 | F24: 1632 | G24: 1664.64 | H24: 1697.9328
A25: 310 | C25: Telephone - Rental | D25: 1698.3 | E25: 0 | F25: 1698.3 | G25: 1732.266 | H25: 1766.91132
A26: 311 | C26: Repairs & Maintenance | D26: 602.82 | E26: 0 | F26: 602.82 | G26: 614.8764 | H26: 627.173928
A27: 313 | C27: Publications/Legacy PG News | D27: 0 | E27: 0 | F27: 0 | G27: 0 | H27: 0
A28: 314 | C28: Consulting Fees | D28: 0 | E28: 1530 | F28: 1530 | G28: 1560.6 | H28: 1591.812
A29: 317 | C29: Special Functions | D29: 510 | E29: 0 | F29: 510 | G29: 520.2 | H29: 530.604
A30: 330 | C30: Food Purchases | D30: 255 | E30: 0 | F30: 255 | G30: 260.1 | H30: 265.302
A31: 345 | C31: Staff Development | D31: 3678 | E31: 0 | F31: 3678 | G31: 3751.56 | H31: 3826.5912
A32: 354 | C32: Fax Expenses | D32: 0 | E32: 0 | F32: 0 | G32: 0 | H32: 0
A33: 357/358 | C33: Software Licensing/Support | D33: 12240 | E33: 0 | F33: 12240 | G33: 12484.8 | H33: 12734.496
A34: 378 | C34: Special Allocations | D34: 0 | E34: 0 | F34: 0 | G34: 0 | H34: 0
A35: 393 | C35: Equipment purchases (under $1000) | D35: 0 | E35: 0 | F35: 0 | G35: 0 | H35: 0
A36: 399 | C36: Recoveries | D36: 0 | E36: 0 | F36: 0 | G36: 0 | H36: 0
A37: 799 | C37: Interfund Transfer | D37: 0 | E37: 0 | F37: 0 | G37: 0 | H37: 0
A38: *** | C38: Unallocated | D38: 0 | E38: 0 | F38: 0 | G38: 0 | H38: 0
C39: SUB-TOTAL: SUPPL & OTHER: | D39: 61992.98 | E39: 45060.38 | F39: 107053.36 | G39: 109194.4272 | H39: 111378.3157
A40: 503 | C40: Transfers from BU Foundation | D40: -215251 | E40: 0 | F40: -215251 | G40: -215251 | H40: -215251
A41: 510 | C41: Special Events | D41: 0 | E41: 0 | F41: 0 | G41: 0 | H41: 0
C42: SUB-TOTAL:RECOVERIES | D42: -215251 | E42: 0 | F42: -215251 | G42: -215251 | H42: -215251
A43: 901 | C43: Equipment purchases | D43: 0 | E43: 0 | F43: 0 | G43: 0 | H43: 0
C44: SUB-TOTAL: RENOV & EQUIP: | D44: 0 | E44: 0 | F44: 0 | G44: 0 | H44: 0
C45: ANNUAL BUDGET: | D45: 204115.8601 | E45: 45060.38 | F45: 249176.2401 | G45: 264488.0286 | H45: 276202.9003

Sheet Library Services
C1: BRANDON UNIVERSITY ** LIBRARY & RELATED SERVICES **
C2: REFERENCE BUDGET
C3: APRIL 2018 TO MARCH 2019 | D3: (1) | E3: (2) | F3: (3) | G3: (4) | H3: (5)
H4: (3+4)
D5: 5002 | E5: 5099 | G5: 5006 | H5: 2018/19 | I5: 2019/20 | J5: 2020/21 | K5: 2017/18
E6: CARRY | F6: TOTAL | G6: TOTAL | H6: REF'NCE | I6: PROJ. | J6: PROJ. | K6: APPROVED
C7: EXPENDITURE: | D7: DIR | E7: FRWRD | F7: LIBRARY | G7: ARCHIVES | H7: BUDGET | I7: BUDGET | J7: BUDGET | K7: BUDGET
A8: 003 | C8: Full-Time Support | D8: 583575.16 | E8: 0 | F8: 583575.16 | G8: 0 | H8: 583575.16 | I8: 601135.6366 | J8: 605670.756 | K8: 566007
A9: 004/005 | C9: P.T./Student Assistants/Casual | D9: 120726.14 | E9: 0 | F9: 120726.14 | G9: 0 | H9: 120726.14 | I9: 123147.5852 | J9: 124626.8471 | K9: 118315
A10: 006/007 | C10: Professional F.T./P.T. | D10: 598970.346 | E10: 0 | F10: 598970.346 | G10: 73678.175 | H10: 672648.521 | I10: 687529.7343 | J10: 702711.1318 | K10: 639989
A11: 100 | C11: Benefits | D11: 246318.3411 | E11: 0 | F11: 246318.3411 | G11: 15104.02587 | H11: 261422.367 | I11: 282362.5912 | J11: 286601.747 | K11: 256013
A12: 099/199 | C12: Recoveries | D12: 0 | E12: 0 | F12: 0 | H12: 0 | I12: 0 | J12: 0
C13: SUB-TOTAL: SALARIES & BENEFITS: | D13: 1549589.987 | E13: 0 | F13: 1549589.987 | G13: 88782.20088 | H13: 1638372.188 | I13: 1694175.547 | J13: 1719610.482 | K13: 1580324
A14: 201/02/06 | C14: Travel/Moving/Recruitment | D14: 5130.6 | E14: 0 | F14: 5130.6 | G14: 0 | H14: 5130.6 | I14: 5233.212 | J14: 5337.87624 | K14: 5030
A15: 204/05/10 | C15: Prof. Dev. Allowances | D15: 9840 | E15: 0 | F15: 9840 | G15: 2000 | H15: 11840 | I15: 11840 | J15: 11840 | K15: 11840
A16: 299 | C16: Recoveries | D16: 0 | E16: 0 | F16: 0 | G16: 0 | H16: 0 | I16: 0 | J16: 0
C17: SUB-TOTAL: TRAVEL & MOVING: | D17: 14970.6 | E17: 0 | F17: 14970.6 | G17: 2000 | H17: 16970.6 | I17: 17073.212 | J17: 17177.87624 | K17: 16870
A18: 5001 | C18: Library Books & Periodicals | D18: 661704.75 | E18: 0 | F18: 661704.75 | G18: 0 | H18: 661704.75 | I18: 694789.9875 | J18: 729529.4869 | K18: 630195
A19: 5001029 | C19: Data Royalties | D19: 327427.8 | E19: 0 | F19: 327427.8 | G19: 0 | H19: 327427.8 | I19: 343799.19 | J19: 360989.1495 | K19: 311836
A20: 301 | C20: Advertising | D20: 0 | E20: 0 | F20: 0 | G20: 0 | H20: 0 | I20: 0 | J20: 0
A21: 302 | C21: Special Allowances | D21: 0 | E21: 0 | F21: 0 | G21: 0 | H21: 0 | I21: 0 | J21: 0
A22: 304 | C22: Consumables | D22: 12879.54 | E22: 0 | F22: 12879.54 | G22: 2923.32 | H22: 15802.86 | I22: 16118.9172 | J22: 16441.29554 | K22: 15493
A23: 305 | C23: Photocopying - Printing | D23: 13038.66 | E23: 0 | F23: 13038.66 | G23: 119.34 | H23: 13158 | I23: 13421.16 | J23: 13689.5832 | K23: 12900
A24: 306 | C24: Films - Film Rental | D24: 4182 | E24: 0 | F24: 4182 | G24: 0 | H24: 4182 | I24: 4265.64 | J24: 4350.9528 | K24: 4100
A25: 307 | C25: Membership Subscriptions | D25: 7042.08 | E25: 0 | F25: 7042.08 | G25: 119.34 | H25: 7161.42 | I25: 7304.6484 | J25: 7450.741368 | K25: 7021
A26: 308 | C26: Postage | D26: 1632 | E26: 0 | F26: 1632 | G26: 60.18 | H26: 1692.18 | I26: 1726.0236 | J26: 1760.544072 | K26: 1659
A27: 309 | C27: Telephone - Long Dist. | D27: 664.02 | E27: 0 | F27: 664.02 | G27: 603.84 | H27: 1267.86 | I27: 1293.2172 | J27: 1319.081544 | K27: 1243
A28: 310 | C28: Telephone - Rental | D28: 7844.82 | E28: 0 | F28: 7844.82 | G28: 482.46 | H28: 8327.28 | I28: 8493.8256 | J28: 8663.702112 | K28: 8164
A29: 311 | C29: Repairs & Maintenance | D29: 3704.64 | E29: 0 | F29: 3704.64 | G29: 179.52 | H29: 3884.16 | I29: 3961.8432 | J29: 4041.080064 | K29: 3808
A30: 314 | C30: Consulting/Professional Fees | D30: 0 | E30: 0 | F30: 0 | G30: 0 | H30: 0 | I30: 0 | J30: 0
A31: 325 | C31: Security Services | D31: 2165.46 | E31: 0 | F31: 2165.46 | G31: 0 | H31: 2165.46 | I31: 2208.7692 | J31: 2252.944584 | K31: 2123
A32: 317 | C32: Special Functions | D32: 1205.64 | E32: 0 | F32: 1205.64 | G32: 0 | H32: 1205.64 | I32: 1229.7528 | J32: 1254.347856 | K32: 1182
A33: 345 | C33: Staff Development | D33: 2171.58 | E33: 0 | F33: 2171.58 | G33: 0 | H33: 2171.58 | I33: 2215.0116 | J33: 2259.311832 | K33: 2129
A34: 351 | C34: Cataloguing | D34: 9598.2 | E34: 0 | F34: 9598.2 | G34: 0 | H34: 9598.2 | I34: 9790.164 | J34: 9985.96728 | K34: 9410
A35: 352 | C35: Binding & Repair | D35: 5428.44 | E35: 0 | F35: 5428.44 | G35: 0 | H35: 5428.44 | I35: 5537.0088 | J35: 5647.748976 | K35: 5322
A36: 354 | C36: Fax Expenses | D36: 2776.44 | E36: 0 | F36: 2776.44 | G36: 60.18 | H36: 2836.62 | I36: 2893.3524 | J36: 2951.219448 | K36: 2781
A37: 357/358 | C37: Software/Software Licensing | D37: 40183.92 | E37: 0 | F37: 40183.92 | G37: 0 | H37: 40183.92 | I37: 40987.5984 | J37: 41807.35037 | K37: 39396
A38: 360 | C38: Inter Library Loans | D38: 4868.46 | E38: 0 | F38: 4868.46 | G38: 0 | H38: 4868.46 | I38: 4965.8292 | J38: 5065.145784 | K38: 4773
A39: 378 | C39: Special Allocations | D39: 0 | E39: 0 | F39: 0 | G39: 0 | H39: 0 | I39: 0 | J39: 0
A40: 382/384 | C40: Overages/Shortages/Bad Debt | D40: 0 | E40: 0 | F40: 0 | G40: 0 | H40: 0 | I40: 0 | J40: 0
A41: 393 | C41: Equipment - furntiure (under $1000) | D41: 0 | E41: 0 | F41: 0 | G41: 0 | H41: 0 | I41: 0 | J41: 0
A42: 396 | C42: Special Recoveries | E42: 0 | F42: 0 | G42: 0 | H42: 0 | I42: 0 | J42: 0
A43: 399 | C43: Recoveries | D43: -510 | E43: 0 | F43: -510 | G43: 0 | H43: -510 | I43: -520.2 | J43: -530.604 | K43: -510
A44: 799 | C44: Interfund Transfer
A45: *** | C45: Unallocated | D45: 0 | E45: 0 | F45: 0 | G45: 0 | H45: 0 | I45: 0 | J45: 0
C46: SUB-TOTAL: SUPPLIES & OTHER EXPS: | D46: 1108008.45 | E46: 0 | F46: 1108008.45 | G46: 4548.18 | H46: 1112556.63 | I46: 1164481.739 | J46: 1218929.049 | K46: 1063025
A47: 503 | C47: Transfers from BU Foundation | D47: 0 | E47: 0 | F47: 0 | G47: 0 | H47: 0 | I47: 0 | J47: 0
A48: 505/507 | C48: Rentals/Library Fines | D48: -4805 | E48: 0 | F48: -4805 | G48: 0 | H48: -4805 | I48: -4805 | J48: -4805 | K48: -4805
A49: 510 | C49: Revenues | D49: 0 | E49: 0 | F49: 0 | G49: 0 | H49: 0 | I49: 0 | J49: 0
A50: 590 | C50: Photocopier Revenues/Other Revenues | D50: -10000 | E50: 0 | F50: -10000 | G50: 0 | H50: -10000 | I50: -10000 | J50: -10000 | K50: -10000
C51: SUB-TOTAL: REVENUES | D51: -14805 | E51: 0 | F51: -14805 | G51: 0 | H51: -14805 | I51: -14805 | J51: -14805 | K51: -14805
A52: 901 | C52: Equipment purchases | D52: 50000 | E52: 0 | F52: 50000 | G52: 0 | H52: 50000 | I52: 50000 | J52: 50000 | K52: 50000
C53: SUB-TOTAL: RENOV & EQUIP EXPS: | D53: 50000 | E53: 0 | F53: 50000 | G53: 0 | H53: 50000 | I53: 50000 | J53: 50000 | K53: 50000
C54: TOTAL BUDGET: | D54: 2707764.037 | E54: 0 | F54: 2707764.037 | G54: 95330.38088 | H54: 2803094.418 | I54: 2910925.498 | J54: 2990912.407 | K54: 2695414

Sheet ITS
C1: INFORMATION TECHNOLOGY SERVICES
C2: REFERENCE BUDGET
C3: APRIL 2018 TO MARCH 2019
D4: 5012 | E4: 5013 | F4: 5014 | H4: 2018/19 | I4: 2019/20 | J4: 2020/21 | K4: 2017/18
D5: INFO TECH | E5: TECH | F5: PHONE CO | G5: CARRY | H5: REF'NCE | I5: PROJ. | J5: PROJ. | K5: APPROVED
C6: EXPENDITURE: | D6: SERV | E6: RPLC. | G6: FWRD | H6: BUDGET | I6: BUDGET | J6: BUDGET | K6: BUDGET
A7: 003 | C7: F.T. Support | D7: 874434.55 | E7: 0 | F7: 0 | G7: 0 | H7: 874434.55 | I7: 895698.2532 | J7: 898573.0219 | K7: 853005
A8: 004/005 | C8: P.T./Student Assistants/Casual | D8: 23168.37792 | E8: 0 | F8: 0 | G8: 0 | H8: 23168.37792 | I8: 23359.51703 | J8: 23739.10919 | K8: 23101
A9: 099 | C9: Recoveries | D9: 0 | E9: 0 | F9: 0 | G9: 0 | H9: 0 | I9: 0 | J9: 0
A10: 100 | C10: Benefits | D10: 183110.9973 | E10: 0 | F10: 0 | G10: 0 | H10: 183110.9973 | I10: 183811.554 | J10: 184462.4262 | K10: 178726
C11: SUB-TOTAL: SALARIES & BENEFITS: | D11: 1080713.925 | E11: 0 | F11: 0 | G11: 0 | H11: 1080713.925 | I11: 1102869.324 | J11: 1106774.557 | K11: 1054832
A12: 201/02/06 | C12: Travel/Moving/Recruitment | D12: 7863.18 | E12: 0 | F12: 0 | G12: 0 | H12: 7863.18 | I12: 8020.4436 | J12: 8180.852472 | K12: 7709
A13: 204/05/10 | C13: Prof. Dev. Allowances | D13: 2000 | E13: 0 | F13: 0 | G13: 0 | H13: 2000 | I13: 2000 | J13: 2000 | K13: 2000
A14: 299 | C14: Recoveries | D14: 0 | E14: 0 | F14: 0 | G14: 0 | H14: 0 | I14: 0 | J14: 0
C15: SUB-TOTAL: TRAVEL & MOVING: | D15: 9863.18 | E15: 0 | F15: 0 | G15: 0 | H15: 9863.18 | I15: 10020.4436 | J15: 10180.85247 | K15: 9709
A16: 301 | C16: Advertising | D16: 240.72 | E16: 0 | F16: 0 | G16: 0 | H16: 240.72 | I16: 245.5344 | J16: 250.445088 | K16: 236
A17: 302 | C17: Special Allowances | D17: 0 | E17: 0 | F17: 0 | G17: 0 | H17: 0 | I17: 0 | J17: 0
A18: 303 | C18: Computer Utilization | D18: 23016.3 | E18: 0 | F18: 0 | G18: 0 | H18: 23016.3 | I18: 23476.626 | J18: 23946.15852 | K18: 22565
A19: 304 | C19: Consumables | D19: 7220.58 | E19: 0 | F19: 0 | G19: 0 | H19: 7220.58 | I19: 7364.9916 | J19: 7512.291432 | K19: 7079
A20: 305 | C20: Photocopying - Printing | D20: 119.34 | E20: 0 | F20: 0 | G20: 0 | H20: 119.34 | I20: 121.7268 | J20: 124.161336 | K20: 117
A21: 307 | C21: Membership Subscriptions | D21: 1930.86 | E21: 0 | F21: 0 | G21: 0 | H21: 1930.86 | I21: 1969.4772 | J21: 2008.866744 | K21: 1893
A22: 308 | C22: Postage | D22: 98.94 | E22: 0 | F22: 0 | G22: 0 | H22: 98.94 | I22: 100.9188 | J22: 102.937176 | K22: 97
A23: 309 | C23: Telephone - Long Dist. | D23: 603.84 | E23: 0 | F23: 0 | G23: 0 | H23: 603.84 | I23: 615.9168 | J23: 628.235136 | K23: 592
A24: 310 | C24: Telephone - Rental | D24: 7564.32 | E24: 0 | F24: 0 | G24: 0 | H24: 7564.32 | I24: 7715.6064 | J24: 7869.918528 | K24: 7416
A25: 311 | C25: Repairs & Maintenance | D25: 34742.22 | E25: 0 | F25: 30000 | G25: 0 | H25: 64742.22 | I25: 66037.0644 | J25: 67357.80569 | K25: 64061
A26: 314 | C26: Consultant | D26: 67038.48 | E26: 0 | F26: 0 | G26: 0 | H26: 67038.48 | I26: 68379.2496 | J26: 69746.83459 | K26: 65724
A27: 328 | C27: Provision for Replacement | D27: 0 | E27: 0 | F27: 42000 | G27: 0 | H27: 42000 | I27: 42840 | J27: 43696.8 | K27: 42000
A28: 317/333 | C28: Special Functions/Sundry | D28: 0 | E28: 0 | F28: 0 | G28: 0 | H28: 0 | I28: 0 | J28: 0 | K28: 0
A29: 342/343 | C29: Trunk Charges/Change in Service | D29: 0 | E29: 0 | F29: 41000 | G29: 0 | H29: 41000 | I29: 41820 | J29: 42656.4 | K29: 41000
A30: 345 | C30: Staff Development | D30: 8605.74 | E30: 0 | F30: 0 | G30: 0 | H30: 8605.74 | I30: 8777.8548 | J30: 8953.411896 | K30: 8437
A31: 354 | C31: Fax Expenses | D31: 0 | E31: 0 | F31: 0 | G31: 0 | H31: 0 | I31: 0 | J31: 0
A32: 357/358 | C32: Software/software licensing | D32: 162522.6 | E32: 50000 | F32: 30000 | G32: 0 | H32: 242522.6 | I32: 247373.052 | J32: 252320.513 | K32: 239630
A33: 361 | C33: Recoverable Purchases | D33: 0 | E33: 0 | F33: 0 | G33: 0 | H33: 0 | I33: 0 | J33: 0
A34: 393 | C34: Equipment - furniture (under $1000) | D34: 0 | E34: 145000 | F34: 6000 | G34: 0 | H34: 151000 | I34: 154020 | J34: 157100.4 | K34: 151000
A35: 396 | C35: Special Recoveries (CMB/Phone Rentals) | D35: -12000 | E35: 0 | F35: -149000 | G35: 0 | H35: -161000 | I35: -164220 | J35: -167504.4 | K35: -161000
A36: 399 | C36: Recoveries | D36: -7140 | E36: 0 | F36: 0 | G36: 0 | H36: -7140 | I36: -7282.8 | J36: -7428.456 | K36: -7140
A37: 799 | C37: Interfund Transfer | D37: 0 | E37: 0 | F37: 0 | G37: 0 | H37: 0 | I37: 0 | J37: 0
A38: *** | C38: Unallocated | D38: 0 | E38: 0 | F38: 0 | G38: 0 | H38: 0 | I38: 0 | J38: 0
C39: SUB-TOTAL: SUPPLIES & OTHER EXPS: | D39: 294563.94 | E39: 195000 | F39: 0 | G39: 0 | H39: 489563.94 | I39: 499355.2188 | J39: 509342.3232 | K39: 483707
A40: 5xx | C40: Revenues | D40: -20000 | E40: 0 | F40: 0 | G40: 0 | H40: -20000 | I40: -20000 | J40: -20000 | K40: -20000
A41: 515 | C41: Inter-dept. transfers | D41: -150000 | E41: 150000 | F41: 0 | G41: 0 | H41: 0
A42: 549 | C42: Technology Fee | D42: 0 | E42: -359000 | F42: 0 | G42: 0 | H42: -359000 | I42: -359000 | J42: -359000 | K42: -359000
C43: SUB-TOTAL: REVENUES | D43: -170000 | E43: -209000 | F43: 0 | G43: 0 | H43: -379000 | I43: -379000 | J43: -379000 | K43: -379000
A44: 901 | C44: Equipment purchases | D44: 0 | E44: 0 | F44: 0 | G44: 0 | H44: 0 | I44: 0 | J44: 0
C45: SUB-TOTAL: RENOV & EQUIP: | D45: 0 | E45: 0 | F45: 0 | G45: 0 | H45: 0 | I45: 0 | J45: 0 | K45: 0
C46: ANNUAL BUDGET: | D46: 1215141.045 | E46: -14000 | F46: 0 | G46: 0 | H46: 1201141.045 | I46: 1233244.987 | J46: 1247297.733 | K46: 1169248

Sheet Arts
C1: BRANDON UNIVERSITY ** FACULTY OF ARTS **
C2: REFERENCE BUDGET
C3: APRIL 2018 TO MARCH 2019
D4: 4001 | E4: 4002 | F4: 4003 | G4: 4004 | H4: 4005 | I4: 4006 | J4: 4007 | K4: 4008 | L4: 4009 | M4: 4010 | N4: 4011 | O4: 4013 | P4: 4014 | Q4: 4015 | R4: 4016 | S4: 4017 | T4: 4018 | U4: 4019 | V4: 4099 | W4: 2018/19 | X4: 2019/20 | Y4: 2020/21 | Z4: 2017/18
J5: G&W's | O5: NATIVE STUDIES | Q5: BUS | R5: VISUAL | T5: Archeology | U5: RURAL | V5: CARRY | W5: REF'NCE | X5: PROJ. | Y5: PROJ. | Z5: APPROVED
C6: EXPENDITURE: | D6: DEAN | E6: DRAMA | F6: ECON | G6: ENGL | H6: HIST | I6: LANG | J6: STUDIES | K6: PHIL | L6: POL SCI | M6: RELIG | N6: SOC | O6: NS | P6: CLN SPEC | Q6: ADMIN | R6: ARTS | S6: ANTHRO | T6: Field School | U6: DEV. | V6: FORWARD | W6: BUDGET | X6: BUDGET | Y6: BUDGET | Z6: BUDGET
A7: 001 | C7: Acad./I.A. | D7: 126121.55 | E7: 138775.05 | F7: 370305.1188 | G7: 724135.1062 | H7: 787656.5563 | I7: 308381.4062 | J7: 51816.39687 | K7: 313838.9813 | L7: 322735.7875 | M7: 383624.4938 | N7: 666964.9219 | O7: 461897.4 | P7: 105074.7688 | Q7: 343046.6262 | R7: 493134.7188 | S7: 314518.3988 | T7: 0 | U7: 368956.2037 | V7: 0 | W7: 6280983.485 | X7: 6533606.809 | Y7: 6852483.146 | Z7: 6023182
A8: 002 | C8: Sessionals | D8: 482680.7 | E8: 0 | F8: 0 | G8: 0 | H8: 0 | I8: 0 | J8: 0 | K8: 0 | L8: 0 | M8: 0 | N8: 0 | O8: 0 | P8: 0 | Q8: 0 | R8: 0 | S8: 0 | T8: 6205.35 | U8: 0 | V8: 0 | W8: 488886.05 | X8: 488886.05 | Y8: 488886.05 | Z8: 476962
A9: 003 | C9: F.T. Support | D9: 163474.42 | E9: 0 | F9: 0 | G9: 0 | H9: 0 | I9: 0 | J9: 0 | K9: 0 | L9: 0 | M9: 0 | N9: 0 | O9: 0 | P9: 0 | Q9: 0 | R9: 0 | S9: 0 | T9: 0 | U9: 0 | V9: 0 | W9: 163474.42 | X9: 167561.2805 | Y9: 167561.2805 | Z9: 160270
A10: 004 | C10: P.T. Support | D10: 0 | E10: 0 | F10: 0 | G10: 0 | H10: 0 | I10: 0 | J10: 0 | K10: 0 | L10: 0 | M10: 0 | N10: 0 | O10: 0 | P10: 0 | Q10: 0 | R10: 0 | S10: 0 | T10: 0 | U10: 0 | V10: 0 | W10: 0 | X10: 0 | Y10: 0
A11: 005 | C11: O.T./Student Assistants/Casual | D11: 50703.455 | E11: 0 | F11: 0 | G11: 0 | H11: 0 | I11: 0 | J11: 0 | K11: 0 | L11: 0 | M11: 0 | N11: 0 | O11: 0 | P11: 0 | Q11: 0 | R11: 18486.76292 | S11: 0 | T11: 663.9308333 | U11: 0 | V11: 0 | W11: 69854.14875 | X11: 70430.44548 | Y11: 71574.94022 | Z11: 69652
A12: 012 | C12: Cost Recovery Sessionals | D12: 0 | E12: 0 | F12: 0 | G12: 0 | H12: 0 | I12: 0 | J12: 0 | K12: 0 | L12: 0 | M12: 0 | N12: 0 | O12: 0 | Q12: 0 | R12: 0 | S12: 0 | T12: 0 | U12: 0 | V12: 0 | W12: 0 | X12: 0 | Y12: 0 | Z12: 0
A13: 100 | C13: Benefits | D13: 119332.1181 | E13: 21510.13275 | F13: 61100.34459 | G13: 128171.9138 | H13: 133901.6146 | I13: 55817.03453 | J13: 9223.318644 | K13: 56804.85561 | L13: 51637.726 | M13: 66367.03742 | N13: 118719.7561 | O13: 78522.558 | P13: 17652.56115 | Q13: 72382.83814 | R13: 89533.75929 | S13: 53782.64619 | T13: 618.235275 | U13: 72315.41593 | V13: 0 | W13: 1207393.866 | X13: 1452096.917 | Y13: 1516101.083 | Z13: 1176633
A14: 099/199 | C14: Recoveries | D14: 0 | E14: 0 | F14: 0 | G14: 0 | H14: 0 | I14: 0 | J14: 0 | K14: 0 | L14: 0 | M14: 0 | N14: 0 | O14: 0 | P14: 0 | Q14: 0 | R14: 0 | S14: 0 | T14: 0 | U14: 0 | V14: 0 | W14: 0 | X14: 0 | Y14: 0
C15: SUB-TOTAL: SALARIES & BENEFITS: | D15: 942312.2431 | E15: 160285.1828 | F15: 431405.4633 | G15: 852307.0201 | H15: 921558.1708 | I15: 364198.4408 | J15: 61039.71552 | K15: 370643.8369 | L15: 374373.5135 | M15: 449991.5312 | N15: 785684.678 | O15: 540419.958 | P15: 122727.3299 | Q15: 415429.4644 | R15: 601155.241 | S15: 368301.0449 | T15: 7487.516108 | U15: 441271.6197 | V15: 0 | W15: 8210591.97 | X15: 8712581.502 | Y15: 9096606.5 | Z15: 7906699
A16: 201/02 | C16: Travel/Moving | D16: 31054.92 | E16: 0 | F16: 0 | G16: 0 | H16: 0 | I16: 0 | J16: 0 | K16: 0 | L16: 0 | M16: 0 | N16: 0 | O16: 0 | P16: 6875.82 | Q16: 0 | R16: 0 | S16: 0 | T16: 1418.82 | U16: 0 | V16: 0 | W16: 39349.56 | X16: 40136.5512 | Y16: 40939.28222 | Z16: 38578
A17: 204/05/10 | C17: Prof. Dev. Allowances | D17: 2000 | E17: 2000 | F17: 6000 | G17: 12000 | H17: 12000 | I17: 6000 | J17: 0 | K17: 4000 | L17: 6000 | M17: 6000 | N17: 12000 | O17: 6000 | P17: 2000 | Q17: 6000 | R17: 10000 | S17: 6000 | T17: 0 | U17: 6000 | V17: 0 | W17: 104000 | X17: 104000 | Y17: 104000 | Z17: 106000
A18: 299 | C18: Recoveries | D18: 0 | E18: 0 | F18: 0 | G18: 0 | H18: 0 | I18: 0 | J18: 0 | K18: 0 | L18: 0 | M18: 0 | N18: 0 | O18: 0 | P18: 0 | Q18: 0 | R18: 0 | S18: 0 | T18: 0 | U18: 0 | V18: 0 | W18: 0 | X18: 0 | Y18: 0 | Z18: 0
C19: SUB-TOTAL: TRAVEL & MOVING: | D19: 33054.92 | E19: 2000 | F19: 6000 | G19: 12000 | H19: 12000 | I19: 6000 | J19: 0 | K19: 4000 | L19: 6000 | M19: 6000 | N19: 12000 | O19: 6000 | P19: 8875.82 | Q19: 6000 | R19: 10000 | S19: 6000 | T19: 1418.82 | U19: 6000 | V19: 0 | W19: 143349.56 | X19: 144136.5512 | Y19: 144939.2822 | Z19: 144578
A20: 301 | C20: Advertising | D20: 1388.22 | E20: 0 | F20: 0 | G20: 0 | H20: 0 | I20: 0 | J20: 0 | K20: 0 | L20: 0 | M20: 0 | N20: 0 | O20: 0 | P20: 1253.58 | Q20: 0 | R20: 0 | S20: 0 | T20: 0 | U20: 0 | V20: 0 | W20: 2641.8 | X20: 2694.636 | Y20: 2748.52872 | Z20: 2590
A21: 302 | C21: Special Allowances | D21: 179.52 | E21: 0 | F21: 0 | G21: 0 | H21: 0 | I21: 0 | J21: 0 | K21: 0 | L21: 0 | M21: 119.34 | N21: 0 | O21: 0 | P21: 2113.44 | Q21: 0 | R21: 9551.28 | S21: 0 | T21: 362.1 | U21: 1205.64 | V21: 0 | W21: 13531.32 | X21: 13801.9464 | Y21: 14077.98533 | Z21: 13266
A22: 304 | C22: Consumables | D22: 1699.32 | E22: 482.46 | F22: 603.84 | G22: 1743.18 | H22: 844.56 | I22: 602.82 | J22: 2540.82 | K22: 551.82 | L22: 778.26 | M22: 1299.48 | N22: 724.2 | O22: 1089.36 | P22: 1034.28 | Q22: 1627.92 | R22: 23503.86 | S22: 725.22 | T22: 1810.5 | U22: 2416.38 | V22: 0 | W22: 44078.28 | X22: 44959.8456 | Y22: 45859.04251 | Z22: 43214
A23: 305 | C23: Photocopying - Printing | D23: 699.72 | E23: 240.72 | F23: 1086.3 | G23: 2051.22 | H23: 1810.5 | I23: 1691.16 | J23: 362.1 | K23: 2774.4 | L23: 423.3 | M23: 783.36 | N23: 2535.72 | O23: 1043.46 | P23: 1755.42 | Q23: 1448.4 | R23: 2113.44 | S23: 603.84 | T23: 0 | U23: 1569.78 | V23: 0 | W23: 22992.84 | X23: 23452.6968 | Y23: 23921.75074 | Z23: 22542
A24: 306 | C24: Films - Film Rental | D24: 0 | E24: 0 | F24: 0 | G24: 0 | H24: 0 | I24: 0 | J24: 0 | K24: 0 | L24: 0 | M24: 0 | N24: 0 | O24: 0 | P24: 0 | Q24: 0 | R24: 0 | S24: 0 | T24: 0 | U24: 0 | V24: 0 | W24: 0 | X24: 0 | Y24: 0 | Z24: 0
A25: 307 | C25: Membership Subscriptions | D25: 1557.54 | E25: 0 | F25: 0 | G25: 0 | H25: 0 | I25: 0 | J25: 0 | K25: 0 | L25: 0 | M25: 0 | N25: 0 | O25: 0 | P25: 0 | Q25: 0 | R25: 0 | S25: 0 | T25: 0 | U25: 0 | V25: 0 | W25: 1557.54 | X25: 1588.6908 | Y25: 1620.464616 | Z25: 1527
A26: 308 | C26: Postage | D26: 566.1 | E26: 217.26 | F26: 119.34 | G26: 362.1 | H26: 220.32 | I26: 240.72 | J26: 0 | K26: 119.34 | L26: 301.92 | M26: 119.34 | N26: 362.1 | O26: 482.46 | P26: 362.1 | Q26: 119.34 | R26: 482.46 | S26: 240.72 | T26: 0 | U26: 119.34 | V26: 0 | W26: 4434.96 | X26: 4523.6592 | Y26: 4614.132384 | Z26: 4348
A27: 309 | C27: Telephone - Long Dist. | D27: 482.46 | E27: 92.82 | F27: 75.48 | G27: 240.72 | H27: 119.34 | I27: 145.86 | J27: 0 | K27: 482.46 | L27: 179.52 | M27: 119.34 | N27: 231.54 | O27: 362.1 | P27: 899.64 | Q27: 119.34 | R27: 277.44 | S27: 482.46 | T27: 0 | U27: 240.72 | V27: 0 | W27: 4551.24 | X27: 4642.2648 | Y27: 4735.110096 | Z27: 4462
A28: 310 | C28: Telephone - Rental | D28: 22374.72 | E28: 0 | F28: 0 | G28: 0 | H28: 0 | I28: 0 | J28: 0 | K28: 0 | L28: 0 | M28: 0 | N28: 0 | O28: 0 | P28: 0 | Q28: 0 | R28: 0 | S28: 0 | T28: 0 | U28: 0 | V28: 0 | W28: 22374.72 | X28: 22822.2144 | Y28: 23278.65869 | Z28: 21936
A29: 311 | C29: Repairs & Maintenance | D29: 542.64 | E29: 0 | F29: 0 | G29: 0 | H29: 0 | I29: 0 | J29: 0 | K29: 0 | L29: 0 | M29: 0 | N29: 0 | O29: 0 | P29: 0 | Q29: 0 | R29: 4463.52 | S29: 0 | T29: 0 | U29: 0 | V29: 0 | W29: 5006.16 | X29: 5106.2832 | Y29: 5208.408864 | Z29: 4908
A30: 312 | C30: Other Rentals | D30: 2016.54 | E30: 0 | F30: 0 | G30: 0 | H30: 0 | I30: 0 | J30: 0 | K30: 0 | L30: 0 | M30: 0 | N30: 0 | O30: 0 | P30: 0 | Q30: 0 | R30: 0 | S30: 0 | T30: 0 | U30: 0 | V30: 0 | W30: 2016.54 | X30: 2056.8708 | Y30: 2098.008216 | Z30: 1977
A31: 315 | C31: AV Equipment | D31: 0 | E31: 0 | F31: 0 | G31: 0 | H31: 0 | I31: 0 | J31: 0 | K31: 0 | L31: 0 | M31: 0 | N31: 0 | O31: 0 | P31: 0 | Q31: 0 | R31: 0 | S31: 0 | T31: 0 | U31: 0 | V31: 0 | W31: 0 | X31: 0 | Y31: 0 | Z31: 1978
A32: 333 | C32: Sundry | D32: 0 | E32: 0 | F32: 0 | G32: 0 | H32: 0 | I32: 0 | J32: 0 | K32: 0 | L32: 0 | M32: 0 | N32: 0 | O32: 0 | P32: 0 | Q32: 0 | R32: 0 | S32: 0 | T32: 0 | U32: 0 | V32: 0 | W32: 0 | X32: 0 | Y32: 0 | Z32: 1979
A33: 314 | C33: Consulting/Professional Fees | D33: 0 | E33: 0 | F33: 0 | G33: 0 | H33: 0 | I33: 0 | J33: 0 | K33: 0 | L33: 0 | M33: 0 | N33: 0 | O33: 0 | P33: 0 | Q33: 0 | R33: 0 | S33: 0 | T33: 0 | U33: 0 | V33: 0 | W33: 0 | X33: 0 | Y33: 0
A34: 317 | C34: Special Functions | D34: 0 | E34: 0 | F34: 0 | G34: 0 | H34: 0 | I34: 0 | J34: 0 | K34: 0 | L34: 0 | M34: 0 | N34: 0 | O34: 0 | P34: 0 | Q34: 0 | R34: 0 | S34: 0 | T34: 0 | U34: 0 | V34: 0 | W34: 0 | X34: 0 | Y34: 0
A35: 328 | C35: Provision for Replacement | D35: 0 | E35: 0 | F35: 0 | G35: 0 | H35: 0 | I35: 0 | J35: 0 | K35: 0 | L35: 0 | M35: 0 | N35: 0 | O35: 0 | P35: 0 | Q35: 0 | R35: 0 | S35: 0 | T35: 0 | U35: 0 | V35: 0 | W35: 0 | X35: 0 | Y35: 0
A36: 345 | C36: Staff Development | D36: 0 | E36: 0 | F36: 0 | G36: 0 | H36: 0 | I36: 0 | J36: 0 | K36: 0 | L36: 0 | M36: 0 | N36: 0 | O36: 0 | P36: 0 | Q36: 0 | R36: 0 | S36: 0 | T36: 0 | U36: 0 | V36: 0 | W36: 0 | X36: 0 | Y36: 0
A37: 354 | C37: Fax Expenses | D37: 783.36 | E37: 0 | F37: 0 | G37: 0 | H37: 0 | I37: 0 | J37: 0 | K37: 0 | L37: 0 | M37: 0 | N37: 0 | O37: 156.06 | P37: 84.66 | Q37: 0 | R37: 0 | S37: 0 | T37: 0 | U37: 0 | V37: 0 | W37: 1024.08 | X37: 1044.5616 | Y37: 1065.452832 | Z37: 1004
A38: 357/358 | C38: Software Licensing/Support | D38: 1237.26 | E38: 0 | F38: 0 | G38: 0 | H38: 0 | I38: 0 | J38: 0 | K38: 0 | L38: 0 | M38: 0 | N38: 0 | O38: 0 | P38: 0 | Q38: 0 | R38: 0 | S38: 0 | T38: 0 | U38: 0 | V38: 0 | W38: 1237.26 | X38: 1262.0052 | Y38: 1287.245304 | Z38: 1213
A39: 378 | C39: Special Allocations (scholarships) | D39: 2209.32 | E39: 0 | F39: 0 | G39: 0 | H39: 0 | I39: 0 | J39: 0 | K39: 0 | L39: 0 | M39: 0 | N39: 0 | O39: 0 | P39: 498.78 | Q39: 0 | R39: 0 | S39: 0 | T39: 0 | U39: 0 | V39: 0 | W39: 2708.1 | X39: 2762.262 | Y39: 2817.50724 | Z39: 2655
A40: 393 | C40: Furniture <$1000 | D40: 6130.2 | E40: 0 | F40: 0 | G40: 0 | H40: 0 | I40: 0 | J40: 0 | K40: 0 | L40: 0 | M40: 0 | N40: 0 | O40: 0 | P40: 0 | Q40: 0 | R40: 0 | S40: 0 | T40: 0 | U40: 0 | V40: 0 | W40: 6130.2 | X40: 6252.804 | Y40: 6377.86008 | Z40: 6010
A41: 395 | C41: Library Resources | D41: 0 | E41: 0 | F41: 0 | G41: 0 | H41: 0 | I41: 0 | J41: 0 | K41: 0 | L41: 0 | M41: 0 | N41: 0 | O41: 0 | P41: 0 | Q41: 0 | R41: 0 | S41: 0 | T41: 0 | U41: 0 | V41: 0 | W41: 0 | X41: 0 | Y41: 0 | Z41: 0
A42: 399 | C42: Recoveries | D42: 0 | E42: 0 | F42: 0 | G42: 0 | H42: 0 | I42: 0 | J42: 0 | K42: 0 | L42: 0 | M42: 0 | N42: 0 | O42: 0 | P42: 0 | Q42: 0 | R42: 0 | S42: 0 | T42: 0 | U42: 0 | V42: 0 | W42: 0 | X42: 0 | Y42: 0
A43: 474 | C43: Student Recruitment | D43: 0 | E43: 0 | F43: 0 | G43: 0 | H43: 0 | I43: 0 | J43: 0 | K43: 0 | L43: 0 | M43: 0 | N43: 0 | O43: 0 | P43: 0 | Q43: 0 | R43: 0 | S43: 0 | T43: 0 | U43: 0 | V43: 0 | W43: 0 | X43: 0 | Y43: 0
A44: 799 | C44: Interfund Transfer | P44: 0
A45: *** | C45: Unallocated | D45: 0 | E45: 0 | F45: 0 | G45: 0 | H45: 0 | I45: 0 | J45: 0 | K45: 0 | L45: 0 | M45: 0 | N45: 0 | O45: 0 | P45: 0 | Q45: 0 | R45: 0 | S45: 0 | T45: 0 | U45: 0 | V45: 0 | W45: 0 | X45: 0 | Y45: 0
C46: SUB-TOTAL: SUPPLIES & OTHER EXPS: | D46: 41866.92 | E46: 1033.26 | F46: 1884.96 | G46: 4397.22 | H46: 2994.72 | I46: 2680.56 | J46: 2902.92 | K46: 3928.02 | L46: 1683 | M46: 2440.86 | N46: 3853.56 | O46: 3133.44 | P46: 8001.9 | Q46: 3315 | R46: 40392 | S46: 2052.24 | T46: 2172.6 | U46: 5551.86 | V46: 0 | W46: 134285.04 | X46: 136970.7408 | Y46: 139710.1556 | Z46: 135609
A47: 525 | C47: Cost Recovery Surplus/(Deficit) | D47: 0 | E47: 0 | F47: 0 | G47: 0 | H47: 0 | I47: 0 | J47: 0 | K47: 0 | L47: 0 | M47: 0 | N47: 0 | O47: 0 | Q47: 0 | R47: 0 | S47: 0 | T47: 0 | U47: 0 | V47: 0 | W47: 0 | X47: 0 | Y47: 0 | Z47: 0
A48: 503 | C48: BUF Donations | D48: 0 | E48: 0 | F48: 0 | G48: 0 | H48: 0 | I48: 0 | J48: 0 | K48: 0 | L48: 0 | M48: 0 | N48: 0 | O48: 0 | Q48: 0 | R48: 0 | S48: 0 | T48: 0 | U48: 0 | V48: 0 | W48: 0 | X48: 0 | Y48: 0
A49: 511 | C49: Non-core Tuition Revenue | D49: 0 | E49: 0 | F49: 0 | G49: 0 | H49: 0 | I49: 0 | J49: 0 | K49: 0 | L49: 0 | M49: 0 | N49: 0 | O49: 0 | Q49: 0 | R49: 0 | S49: 0 | T49: 0 | U49: 0 | V49: 0 | W49: 0 | X49: 0 | Y49: 0 | Z49: 0
A50: 552/553 | C50: Spring/Summer Tuition Revenue | D50: 0 | E50: 0 | F50: 0 | G50: 0 | H50: 0 | I50: 0 | J50: 0 | K50: 0 | L50: 0 | M50: 0 | N50: 0 | O50: 0 | Q50: 0 | R50: 0 | S50: 0 | T50: 0 | U50: 0 | V50: 0 | W50: 0 | X50: 0 | Y50: 0 | Z50: 0
A51: 559 | C51: 15% Tuition Assessment | D51: 0 | E51: 0 | F51: 0 | G51: 0 | H51: 0 | I51: 0 | J51: 0 | K51: 0 | L51: 0 | M51: 0 | N51: 0 | O51: 0 | Q51: 0 | R51: 0 | S51: 0 | T51: 0 | U51: 0 | V51: 0 | W51: 0 | X51: 0 | Y51: 0 | Z51: 0
A52: 5xx | C52: Revenues | D52: 0 | E52: 0 | F52: 0 | G52: 0 | H52: 0 | I52: 0 | J52: 0 | K52: 0 | L52: 0 | M52: 0 | N52: 0 | O52: 0 | Q52: 0 | R52: -8796 | S52: 0 | T52: 0 | U52: 0 | V52: 0 | W52: -8796 | X52: -8796 | Y52: -8796 | Z52: -8796
C53: SUB-TOTAL: REVENUES: | D53: 0 | E53: 0 | F53: 0 | G53: 0 | H53: 0 | I53: 0 | J53: 0 | K53: 0 | L53: 0 | M53: 0 | N53: 0 | O53: 0 | P53: 0 | Q53: 0 | R53: -8796 | S53: 0 | T53: 0 | U53: 0 | V53: 0 | W53: -8796 | X53: -8796 | Y53: -8796 | Z53: -8796
A54: 9xx | C54: Equipment Purchases/Renovations | J54: 0 | R54: 20000 | V54: 0 | W54: 20000 | X54: 20000 | Y54: 20000 | Z54: 20000
C55: SUB-TOTAL: RENOV & EQUIP | D55: 0 | E55: 0 | F55: 0 | G55: 0 | H55: 0 | I55: 0 | J55: 0 | K55: 0 | L55: 0 | M55: 0 | N55: 0 | O55: 0 | P55: 0 | Q55: 0 | R55: 20000 | S55: 0 | T55: 0 | U55: 0 | V55: 0 | W55: 20000 | X55: 20000 | Y55: 20000 | Z55: 20000
C56: TOTAL BUDGET: | D56: 1017234.083 | E56: 163318.4428 | F56: 439290.4233 | G56: 868704.2401 | H56: 936552.8908 | I56: 372879.0008 | J56: 63942.63552 | K56: 378571.8569 | L56: 382056.5135 | M56: 458432.3912 | N56: 801538.238 | O56: 549553.398 | P56: 139605.0499 | Q56: 424744.4644 | R56: 662751.241 | S56: 376353.2849 | T56: 11078.93611 | U56: 452823.4797 | V56: 0 | W56: 8499430.57 | X56: 9004892.794 | Y56: 9392459.938 | Z56: 8198090

Sheet RDI
C1: BRANDON UNIVERSITY ** RURAL DEVELOPMENT INSTITUTE **
C2: REFERENCE BUDGET
C3: APRIL 2018 TO MARCH 2019
D4: 4801 | E4: 4899 | F4: 2018/19 | G4: 2019/20 | H4: 2020/21 | I4: 2017/18
D5: RURAL | E5: CARRY | F5: REF'NCE | G5: PROJ. | H5: PROJ. | I5: APPROVED
C6: EXPENDITURE: | D6: DEV. | E6: FWD | F6: BUDGET | G6: BUDGET | H6: BUDGET | I6: BUDGET
A7: 001 | C7: Academic | D7: 138012.125 | E7: 0 | F7: 138012.125 | G7: 141707.537 | H7: 145476.8572 | I7: 131103
A8: 003 | C8: F.T. Support | D8: 0 | E8: 0 | F8: 0 | G8: 0 | H8: 0
A9: 004/005 | C9: P.T./Student Assistants/Casual | D9: 15503.08583 | E9: 0 | F9: 15503.08583 | G9: 15630.98629 | H9: 15884.98982 | I9: 15458
A10: 100 | C10: Benefits | D10: 25483.525 | E10: 0 | F10: 25483.525 | G10: 31467.70466 | H10: 32272.36941 | I10: 24329
A11: 099/199 | C11: Recoveries | D11: 0 | E11: 0 | F11: 0 | G11: 0 | H11: 0
C12: SUB-TOTAL: SALARIES & BENEFITS: | D12: 178998.7358 | E12: 0 | F12: 178998.7358 | G12: 188806.2279 | H12: 193634.2165 | I12: 170890
A13: 201/02/06 | C13: Travel/Moving/Recruitment | D13: 2068.56 | E13: 0 | F13: 2068.56 | G13: 2109.9312 | H13: 2152.129824 | I13: 2028
A14: 204/05/10 | C14: Prof. Dev. Allowances | D14: 4000 | E14: 0 | F14: 4000 | G14: 4000 | H14: 4000 | I14: 2000
A15: 299 | C15: Recoveries | D15: 0 | E15: 0 | F15: 0 | G15: 0 | H15: 0
C16: SUB-TOTAL: TRAVEL & MOVING: | D16: 6068.56 | E16: 0 | F16: 6068.56 | G16: 6109.9312 | H16: 6152.129824 | I16: 4028
A17: 301 | C17: Advertising | D17: 0 | E17: 0 | F17: 0 | G17: 0 | H17: 0
A18: 302 | C18: Special Allowances | D18: 0 | E18: 0 | F18: 0 | G18: 0 | H18: 0
A19: 304 | C19: Consumables | D19: 1674.84 | E19: 0 | F19: 1674.84 | G19: 1708.3368 | H19: 1742.503536 | I19: 1642
A20: 305 | C20: Photocopying - Printing | D20: 324.36 | E20: 0 | F20: 324.36 | G20: 330.8472 | H20: 337.464144 | I20: 318
A21: 307 | C21: Membership Subscriptions | D21: 0 | E21: 0 | F21: 0 | G21: 0 | H21: 0
A22: 308 | C22: Postage | D22: 0 | E22: 0 | F22: 0 | G22: 0 | H22: 0
A23: 309 | C23: Telephone - Long Dist. | D23: 9.18 | E23: 0 | F23: 9.18 | G23: 9.3636 | H23: 9.550872 | I23: 9
A24: 310 | C24: Telephone - Rental | D24: 959.82 | E24: 0 | F24: 959.82 | G24: 979.0164 | H24: 998.596728 | I24: 941
A25: 311 | C25: Repairs & Maintenance | D25: 0 | E25: 0 | F25: 0 | G25: 0 | H25: 0
A26: 313 | C26: Publications | D26: 0 | E26: 0 | F26: 0 | G26: 0 | H26: 0
A27: 314 | C27: Consulting Fees | D27: 0 | E27: 0 | F27: 0 | G27: 0 | H27: 0
A28: 345 | C28: Staff Development | D28: 0 | E28: 0 | F28: 0 | G28: 0 | H28: 0
A29: 354 | C29: Fax Expenses | D29: 0 | E29: 0 | F29: 0 | G29: 0 | H29: 0
A30: 358 | C30: Software Licensing/Support | D30: 0 | E30: 0 | F30: 0 | G30: 0 | H30: 0
A31: 378 | C31: Special Allocations | D31: 0 | E31: 0 | F31: 0 | G31: 0 | H31: 0
A32: 393 | C32: Equipment - Furniture (Under $1000) | D32: 0 | E32: 0 | F32: 0 | G32: 0 | H32: 0
A33: 397 | C33: Overheads (2361) | D33: 0 | E33: 0 | F33: 0 | G33: 0 | H33: 0
A34: 399 | C34: Recoveries | D34: 0 | E34: 0 | F34: 0 | G34: 0 | H34: 0
A35: 799 | C35: Interfund Transfer | D35: 0 | E35: 0 | F35: 0 | G35: 0 | H35: 0
A36: *** | C36: Unallocated | D36: 0 | E36: 0 | F36: 0 | G36: 0 | H36: 0
C37: SUB-TOTAL: SUPPLIES & OTHER EXPS: | D37: 2968.2 | E37: 0 | F37: 2968.2 | G37: 3027.564 | H37: 3088.11528 | I37: 2910
A38: 5xx | C38: Revenues | D38: 0 | E38: 0 | F38: 0 | G38: 0 | H38: 0
C39: SUB-TOTAL REVENUES: | D39: 0 | E39: 0 | F39: 0 | G39: 0 | H39: 0 | I39: 0
A40: 901 | C40: Equipment Purchases | D40: 0 | E40: 0 | F40: 0 | G40: 0 | H40: 0
C41: SUB-TOTAL: RENOV & EQUIP | D41: 0 | E41: 0 | F41: 0 | G41: 0 | H41: 0 | I41: 0
C42: ANNUAL BUDGET: | D42: 188035.4958 | E42: 0 | F42: 188035.4958 | G42: 197943.7231 | H42: 202874.4616 | I42: 177828

Sheet Science
C1: BRANDON UNIVERSITY ** FACULTY OF SCIENCE **
C2: REFERENCE BUDGET
C3: APRIL 2018 TO MARCH 2019
D4: 4101 | E4: 4102 | F4: 4103 | G4: 4104 | H4: 4105 | I4: 4106 | J4: 4107 | K4: 4108 | L4: 4111 | M4: 4112 | N4: 4199 | O4: 2018/19 | P4: 2019/20 | Q4: 2020/21 | R4: 2017/18
I5: MATH | J5: PHYS | N5: CARRY | O5: REF'NCE | P5: PROJ. | Q5: PROJ. | R5: APPROVED
C6: EXPENDITURE: | D6: DEAN | E6: BIOLOGY | F6: CHEM | G6: GEOG | H6: GEOL | I6: COM SCI | J6: ASTRON | K6: PSYCH | L6: ADES | M6: MSc | N6: FWRD | O6: BUDGET | P6: BUDGET | Q6: BUDGET | R6: BUDGET
A7: 001 | C7: Acad./I.A. | D7: 133752.8258 | E7: 1372907.419 | F7: 561441.3917 | G7: 636085.6356 | H7: 742330.0363 | I7: 1305300.136 | J7: 713995.5792 | K7: 960995.2812 | L7: 359330.1125 | M7: 184471.1875 | N7: 0 | O7: 6970609.605 | P7: 7115516.861 | Q7: 7267692.472 | R7: 6647385
A8: 002 | C8: Sessional/Topics | D8: 127612.5 | E8: 0 | F8: 0 | G8: 0 | H8: 0 | I8: 0 | J8: 0 | K8: 0 | L8: 0 | N8: 0 | O8: 127612.5 | P8: 127612.5 | Q8: 127612.5 | R8: 124500
A9: 003/004 | C9: F.T./P.T. Support | D9: 159327.44 | E9: 0 | F9: 0 | G9: 0 | H9: 0 | I9: 0 | J9: 0 | K9: 0 | L9: 0 | M9: 21956.3 | N9: 0 | O9: 181283.74 | P9: 195565.2285 | Q9: 195566.2485 | R9: 161468
A10: 005 | C10: P.T./Student Assistants/Casual | D10: 5000 | E10: 10215.16667 | F10: 8305.152917 | G10: 5236.227917 | H10: 4429.882917 | I10: 32105.36833 | J10: 6141.861667 | K10: 19674.21625 | L10: 2572.48125 | M10: 62051.45 | N10: 0 | O10: 155731.8079 | P10: 126658.1245 | Q10: 128111.308 | R10: 153975
A11: 012 | C11: Cost Recovery Sessionals | D11: 0 | E11: 0 | F11: 0 | G11: 0 | H11: 0 | I11: 0 | J11: 0 | K11: 0 | L11: 0 | N11: 0 | O11: 0 | P11: 0 | Q11: 0 | R11: 0
A12: 100 | C12: Benefits | D12: 76624.69785 | E12: 229598.3492 | F12: 99135.89876 | G12: 109666.0387 | H12: 126202.4263 | I12: 200610.8257 | J12: 126744.1896 | K12: 157887.7891 | L12: 62247.24612 | M12: 43493.58788 | N12: 0 | O12: 1232211.049 | P12: 1502787.267 | Q12: 1533270.325 | R12: 1216224
A13: 099/199 | C13: Recoveries | D13: 0 | E13: 0 | F13: 0 | G13: 0 | H13: -43899 | I13: 0 | J13: 0 | K13: 0 | L13: 0 | N13: 0 | O13: -43899 | P13: -51416.38106 | Q13: -52630.90443 | R13: -43899.33333
C14: SUB-TOTAL: SALARIES & BENEFITS: | D14: 502317.4637 | E14: 1612720.935 | F14: 668882.4433 | G14: 750987.9022 | H14: 829063.3455 | I14: 1538016.33 | J14: 846881.6304 | K14: 1138557.287 | L14: 424149.8399 | M14: 311972.5254 | N14: 0 | O14: 8623549.702 | P14: 9016723.6 | Q14: 9199621.949 | R14: 8259652.667
A15: 201/02 | C15: Travel/Moving | D15: 31606.74 | E15: 365.16 | F15: 408 | G15: 2765.22 | H15: 2013.48 | I15: 510 | J15: 243.78 | K15: 0 | L15: 4134.06 | M15: 2040 | N15: 0 | O15: 44086.44 | P15: 44968.1688 | Q15: 45867.53218 | R15: 43222
A16: 204/05/10 | C16: Prof. Dev. Allowances | D16: 3200 | E16: 22000 | F16: 12000 | G16: 10000 | H16: 11000 | I16: 19000 | J16: 10000 | K16: 16000 | L16: 6000 | M16: 4000 | N16: 0 | O16: 113200 | P16: 113200 | Q16: 113200 | R16: 111200
A17: 206 | C17: Student Recruitment | D17: 0 | E17: 0 | F17: 0 | G17: 0 | H17: 0 | I17: 0 | J17: 0 | K17: 0 | L17: 0 | N17: 0 | O17: 0 | P17: 0 | Q17: 0 | R17: 0
C18: SUB-TOTAL: TRAVEL & MOVING: | D18: 34806.74 | E18: 22365.16 | F18: 12408 | G18: 12765.22 | H18: 13013.48 | I18: 19510 | J18: 10243.78 | K18: 16000 | L18: 10134.06 | M18: 6040 | N18: 0 | O18: 157286.44 | P18: 158168.1688 | Q18: 159067.5322 | R18: 154422
A19: 301 | C19: Advertising | D19: 4618.56 | E19: 0 | F19: 0 | G19: 0 | H19: 0 | I19: 0 | J19: 0 | K19: 0 | L19: 5801.76 | M19: 0 | N19: 0 | O19: 10420.32 | P19: 10628.7264 | Q19: 10841.30093 | R19: 10216
A20: 302 | C20: Special Allowances | D20: 1413.72 | E20: 0 | F20: 0 | G20: 0 | H20: 0 | I20: 0 | J20: 0 | K20: 0 | L20: 0 | M20: 0 | N20: 0 | O20: 1413.72 | P20: 1441.9944 | Q20: 1470.834288 | R20: 1386
A21: 304 | C21: Consumables | D21: 7289.94 | E21: 22878.6 | F21: 13425.24 | G21: 4237.08 | H21: 5593.68 | I21: 2661.18 | J21: 3109.98 | K21: 2038.98 | L21: 1531.02 | M21: 13025.4 | N21: 0 | O21: 75791.1 | P21: 77306.922 | Q21: 78853.06044 | R21: 74305
A22: 305 | C22: Photocopying - Printing | D22: 5519.22 | E22: 8240.58 | F22: 4992.9 | G22: 5116.32 | H22: 4973.52 | I22: 5530.44 | J22: 2143.02 | K22: 6460.68 | L22: 2153.22 | M22: 0 | N22: 0 | O22: 45129.9 | P22: 46032.498 | Q22: 46953.14796 | R22: 44245
A23: 306 | C23: Films - Film Rental | D23: 0 | E23: 0 | F23: 0 | G23: 0 | H23: 0 | I23: 0 | J23: 0 | K23: 0 | L23: 0 | M23: 0 | N23: 0 | O23: 0 | P23: 0 | Q23: 0 | R23: 0
A24: 307 | C24: Membership Subscriptions | D24: 428.4 | E24: 208.08 | F24: 67.32 | G24: 416.16 | H24: 510 | I24: 1040.4 | J24: 104.04 | K24: 65.28 | L24: 1585.08 | M24: 0 | N24: 0 | O24: 4424.76 | P24: 4513.2552 | Q24: 4603.520304 | R24: 4338
A25: 308 | C25: Postage | D25: 20.4 | E25: 72.42 | F25: 36.72 | G25: 204 | H25: 87.72 | I25: 44.88 | J25: 32.64 | K25: 34.68 | L25: 33.66 | M25: 0 | N25: 0 | O25: 567.12 | P25: 578.4624 | Q25: 590.031648 | R25: 556
A26: 309 | C26: Telephone - Long Dist. | D26: 946.56 | E26: 68.34 | F26: 15.3 | G26: 49.98 | H26: 20.4 | I26: 33.66 | J26: 51 | K26: 8.16 | L26: 27.54 | M26: 0 | N26: 0 | O26: 1220.94 | P26: 1245.3588 | Q26: 1270.265976 | R26: 1197
A27: 310 | C27: Telephone - Rental | D27: 1632 | E27: 4480.86 | F27: 1958.4 | G27: 2170.56 | H27: 2005.32 | I27: 3257.88 | J27: 2622.42 | K27: 2611.2 | L27: 1429.02 | M27: 0 | N27: 0 | O27: 22167.66 | P27: 22611.0132 | Q27: 23063.23346 | R27: 21733
A28: 311 | C28: Repairs & Maintenance | D28: 12128.82 | E28: 4080 | F28: 0 | G28: 0 | H28: 0 | I28: 0 | J28: 104.04 | K28: 0 | L28: 0 | M28: 0 | N28: 0 | O28: 16312.86 | P28: 16639.1172 | Q28: 16971.89954 | R28: 15993
A29: 312 | C29: Rentals | D29: 0 | E29: 0 | F29: 0 | G29: 0 | H29: 0 | I29: 0 | J29: 0 | K29: 0 | L29: 0 | M29: 0 | N29: 0 | O29: 0 | P29: 0 | Q29: 0
A30: 330 | C30: Food Purchases | D30: 0 | E30: 0 | F30: 0 | G30: 0 | H30: 0 | I30: 0 | J30: 0 | K30: 0 | L30: 0 | M30: 0 | N30: 0 | O30: 0 | P30: 0 | Q30: 0
A31: 344 | C31: Animal Care Room | D31: 6623.88 | E31: 0 | F31: 0 | G31: 0 | H31: 0 | I31: 0 | J31: 0 | K31: 0 | L31: 0 | M31: 0 | N31: 0 | O31: 6623.88 | P31: 6756.3576 | Q31: 6891.484752 | R31: 6494
A32: 345 | C32: Staff development | D32: 2414.34 | E32: 0 | F32: 0 | G32: 0 | H32: 0 | I32: 0 | J32: 0 | K32: 0 | L32: 0 | M32: 0 | N32: 0 | O32: 2414.34 | P32: 2462.6268 | Q32: 2511.879336 | R32: 2367
A33: 354 | C33: Fax Expenses | D33: 510 | E33: 0 | F33: 0 | G33: 0 | H33: 0 | I33: 0 | J33: 0 | K33: 0 | L33: 0 | M33: 0 | N33: 0 | O33: 510 | P33: 520.2 | Q33: 530.604 | R33: 500
A34: 357/358 | C34: Software/licensing/support | D34: 4602.24 | E34: 8364 | F34: 264.18 | G34: 1391.28 | H34: 612 | I34: 714 | J34: 0 | K34: 0 | L34: 0 | M34: 0 | N34: 0 | O34: 15947.7 | P34: 16266.654 | Q34: 16591.98708 | R34: 15635
A35: 370 | C35: Work Orders | D35: 3179.34 | E35: 2040 | F35: 0 | G35: 3060 | H35: 260.1 | I35: 186.66 | J35: 0 | K35: 0 | L35: 102 | M35: 0 | O35: 8828.1 | P35: 9004.662 | Q35: 9184.75524 | R35: 8655
A36: 393 | C36: Equipment <$1000 | D36: 4612.44 | E36: 1020 | F36: 1020 | G36: 4661.4 | H36: 1020 | I36: 1020 | J36: 7025.76 | K36: 1020 | L36: 5142.84 | M36: 10200 | N36: 0 | O36: 36742.44 | P36: 37477.2888 | Q36: 38226.83458 | R36: 36022
A37: 395 | C37: Library Resource Materials | D37: 0 | E37: 0 | F37: 0 | G37: 0 | H37: 0 | I37: 0 | J37: 0 | K37: 0 | L37: 0 | M37: 0 | N37: 0 | O37: 0 | P37: 0 | Q37: 0
A38: 399 | C38: Recoveries | D38: -18950 | E38: 0 | F38: 0 | G38: 0 | H38: 0 | I38: 0 | J38: 0 | K38: 0 | L38: 0 | M38: 0 | N38: 0 | O38: -18950 | P38: -19329 | Q38: -19715.58 | R38: -18950
A39: 799 | C39: Interfund Transfer | D39: 0 | E39: 0 | F39: 0 | G39: 0 | H39: 0 | I39: 0 | J39: 0 | K39: 0 | L39: 0 | M39: 0 | N39: 0 | O39: 0 | P39: 0 | Q39: 0
A40: *** | C40: Unallocated | D40: 0 | E40: 0 | F40: 0 | G40: 0 | H40: 0 | I40: 0 | J40: 0 | K40: 0 | L40: 0 | M40: 0 | N40: 0 | O40: 0 | P40: 0 | Q40: 0
C41: SUB-TOTAL: SUPPLIES & OTHER EXPS: | D41: 36989.86 | E41: 51452.88 | F41: 21780.06 | G41: 21306.78 | H41: 15082.74 | I41: 14489.1 | J41: 15192.9 | K41: 12238.98 | L41: 17806.14 | M41: 23225.4 | N41: 0 | O41: 229564.84 | P41: 234156.1368 | Q41: 238839.2595 | R41: 224692
A42: 525 | C42: Cost Recovery Surplus/(Deficit) | D42: 0 | E42: 0 | F42: 0 | G42: 0 | H42: 0 | I42: 0 | J42: 0 | K42: 0 | L42: 0 | N42: 0 | O42: 0 | P42: 0 | Q42: 0 | R42: 0
A43: 503 | C43: BUF Donations | D43: 0 | E43: 0 | F43: 0 | G43: 0 | H43: 0 | I43: 0 | J43: 0 | K43: 0 | L43: 0 | N43: 0 | O43: 0 | P43: 0 | Q43: 0
A44: 552/553 | C44: Spring/Summer Revenue(net of expenses) | D44: 0 | E44: 0 | F44: 0 | G44: 0 | H44: 0 | I44: 0 | J44: 0 | K44: 0 | L44: 0 | N44: 0 | O44: 0 | P44: 0 | Q44: 0
A45: 511 | C45: Non-core Tuition Revenues | D45: 0 | E45: 0 | F45: 0 | G45: 0 | H45: 0 | I45: 0 | J45: 0 | K45: 0 | L45: 0 | N45: 0 | O45: 0 | P45: 0 | Q45: 0
A46: 559 | C46: 15% Tuition Assessment | D46: 0 | E46: 0 | F46: 0 | G46: 0 | H46: 0 | I46: 0 | J46: 0 | K46: 0 | L46: 0 | N46: 0 | O46: 0 | P46: 0 | Q46: 0
A47: 5xx | C47: Revenues | D47: 0 | E47: 0 | F47: 0 | G47: 0 | H47: 0 | I47: 0 | J47: 0 | K47: 0 | L47: 0 | N47: 0 | O47: 0 | P47: 0 | Q47: 0
C48: SUB-TOTAL: REVENUES: | D48: 0 | E48: 0 | F48: 0 | G48: 0 | H48: 0 | I48: 0 | J48: 0 | K48: 0 | L48: 0 | N48: 0 | O48: 0 | P48: 0 | Q48: 0 | R48: 0
A49: 9xx | C49: Renovations & Equipment | D49: 38642.7 | E49: 0 | F49: 0 | G49: 0 | H49: 0 | I49: 0 | J49: 0 | K49: 0 | L49: 0 | N49: 0 | O49: 38642.7 | P49: 38642.7 | Q49: 38642.7 | R49: 37885
C50: SUB-TOTAL: REN. & EQUIP: | D50: 38642.7 | E50: 0 | F50: 0 | G50: 0 | H50: 0 | I50: 0 | J50: 0 | K50: 0 | L50: 0 | M50: 0 | N50: 0 | O50: 38642.7 | P50: 38642.7 | Q50: 38642.7 | R50: 37885
C51: TOTAL BUDGET: | D51: 612756.7637 | E51: 1686538.975 | F51: 703070.5033 | G51: 785059.9022 | H51: 857159.5655 | I51: 1572015.43 | J51: 872318.3104 | K51: 1166796.267 | L51: 452090.0399 | M51: 341237.9254 | N51: 0 | O51: 9049043.682 | P51: 9447690.606 | Q51: 9636171.441 | R51: 8676651.667

Sheet Health Studies
C1: BRANDON UNIVERSITY ** FACULTY OF HEALTH STUDIES **
C2: REFERENCE BUDGET
C3: APRIL 2018 TO MARCH 2019
D4: 4701 | E4: 4702 | F4: 4704 | G4: 4705 | H4: 4706 | I4: 4707 | J4: 4708 | K4: 4799 | L4: 2018/19 | M4: 2019/20 | N4: 2020/21 | O4: 2017/18
F5: PSYCH | H5: M. PSYCH | I5: RESEARCH | J5: Ind.Health | K5: CARRY | L5: REF'NCE | M5: PROJ. | N5: PROJ. | O5: APPROVED
C6: EXPENDITURE: | D6: DEAN | E6: WPG CTR | F6: NURSING | G6: BN | H6: NURSING | I6: OFFICE | J6: Transition | K6: FWD | L6: BUDGET | M6: BUDGET | N6: BUDGET | O6: BUDGET
A7: 001 | C7: Acad./I.A. | D7: 149754.4 | E7: 1099401.73 | F7: 1542328.077 | G7: 1536159.409 | H7: 0 | I7: 48082.77625 | J7: 84039.79375 | K7: 0 | L7: 4459766.185 | M7: 4656608.129 | N7: 4772557.861 | O7: 4190911
A8: 002 | C8: Sessionals - Regular Session | D8: 0 | E8: 16771.05 | F8: 178908.625 | G8: 151604.675 | H8: 0 | I8: 0 | J8: 24000 | K8: 0 | L8: 371284.35 | M8: 371817.771 | N8: 372553.1179 | O8: 362813
A9: 003 | C9: F.T. Support | D9: 64799.58 | E9: 49337.42 | F9: 46455.48 | G9: 95560.76 | H9: 0 | I9: 0 | J9: 0 | K9: 0 | L9: 256153.24 | M9: 265397.3958 | N9: 268365.5352 | O9: 248202
A10: 004/005 | C10: P.T./Student Assistants/Casual | D10: 3996.622917 | E10: 0 | F10: 0 | G10: 0 | H10: 0 | I10: 8183.8 | J10: 0 | K10: 0 | L10: 12180.42292 | M10: 12280.91141 | N10: 12480.47622 | O10: 12145
A11: 100 | C11: Benefits | D11: 33875.34345 | E11: 198136.7339 | F11: 300507.6709 | G11: 320998.4719 | H11: 0 | I11: 10127.98373 | J11: 20527.56081 | K11: 0 | L11: 884173.7647 | M11: 1061220.841 | N11: 1085191.398 | O11: 865379
A12: 099/199 | C12: Recoveries | D12: 0 | E12: 0 | F12: 0 | G12: 0 | H12: 0 | I12: 0 | J12: 0 | K12: 0 | L12: 0 | M12: 0 | N12: 0
C13: SUB-TOTAL: SALARIES & BENEFITS: | D13: 252425.9464 | E13: 1363646.934 | F13: 2068199.852 | G13: 2104323.316 | H13: 0 | I13: 66394.55998 | J13: 128567.3546 | K13: 0 | L13: 5983557.963 | M13: 6367325.049 | N13: 6511148.388 | O13: 5679450
A14: 201/02/06 | C14: Travel/Moving/Recruitment | D14: 12625.56 | E14: 8834.22 | F14: 7960.08 | G14: 13645.56 | H14: 832.32 | I14: 1020 | J14: 0 | K14: 0 | L14: 44917.74 | M14: 45816.0948 | N14: 46732.4167 | O14: 44037
A15: 204/05/10 | C15: Prof. Dev. Allowances | D15: 88800 | E15: 0 | F15: 0 | G15: 0 | H15: 0 | I15: 0 | J15: 0 | K15: 0 | L15: 88800 | M15: 88800 | N15: 88800 | O15: 92700
C16: SUB-TOTAL: TRAVEL & MOVING: | D16: 101425.56 | E16: 8834.22 | F16: 7960.08 | G16: 13645.56 | H16: 832.32 | I16: 1020 | J16: 0 | K16: 0 | L16: 133717.74 | M16: 134616.0948 | N16: 135532.4167 | O16: 136737
A17: 301 | C17: Advertising | D17: 9978.66 | E17: 0 | F17: 0 | G17: 0 | H17: 2080.8 | I17: 0 | J17: 0 | K17: 0 | L17: 12059.46 | M17: 12300.6492 | N17: 12546.66218 | O17: 11823
A18: 302 | C18: Special Allowances | D18: 5798.7 | E18: 0 | F18: 1740.12 | G18: 1740.12 | H18: 0 | I18: 0 | J18: 0 | K18: 0 | L18: 9278.94 | M18: 9464.5188 | N18: 9653.809176 | O18: 9097
A19: 304 | C19: Consumables | D19: 8005.98 | E19: 3480.24 | F19: 16722.9 | G19: 23031.6 | H19: 1560.6 | I19: 1020 | J19: 1020 | K19: 0 | L19: 54841.32 | M19: 55938.1464 | N19: 57056.90933 | O19: 53766
A20: 305 | C20: Photocopying - Printing | D20: 2320.5 | E20: 2320.5 | F20: 9919.5 | G20: 6960.48 | H20: 520.2 | I20: 0 | J20: 0 | K20: 0 | L20: 22041.18 | M20: 22482.0036 | N20: 22931.64367 | O20: 21609
A21: 307 | C21: Membership Subscriptions | D21: 0 | E21: 0 | F21: 0 | G21: 0 | H21: 0 | I21: 9956.22 | J21: 0 | K21: 0 | L21: 9956.22 | M21: 10155.3444 | N21: 10358.45129 | O21: 9761
A22: 308 | C22: Postage | D22: 580.38 | E22: 580.38 | F22: 2112.42 | G22: 1159.74 | H22: 208.08 | I22: 0 | J22: 0 | K22: 0 | L22: 4641 | M22: 4733.82 | N22: 4828.4964 | O22: 4550
A23: 309 | C23: Telephone - Long Dist. | D23: 580.38 | E23: 811.92 | F23: 1159.74 | G23: 1159.74 | H23: 0 | I23: 0 | J23: 0 | K23: 0 | L23: 3711.78 | M23: 3786.0156 | N23: 3861.735912 | O23: 3639
A24: 310 | C24: Telephone - Rental | D24: 4060.62 | E24: 10439.7 | F24: 6960.48 | G24: 10439.7 | H24: 0 | I24: 0 | J24: 0 | K24: 0 | L24: 31900.5 | M24: 32538.51 | N24: 33189.2802 | O24: 31275
A25: 311 | C25: Repairs & Maintenance | D25: 1740.12 | E25: 2320.5 | F25: 580.38 | G25: 580.38 | H25: 0 | I25: 0 | J25: 0 | K25: 0 | L25: 5221.38 | M25: 5325.8076 | N25: 5432.323752 | O25: 5119
A26: 327 | C26: Other Rentals | D26: 0 | E26: 167783.88 | F26: 0 | G26: 0 | H26: 0 | I26: 0 | J26: 0 | K26: 0 | L26: 167783.88 | M26: 171139.5576 | N26: 174562.3488 | O26: 164494
A27: 314 | C27: Consulting Fees | D27: 580.38 | E27: 0 | F27: 0 | G27: 0 | H27: 0 | I27: 0 | J27: 0 | K27: 0 | L27: 580.38 | M27: 591.9876 | N27: 603.827352 | O27: 569
A28: 326 | C28: Service Contracts | D28: 0 | E28: 13049.88 | F28: 0 | G28: 0 | H28: 0 | I28: 0 | J28: 0 | L28: 13049.88 | M28: 13310.8776 | N28: 13577.09515 | O28: 12794
A29: 330 | C29: Food Purchases | D29: 0 | E29: 0 | F29: 0 | G29: 0 | H29: 0 | I29: 0 | J29: 0 | K29: 0 | L29: 0 | M29: 0 | N29: 0
A30: 345 | C30: Staff Development | D30: 5798.7 | E30: 0 | F30: 0 | G30: 0 | H30: 0 | I30: 0 | J30: 0 | K30: 0 | L30: 5798.7 | M30: 5914.674 | N30: 6032.96748 | O30: 5685
A31: 354 | C31: Fax Expenses | D31: 1159.74 | E31: 0 | F31: 1159.74 | G31: 1159.74 | H31: 0 | I31: 0 | J31: 0 | K31: 0 | L31: 3479.22 | M31: 3548.8044 | N31: 3619.780488 | O31: 3411
A32: 357/358 | C32: Software/Software lisencing | D32: 4729.74 | E32: 0 | F32: 0 | G32: 0 | H32: 0 | I32: 0 | J32: 0 | K32: 0 | L32: 4729.74 | M32: 4824.3348 | N32: 4920.821496 | O32: 4637
A33: 372 | C33: Research Development | D33: 0 | E33: 0 | F33: 0 | G33: 0 | H33: 0 | I33: 0 | J33: 0 | K33: 0 | L33: 0 | M33: 0 | N33: 0
A34: 378 | C34: Special Allocations | D34: 4211.58 | E34: 0 | F34: 0 | G34: 0 | H34: 0 | I34: 0 | J34: 0 | K34: 0 | L34: 4211.58 | M34: 4295.8116 | N34: 4381.727832 | O34: 4129
A35: 393 | C35: Equipment - furniture (under $1000) | D35: 0 | E35: 0 | F35: 0 | G35: 0 | H35: 0 | I35: 0 | J35: 0 | K35: 0 | L35: 0 | M35: 0 | N35: 0
A36: 399 | C36: Recoveries | D36: 0 | E36: 0 | F36: 0 | G36: 0 | H36: 0 | I36: 0 | J36: 0 | K36: 0 | L36: 0 | M36: 0 | N36: 0
A37: 799 | C37: Interfund Transfer | D37: 0 | E37: 0 | F37: 0 | G37: 0 | H37: 0 | I37: 0 | J37: 0 | K37: 0 | L37: 0
A38: *** | C38: Unallocated | D38: 0 | E38: 0 | F38: 0 | G38: 0 | H38: 0 | I38: 0 | J38: 0 | K38: 0 | L38: 0 | M38: 0 | N38: 0
C39: SUB-TOTAL: SUPPLIES & OTHER EXPS: | D39: 49545.48 | E39: 200787 | F39: 40355.28 | G39: 46231.5 | H39: 4369.68 | I39: 10976.22 | J39: 1020 | K39: 0 | L39: 353285.16 | M39: 360350.8632 | N39: 367557.8805 | O39: 346358
A40: 525 | C40: Cost Recovery Surplus/(Deficit) | H40: 0 | L40: 0 | M40: 0 | N40: 0 | O40: 0
A41: 5xx | C41: Revenues | D41: 0 | E41: 0 | F41: 0 | G41: 0 | H41: 0 | I41: 0 | J41: 0 | K41: 0 | L41: 0 | M41: 0 | N41: 0
A42: 503 | C42: BUF Donations | D42: 0 | E42: 0 | F42: 0 | G42: 0 | H42: 0 | I42: 0 | J42: 0 | K42: 0 | L42: 0 | M42: 0 | N42: 0
A43: 552/553 | C43: Spring/Summer Tuition | D43: 0 | E43: 0 | G43: 0 | H43: 0 | K43: 0 | L43: 0 | M43: 0 | N43: 0 | O43: 0
A44: 511 | C44: Non-core Tuition Revenues | D44: 0 | E44: 0 | G44: 0 | H44: 0 | L44: 0 | M44: 0 | N44: 0 | O44: 0
A45: 559 | C45: 15% Tuition Assessment | D45: 0 | E45: 0 | F45: 0 | G45: 0 | H45: 0 | K45: 0 | L45: 0 | M45: 0 | N45: 0 | O45: 0
C46: SUB-TOTAL: REVENUES: | D46: 0 | E46: 0 | F46: 0 | G46: 0 | H46: 0 | I46: 0 | J46: 0 | K46: 0 | L46: 0 | M46: 0 | N46: 0 | O46: 0
A47: 901 | C47: Equipment Purchases | D47: 5633.46 | E47: 5630.4 | F47: 16892.22 | G47: 16892.22 | H47: 0 | I47: 0 | J47: 0 | K47: 0 | L47: 45048.3 | M47: 45048.3 | N47: 45048.3 | O47: 44165
C48: SUB-TOTAL: RENOV & EQUIP | D48: 5633.46 | E48: 5630.4 | F48: 16892.22 | G48: 16892.22 | H48: 0 | I48: 0 | J48: 0 | K48: 0 | L48: 45048.3 | M48: 45048.3 | N48: 45048.3 | O48: 44165
C49: ANNUAL BUDGET: | D49: 409030.4464 | E49: 1578898.554 | F49: 2133407.432 | G49: 2181092.596 | H49: 5202 | I49: 78390.77998 | J49: 129587.3546 | K49: 0 | L49: 6515609.163 | M49: 6907340.307 | N49: 7059286.985 | O49: 6206710

Sheet Education
C1: BRANDON UNIVERSITY FACULTY OF EDUCATION
C2: REFERENCE BUDGET
C3: APRIL 2018 TO MARCH 2019
D5: 4201 | E5: 4203 | F5: 4204 | G5: 4205 | H5: 4206 | I5: 4208 | J5: 4211 | K5: 4299 | L5: 2018/19 | M5: 2019/20 | N5: 2020/21 | O5: 2017/18
F6: LDRSHIP | G6: CURR. & | H6: EDPSYCH | I6: PHYS | J6: GRAD | K6: CARRY | L6: REF'NCE | M6: PROJ. | N6: PROJ. | O6: APPROVED
C7: EXPENDITURE: | D7: DEAN | E7: FLD EXP | F7: EDADMIN | G7: PED. | H7: STSERV | I7: EDUC | J7: STUD | K7: FWD | L7: BUDGET | M7: BUDGET | N7: BUDGET | O7: BUDGET
A8: 001 | C8: Academic | D8: 109891.1 | E8: 105158.15 | F8: 595022.5062 | G8: 899622.5375 | H8: 659640.375 | I8: 491199.5378 | J8: 17805 | K8: 0 | L8: 2878339.207 | M8: 2803945.544 | N8: 2842112.39 | O8: 2844816
A9: 002 | C9: Sessionals | D9: 69965.475 | E9: 206952.625 | F9: 0 | G9: 0 | H9: 0 | I9: 18615 | J9: 0 | K9: 0 | L9: 295533.1 | M9: 296933.4595 | N9: 296933.4595 | O9: 270164
A10: 003 | C10: F.T. Support | D10: 166765.08 | E10: 50195.94 | F10: 0 | G10: 0 | H10: 0 | I10: 0 | J10: 0 | K10: 0 | L10: 216961.02 | M10: 223630.8975 | N10: 224932.7669 | O10: 210679
A11: 004/005 | C11: P.T./Student Assistants/Casual | D11: 5537.102917 | E11: 0 | F11: 0 | G11: 0 | H11: 0 | I11: 0 | J11: 0 | K11: 0 | L11: 5537.102917 | M11: 5582.784016 | N11: 5673.504256 | O11: 5521
A12: 012 | C12: Cost Recovery Sessionals | D12: 0 | E12: 0 | F12: 0 | I12: 0 | J12: 0 | K12: 0 | L12: 0 | M12: 0 | N12: 0 | O12: 0
A13: 100 | C13: Benefits | D13: 52823.81369 | E13: 49273.71324 | F13: 81518.08336 | G13: 136090.307 | H13: 71241.1605 | I13: 71374.03529 | J13: 1068.3 | K13: 0 | L13: 463389.4131 | M13: 666018.5369 | N13: 673930.4241 | O13: 471840
A14: 099/199 | C14: Recoveries | D14: -15989 | E14: 0 | F14: 0 | G14: -49058.11875 | H14: 0 | I14: 0 | J14: 0 | K14: 0 | L14: -65047.11875 | M14: -15989 | N14: -15989 | O14: -107109
C15: SUB-TOTAL: SALARIES & BENEFITS: | D15: 388993.5716 | E15: 411580.4282 | F15: 676540.5896 | G15: 986654.7257 | H15: 730881.5355 | I15: 581188.5731 | J15: 18873.3 | K15: 0 | L15: 3794712.724 | M15: 3980122.222 | N15: 4027593.545 | O15: 3695911
A16: 201/02/06 | C16: Travel/Moving/Recruitment | D16: 13371.18 | E16: 27880.68 | F16: 2122.62 | G16: 0 | H16: 0 | I16: 0 | J16: 1623.84 | K16: 0 | L16: 44998.32 | M16: 45898.2864 | N16: 46816.25213 | O16: 44116
A17: 204/05/10 | C17: Prof. Dev. Allowances | D17: 41000 | E17: 0 | F17: 0 | G17: 0 | H17: 0 | I17: 16000 | J17: 0 | K17: 0 | L17: 57000 | M17: 57000 | N17: 57000 | O17: 57000
C18: SUB-TOTAL: TRAVEL & MOVING: | D18: 54371.18 | E18: 27880.68 | F18: 2122.62 | G18: 0 | H18: 0 | I18: 16000 | J18: 1623.84 | K18: 0 | L18: 101998.32 | M18: 102898.2864 | N18: 103816.2521 | O18: 101116
A19: 301 | C19: Advertising | D19: 795.6 | E19: 0 | F19: 0 | G19: 0 | H19: 0 | I19: 0 | J19: 0 | K19: 0 | L19: 795.6 | M19: 811.512 | N19: 827.74224 | O19: 780
A20: 302 | C20: Special Allowances | D20: 10080.66 | E20: 0 | F20: 0 | G20: 0 | H20: 0 | I20: 228.48 | J20: 0 | K20: 0 | L20: 10309.14 | M20: 10515.3228 | N20: 10725.62926 | O20: 10107
A21: 304 | C21: Consumables | D21: 14120.88 | E21: 2801.94 | F21: 0 | G21: 0 | H21: 0 | I21: 5714.04 | J21: 1206.66 | K21: 0 | L21: 23843.52 | M21: 24320.3904 | N21: 24806.79821 | O21: 23376
A22: 305 | C22: Photocopying - Printing | D22: 4431.9 | E22: 4103.46 | F22: 1765.62 | G22: 4857.24 | H22: 1765.62 | I22: 2120.58 | J22: 1290.3 | K22: 0 | L22: 20334.72 | M22: 20741.4144 | N22: 21156.24269 | O22: 19936
A23: 307 | C23: Membership Subscriptions | D23: 511.02 | E23: 0 | F23: 0 | G23: 0 | H23: 0 | I23: 0 | J23: 0 | K23: 0 | L23: 511.02 | M23: 521.2404 | N23: 531.665208 | O23: 501
A24: 308 | C24: Postage | D24: 1119.96 | E24: 721.14 | F24: 122.4 | G24: 336.6 | H24: 122.4 | I24: 239.7 | J24: 392.7 | K24: 0 | L24: 3054.9 | M24: 3115.998 | N24: 3178.31796 | O24: 2995
A25: 309 | C25: Telephone - Long Dist. | D25: 1166.88 | E25: 187.68 | F25: 0 | G25: 0 | H25: 0 | I25: 429.42 | J25: 636.48 | K25: 0 | L25: 2420.46 | M25: 2468.8692 | N25: 2518.246584 | O25: 2373
A26: 310 | C26: Telephone - Rental | D26: 10257.12 | E26: 694.62 | F26: 0 | G26: 0 | H26: 0 | I26: 0 | J26: 1486.14 | K26: 0 | L26: 12437.88 | M26: 12686.6376 | N26: 12940.37035 | O26: 12194
A27: 311 | C27: Repairs & Maintenance | D27: 4469.64 | E27: 207.06 | F27: 0 | G27: 0 | H27: 0 | I27: 757.86 | J27: 0 | K27: 0 | L27: 5434.56 | M27: 5543.2512 | N27: 5654.116224 | O27: 5328
A28: 312 | C28: Other Rentals | D28: 32.64 | E28: 0 | F28: 0 | G28: 0 | H28: 0 | I28: 1088.34 | J28: 0 | K28: 0 | L28: 1120.98 | M28: 1143.3996 | N28: 1166.267592 | O28: 1099
A29: 314 | C29: Consulting fees | D29: 51000 | E29: 0 | F29: 0 | G29: 0 | H29: 0 | I29: 0 | J29: 0 | K29: 0 | L29: 51000 | M29: 51000 | N29: 51000 | O29: 50000
A30: 330 | C30: Food Purchases | D30: 424.32 | E30: 1955.34 | F30: 0 | G30: 0 | H30: 0 | I30: 0 | J30: 0 | K30: 0 | L30: 2379.66 | M30: 2427.2532 | N30: 2475.798264 | O30: 2333
A31: 345 | C31: Staff Development | D31: 0 | E31: 0 | F31: 0 | G31: 0 | H31: 0 | I31: 0 | J31: 0 | K31: 0 | L31: 0 | M31: 0 | N31: 0
A32: 354 | C32: Fax Expenses | D32: 832.32 | E32: 20.4 | F32: 0 | G32: 0 | H32: 0 | I32: 0 | J32: 20.4 | K32: 0 | L32: 873.12 | M32: 890.5824 | N32: 908.394048 | O32: 856
A33: 357/358 | C33: Software/Software Licensing | D33: 0 | E33: 0 | F33: 0 | G33: 0 | H33: 0 | I33: 0 | J33: 0 | K33: 0 | L33: 0 | M33: 0 | N33: 0
A34: 378 | C34: Special Allocations | D34: 0 | E34: 0 | F34: 0 | G34: 0 | H34: 0 | I34: 0 | J34: 0 | K34: 0 | L34: 0 | M34: 0 | N34: 0
A35: 393 | C35: Equipment - furniture(under $1000) | D35: 3183.42 | E35: 0 | F35: 0 | G35: 0 | H35: 0 | I35: 0 | J35: 0 | K35: 0 | L35: 3183.42 | M35: 3247.0884 | N35: 3312.030168 | O35: 3121
A36: 397 | C36: Overheads | D36: -15675 | E36: 0 | F36: 0 | G36: 0 | H36: 0 | I36: 0 | J36: 0 | K36: 0 | L36: -15675 | M36: -15988.5 | N36: -16308.27 | O36: -15675
A37: 399 | C37: Recoveries | D37: -13260 | E37: 0 | F37: 0 | G37: 0 | H37: 0 | L37: -13260 | M37: -13525.2 | N37: -13795.704 | O37: -13260
A38: 799 | C38: Interfund Transfer | D38: 0 | E38: 0 | F38: 0 | G38: 0 | H38: 0 | I38: 0 | J38: 0 | K38: 0 | L38: 0 | M38: 0 | N38: 0
A39: *** | C39: Unallocated | D39: 0 | E39: 0 | F39: 0 | G39: 0 | H39: 0 | I39: 0 | J39: 0 | K39: 0 | L39: 0 | M39: 0 | N39: 0
C40: SUB-TOTAL: SUPPLIES & OTHER EXPS: | D40: 73491.36 | E40: 10691.64 | F40: 1888.02 | G40: 5193.84 | H40: 1888.02 | I40: 10578.42 | J40: 5032.68 | K40: 0 | L40: 108763.98 | M40: 109919.2596 | N40: 111097.6448 | O40: 106064
A41: 525 | C41: Cost Recovery Surplus/(Deficit) | D41: 0 | E41: 0 | F41: 0 | I41: 0 | J41: 0 | L41: 0 | M41: 0 | N41: 0 | O41: 0
A42: 503 | C42: BUF Donations | D42: 0 | E42: 0 | F42: 0 | I42: 0 | J42: 0 | K42: 0 | L42: 0 | M42: 0 | N42: 0
A43: 551 | C43: Distance Delivery Tuition Revenue | D43: 0 | E43: 0 | F43: 0 | I43: 0 | J43: 0 | K43: 0 | L43: 0 | M43: 0 | N43: 0 | O43: 0
A44: 552/553 | C44: Spring/Summer Revenue | D44: 0 | E44: 0 | F44: 0 | I44: 0 | J44: 0 | K44: 0 | L44: 0 | M44: 0 | N44: 0 | O44: 0
A45: 559 | C45: 15% Tuition Assessment | D45: 0 | E45: 0 | F45: 0 | I45: 0 | J45: 0 | K45: 0 | L45: 0 | M45: 0 | N45: 0 | O45: 0
A46: 5xx | C46: Other Revenues | D46: -25000 | E46: 0 | F46: 0 | I46: 0 | J46: 0 | K46: 0 | L46: -25000 | M46: -25000 | N46: -25000 | O46: -25000
C47: SUB-TOTAL: REVENUES: | D47: -25000 | E47: 0 | F47: 0 | G47: 0 | H47: 0 | I47: 0 | J47: 0 | K47: 0 | L47: -25000 | M47: -25000 | N47: -25000 | O47: -25000
A48: 9xx | C48: Equipment Purchases | D48: 0 | E48: 0 | F48: 0 | I48: 0 | J48: 0 | K48: 0 | L48: 0 | M48: 0 | N48: 0
C49: SUB-TOTAL: EQUIPMENT | D49: 0 | E49: 0 | F49: 0 | G49: 0 | H49: 0 | I49: 0 | J49: 0 | K49: 0 | L49: 0 | M49: 0 | N49: 0 | O49: 0
C50: ANNUAL BUDGET: | D50: 491856.1116 | E50: 450152.7482 | F50: 680551.2296 | G50: 991848.5657 | H50: 732769.5555 | I50: 607766.9931 | J50: 25529.82 | K50: 0 | L50: 3980475.024 | M50: 4167939.768 | N50: 4217507.441 | O50: 3878091

Sheet Music
C1: BRANDON UNIVERSITY ** SCHOOL OF MUSIC **
C2: REFERENCE BUDGET
C3: APRIL 2018 TO MARCH 2019
D4: 4301 | E4: 4399 | F4: 2018/19 | G4: 2019/20 | H4: 2020/21 | I4: 2017/18
E5: CARRY | F5: REF'NCE | G5: PROJ. | H5: PROJ. | I5: APPROVED
C6: EXPENDITURE: | D6: DEAN | E6: FWD | F6: BUDGET | G6: BUDGET | H6: BUDGET | I6: BUDGET
A7: 001 | C7: Academic | D7: 2287531.987 | E7: 0 | F7: 2287531.987 | G7: 2322955.171 | H7: 2387156.936 | I7: 2236328
A8: 002 | C8: Sessionals - Regular Session | D8: 318847.775 | E8: 0 | F8: 318847.775 | G8: 367279.775 | H8: 367279.775 | I8: 311071
A9: 003 | C9: F.T. Support | D9: 166245.52 | E9: 0 | F9: 166245.52 | G9: 171669.2692 | H9: 172993.9229 | I9: 161812
A10: 004/005 | C10: P.T./Student Assistants/Casual | D10: 47618.48333 | E10: 0 | F10: 47618.48333 | G10: 48011.33582 | H10: 48791.52003 | I10: 47480
A11: 100 | C11: Benefits | D11: 471551.1964 | E11: 0 | F11: 471551.1964 | G11: 581983.1102 | H11: 595244.4308 | I11: 460811
A12: 099/199 | C12: Recoveries | D12: -30000 | E12: 0 | F12: -30000 | G12: -30000 | H12: -30000 | I12: -30000
C13: SUB-TOTAL: SALARIES & BENEFITS: | D13: 3261794.962 | E13: 0 | F13: 3261794.962 | G13: 3461898.661 | H13: 3541466.585 | I13: 3187502
A14: 201/02 | C14: Travel/Moving | D14: 64560.9 | E14: 0 | F14: 64560.9 | G14: 65852.118 | H14: 67169.16036 | I14: 63295
A15: 204/05/10 | C15: Prof. Dev. Allowances | D15: 38000 | E15: 0 | F15: 38000 | G15: 38000 | H15: 38000 | I15: 38000
C16: SUB-TOTAL: TRAVEL & MOVING: | D16: 102560.9 | E16: 0 | F16: 102560.9 | G16: 103852.118 | H16: 105169.1604 | I16: 101295
A17: 301 | C17: Advertising | D17: 8446.62 | E17: 0 | F17: 8446.62 | G17: 8615.5524 | H17: 8787.863448 | I17: 8281
A18: 302 | C18: Special Allowances | D18: 0 | E18: 0 | F18: 0 | G18: 0 | H18: 0 | I18: 8281
A19: 304 | C19: Consumables | D19: 17299.2 | E19: 0 | F19: 17299.2 | G19: 17645.184 | H19: 17998.08768 | I19: 16960
A20: 305 | C20: Photocopying - Printing | D20: 8446.62 | E20: 0 | F20: 8446.62 | G20: 8615.5524 | H20: 8787.863448 | I20: 8281
A21: 307 | C21: Membership Subscriptions | D21: 2414.34 | E21: 0 | F21: 2414.34 | G21: 2462.6268 | H21: 2511.879336 | I21: 2367
A22: 308 | C22: Postage | D22: 4827.66 | E22: 0 | F22: 4827.66 | G22: 4924.2132 | H22: 5022.697464 | I22: 4733
A23: 309 | C23: Telephone - Long Dist. | D23: 2414.34 | E23: 0 | F23: 2414.34 | G23: 2462.6268 | H23: 2511.879336 | I23: 2367
A24: 310 | C24: Telephone - Rental | D24: 9170.82 | E24: 0 | F24: 9170.82 | G24: 9354.2364 | H24: 9541.321128 | I24: 8991
A25: 311 | C25: Repairs & Maintenance | D25: 64199.82 | E25: 0 | F25: 64199.82 | G25: 65483.8164 | H25: 66793.49273 | I25: 62941
A26: 335 | C26: Media Room expenses | D26: 3621 | E26: 0 | F26: 3621 | G26: 3693.42 | H26: 3767.2884 | I26: 3550
A27: 345 | C27: Staff Development | D27: 603.84 | E27: 0 | F27: 603.84 | G27: 615.9168 | H27: 628.235136 | I27: 592
A28: 354 | C28: Fax Expenses | D28: 1205.64 | E28: 0 | F28: 1205.64 | G28: 1229.7528 | H28: 1254.347856 | I28: 1182
A29: 359 | C29: Music (Ensembles) | D29: 4223.82 | E29: 0 | F29: 4223.82 | G29: 4308.2964 | H29: 4394.462328 | I29: 4141
A30: 363 | C30: Recitals | D30: 27153.42 | E30: 0 | F30: 27153.42 | G30: 27696.4884 | H30: 28250.41817 | I30: 26621
A31: 364 | C31: Electronic Music Studio | D31: 603.84 | E31: 0 | F31: 603.84 | G31: 615.9168 | H31: 628.235136 | I31: 592
A32: 365 | C32: Auditorium Rental | D32: 3018.18 | E32: 0 | F32: 3018.18 | G32: 3078.5436 | H32: 3140.114472 | I32: 2959
A33: 366 | C33: E-Gre Competition | D33: 0 | E33: 0 | F33: 0 | G33: 0 | H33: 0
A34: 367 | C34: Workshops | D34: 8446.62 | E34: 0 | F34: 8446.62 | G34: 8615.5524 | H34: 8787.863448 | I34: 8281
A35: 368 | C35: Concert Expenses | D35: 0 | E35: 0 | F35: 0 | G35: 0 | H35: 0
A36: 378 | C36: Special Allocations | D36: 8446.62 | E36: 0 | F36: 8446.62 | G36: 8615.5524 | H36: 8787.863448
A37: 393 | C37: Equipment - furniture (under $1000) | D37: 0 | E37: 0 | F37: 0 | G37: 0 | H37: 0
A38: 399 | C38: Recoveries | D38: -4080 | E38: 0 | F38: -4080 | G38: -4161.6 | H38: -4244.832 | I38: -4080
A39: 799 | C39: Interfund Transfer | D39: 0 | E39: 0 | F39: 0 | G39: 0 | H39: 0
A40: *** | C40: Unallocated | D40: 0 | E40: 0 | F40: 0 | G40: 0 | H40: 0
C41: SUB-TOTAL: SUPPLIES & OTHER EXPS: | D41: 170462.4 | E41: 0 | F41: 170462.4 | G41: 173871.648 | H41: 177349.081 | I41: 167040
A42: 525 | C42: Cost Recovery Surplus/(Deficit) | D42: 0 | E42: 0 | F42: 0 | G42: 0 | H42: 0 | I42: 0
A43: 503 | C43: BUF Donations | D43: -24000 | E43: 0 | F43: -24000 | G43: -24000 | H43: -24000 | I43: -24000
A44: 506 | C44: Concert Fee | D44: -8430 | E44: 0 | F44: -8430 | G44: -8430 | H44: -8430 | I44: -8430
A45: 509 | C45: Materials/Service Fee | D45: -65490 | E45: 0 | F45: -65490 | G45: -65490 | H45: -65490 | I45: -65490
A46: 550 | C46: Graduate Course Revenue Sp/Su | D46: 0 | E46: 0 | F46: 0 | G46: 0 | H46: 0 | I46: 0
A47: 552/553 | C47: Spring/Summer Revenue | D47: 0 | E47: 0 | F47: 0 | G47: 0 | H47: 0 | I47: 0
A48: 559 | C48: 15% Tuition Assessment | D48: 0 | E48: 0 | F48: 0 | G48: 0 | H48: 0 | I48: 0
A49: 5xx | C49: Other Revenues/Recitals/Concerts | D49: -20800 | E49: 0 | F49: -20800 | G49: -20800 | H49: -20800 | I49: -20800
C50: SUB-TOTAL: REVENUES: | D50: -118720 | E50: 0 | F50: -118720 | G50: -118720 | H50: -118720 | I50: -118720
A51: 9xx | C51: Equipment Purchases | D51: 0 | E51: 0 | F51: 0 | G51: 0 | H51: 0
C52: SUB-TOTAL: EQUIPMENT | D52: 0 | E52: 0 | F52: 0 | G52: 0 | H52: 0 | I52: 0
C53: ANNUAL BUDGET: | D53: 3416098.262 | E53: 0 | F53: 3416098.262 | G53: 3620902.427 | H53: 3705264.826 | I53: 3337117

Sheet Student Serv.
C1: BRANDON UNIVERSITY ** STUDENT SERVICES **
C2: REFERENCE BUDGET
C3: APRIL 2018 TO MARCH 2019
D4: 5101 | E4: 5102 | F4: 5103 | G4: 5104 | H4: 5302 | I4: 5305 | J4: 5199 | K4: 2018/19 | L4: 2019/20 | M4: 2020/21 | N4: 2017/18
D5: STUDENT | E5: RHPO | F5: RECRUIT & | G5: IPC | H5: OIA | I5: EAP | J5: CARRY | K5: REF'NCE | L5: PROJ. | M5: PROJ. | N5: APPROVED
C6: EXPENDITURE: | D6: SERVICES | F6: RETENTION | J6: FWRD | K6: BUDGET | L6: BUDGET | M6: BUDGET | N6: BUDGET
A7: 001 | C7: Acad./Sabb/I.A. | D7: 466664.6063 | E7: 0 | F7: 165782.9188 | G7: 86375.01875 | H7: 130611.8188 | I7: 0 | J7: 0 | K7: 849434.3625 | L7: 791540.8886 | M7: 811108.5633 | N7: 1045160
A8: 003 | C8: F.T. Support | D8: 175919 | E8: 84442.585 | F8: 88128 | G8: 97848.035 | H8: 56525.04 | I8: 0 | J8: 0 | K8: 502862.66 | L8: 537469.946 | M8: 546208.4496 | N8: 512055
A9: 004 | C9: P.T. Support | D9: 0 | E9: 0 | F9: 0 | G9: 0 | H9: 0 | I9: 107840 | J9: 0 | K9: 107840 | L9: 107840 | M9: 107840 | N9: 107840
A10: 005/015 | C10: P.T./Student Assistants/Casual/Tutors | D10: 41457.48417 | E10: 74600 | F10: 13677.7775 | G10: 0 | H10: 553.61 | I10: 0 | J10: 0 | K10: 130288.8717 | L10: 132358.1205 | M10: 133296.69 | N10: 130156
A11: 008 | C11: Counseling F.T./P.T. | D11: 498581.3063 | E11: 0 | F11: 0 | G11: 0 | H11: 0 | I11: 0 | J11: 0 | K11: 498581.3063 | L11: 584449.0954 | M11: 594840.1944 | N11: 362104
A12: 099/199 | C12: Recoveries | D12: 0 | E12: 0 | F12: 0 | G12: 0 | H12: 0 | I12: 0 | J12: 0 | K12: 0 | L12: 0 | M12: 0
A13: 100 | C13: Benefits | D13: 219967.7658 | E13: 21311.70639 | F13: 47095.61054 | G13: 34818.15716 | H13: 34722.73672 | I13: 8088 | J13: 0 | K13: 366003.9766 | L13: 430731.6101 | M13: 438658.7794 | N13: 374450
C14: SUB-TOTAL: SALARIES & BENEFITS: | D14: 1402590.162 | E14: 180354.2914 | F14: 314684.3068 | G14: 219041.2109 | H14: 222413.2055 | I14: 115928 | J14: 0 | K14: 2455011.177 | L14: 2584389.66 | M14: 2631952.677 | N14: 2531765
A15: 201/02/06 | C15: Travel/Moving/Recruitment | D15: 6961.5 | E15: 3000 | F15: 24695.22 | G15: 7807.08 | H15: 68857.14 | I15: 3619.98 | J15: 0 | K15: 114940.92 | L15: 117239.7384 | M15: 119584.5332 | N15: 112746
A16: 204/05/10 | C16: Prof. Dev. Allowances | D16: 18000 | E16: 2000 | F16: 8000 | G16: 4000 | H16: 2000 | I16: 0 | J16: 0 | K16: 34000 | L16: 34000 | M16: 34000 | N16: 37000
A17: 214 | C17: Student Travel Fund | D17: 3549.6 | E17: 0 | F17: 0 | G17: 0 | H17: 0 | I17: 0 | J17: 0 | K17: 3549.6 | L17: 3549.6 | M17: 3549.6 | N17: 3480
C18: SUB-TOTAL: TRAVEL & MOVING: | D18: 28511.1 | E18: 5000 | F18: 32695.22 | G18: 11807.08 | H18: 70857.14 | I18: 3619.98 | J18: 0 | K18: 152490.52 | L18: 154789.3384 | M18: 157134.1332 | N18: 153226
A19: 301 | C19: Advertising | D19: 603.84 | E19: 4000 | F19: 27602.22 | G19: 4159.56 | H19: 10404 | I19: 1205.64 | J19: 0 | K19: 47975.26 | L19: 48934.7652 | M19: 49913.4605 | N19: 47113
A20: 302 | C20: Special Allowances | D20: 1243.38 | E20: 0 | F20: 0 | G20: 0 | H20: 5202 | I20: 0 | J20: 0 | K20: 6445.38 | L20: 6574.2876 | M20: 6705.773352 | N20: 6319
A21: 304 | C21: Consumables | D21: 4832.76 | E21: 3300 | F21: 4416.6 | G21: 2493.9 | H21: 2774.4 | I21: 903.72 | J21: 0 | K21: 18721.38 | L21: 19095.8076 | M21: 19477.72375 | N21: 18419
A22: 305 | C22: Photocopying - Printing | D22: 1358.64 | E22: 5000 | F22: 11044.56 | G22: 2079.78 | H22: 7245.06 | I22: 4525.74 | J22: 0 | K22: 31253.78 | L22: 31878.8556 | M22: 32516.43271 | N22: 30739
A23: 307 | C23: Membership Subscriptions | D23: 687.48 | E23: 800 | F23: 0 | G23: 0 | H23: 4737.9 | I23: 48.96 | J23: 0 | K23: 6274.34 | L23: 6399.8268 | M23: 6527.823336 | N23: 6167
A24: 308 | C24: Postage | D24: 1447.38 | E24: 1600 | F24: 4416.6 | G24: 520.2 | H24: 603.84 | I24: 1447.38 | J24: 0 | K24: 10035.4 | L24: 10236.108 | M24: 10440.83016 | N24: 9870
A25: 309 | C25: Telephone - Long Dist. | D25: 1691.16 | E25: 1600 | F25: 883.32 | G25: 1247.46 | H25: 664.02 | I25: 362.1 | J25: 0 | K25: 6448.06 | L25: 6577.0212 | M25: 6708.561624 | N25: 6353
A26: 310 | C26: Telephone - Rental | D26: 5243.82 | E26: 4600 | F26: 661.98 | G26: 1272.96 | H26: 362.1 | I26: 240.72 | J26: 0 | K26: 12381.58 | L26: 12629.2116 | M26: 12881.79583 | N26: 12229
A27: 311 | C27: Repairs & Maintenance | D27: 1205.64 | E27: 1000 | F27: 0 | G27: 308.04 | H27: 240.72 | I27: 0 | J27: 0 | K27: 2754.4 | L27: 2809.488 | M27: 2865.67776 | N27: 2720
A28: 312 | C28: Other Rentals | D28: 0 | E28: 0 | F28: 0 | G28: 0 | H28: 0 | I28: 0 | J28: 0 | K28: 0 | L28: 0 | M28: 0
A29: 317 | C29: Special Functions | D29: 0 | E29: 0 | F29: 0 | G29: 0 | H29: 2714.22 | I29: 542.64 | J29: 0 | K29: 3256.86 | L29: 3321.9972 | M29: 3388.437144 | N29: 3193
A30: 330 | C30: Food | D30: 0 | E30: 0 | F30: 1560.6 | G30: 0 | H30: 0 | I30: 0 | J30: 0 | K30: 1560.6 | L30: 1591.812 | M30: 1623.64824 | N30: 1530
A31: 335 | C31: Program Expenses | D31: 0 | E31: 6400 | F31: 0 | G31: 0 | H31: 0 | I31: 0 | J31: 0 | K31: 6400 | L31: 6528 | M31: 6658.56 | N31: 6400
A32: 345 | C32: Staff Development | D32: 830.28 | E32: 4537 | F32: 240.72 | G32: 0 | H32: 423.3 | I32: 5065.32 | J32: 0 | K32: 11096.62 | L32: 11318.5524 | M32: 11544.92345 | N32: 10968
A33: 350 | C33: Student/Fall Orientation | D33: 0 | E33: 0 | F33: 17684.76 | G33: 2281.74 | H33: 0 | I33: 0 | J33: 0 | K33: 19966.5 | L33: 20365.83 | M33: 20773.1466 | N33: 19575
A34: 354 | C34: Fax Expenses | D34: 1508.58 | E34: 0 | F34: 0 | G34: 414.12 | H34: 119.34 | I34: 362.1 | J34: 0 | K34: 2404.14 | L34: 2452.2228 | M34: 2501.267256 | N34: 2357
A35: 358 | C35: Software Licensing | D35: 0 | E35: 0 | F35: 0 | G35: 0 | H35: 0 | I35: 0 | J35: 0 | K35: 0 | L35: 0 | M35: 0
A36: 369 | C36: Elders | D36: 0 | E36: 0 | F36: 0 | G36: 8345.64 | H36: 0 | I36: 0 | J36: 0 | K36: 8345.64 | L36: 8512.5528 | M36: 8682.803856 | N36: 8182
A37: 374 | C37: PLAR | D37: 0 | E37: 0 | F37: 0 | G37: 0 | H37: 0 | I37: 0 | J37: 0 | K37: 0 | L37: 0 | M37: 0
A38: 378 | C38: Spec alloc. (Career P&P, Recruiting, Counsellor's Day) | D38: 7388.88 | E38: 0 | F38: 3959.64 | G38: 2493.9 | H38: 1323.96 | I38: 0 | J38: 0 | K38: 15166.38 | L38: 15469.7076 | M38: 15779.10175 | N38: 14869
A39: 393 | C39: Equipment - furniture (under $1000) | D39: 492.66 | E39: 0 | F39: 0 | G39: 0 | H39: 0 | I39: 4161.6 | J39: 0 | K39: 4654.26 | L39: 4747.3452 | M39: 4842.292104 | N39: 4563
A40: 399 | C40: Recoveries | D40: 0 | E40: 0 | F40: 0 | G40: 0 | H40: 0 | I40: 0 | J40: 0 | K40: 0 | L40: 0 | M40: 0
A41: 4xx | C41: Student Costs | D41: 0 | E41: 0 | F41: 0 | G41: 0 | H41: 0 | I41: -4362.54 | J41: 0 | K41: -4362.54 | L41: -4449.7908 | M41: -4538.786616 | N41: -4277
A42: 799 | C42: Interfund Transfers (from Ancillary) | D42: 0 | E42: -250082 | F42: 0 | G42: 0 | H42: 0 | I42: 0 | J42: 0 | K42: -250082 | L42: -255083.64 | M42: -260185.3128 | N42: -250082
A43: *** | C43: Unallocated | D43: 45900 | E43: 5155 | F43: 0 | G43: 0 | H43: 0 | I43: 0 | J43: 0 | K43: 51055 | L43: 52076.1 | M43: 53117.622 | N43: 55155
C44: SUB-TOTAL: SUPPLIES & OTHER EXPS: | D44: 74434.5 | E44: -212090 | F44: 72471 | G44: 25617.3 | H44: 36814.86 | I44: 14503.38 | J44: 0 | K44: 11751.04 | L44: 11986.0608 | M44: 12225.78202 | N44: 12362
A45: 503 | C45: BUF Donations | D45: -2500 | E45: 0 | F45: 0 | G45: 0 | H45: 0 | I45: 0 | J45: 0 | K45: -2500 | L45: -2500 | M45: -2500 | N45: -2500
A46: 5xx | C46: Revenues | D46: 0 | E46: 0 | F46: 0 | G46: 0 | H46: 0 | I46: -178125 | J46: 0 | K46: -178125 | L46: -178125 | M46: -178125 | N46: -178125
C47: SUB-TOTAL: REVENUES | D47: -2500 | E47: 0 | F47: 0 | G47: 0 | H47: 0 | I47: -178125 | J47: 0 | K47: -180625 | L47: -180625 | M47: -180625 | N47: -180625
A48: 901 | C48: Equipment purchases | D48: 10039.86 | E48: 0 | F48: 0 | G48: 0 | H48: 5630.4 | I48: 0 | J48: 0 | K48: 15670.26 | L48: 15670.26 | M48: 15670.26 | N48: 15363
C49: SUB-TOTAL: EQUIPMENT: | D49: 10039.86 | E49: 0 | F49: 0 | G49: 0 | H49: 5630.4 | I49: 0 | J49: 0 | K49: 15670.26 | L49: 15670.26 | M49: 15670.26 | N49: 15363
C50: ANNUAL BUDGET: | D50: 1513075.622 | E50: -26735.70861 | F50: 419850.5268 | G50: 256465.5909 | H50: 335715.6055 | I50: -44073.64 | J50: 0 | K50: 2454297.997 | L50: 2586210.32 | M50: 2636357.852 | N50: 2532091

Sheet Registrar
C1: BRANDON UNIVERSITY ** UNIVERSITY REGISTRAR**
C2: REFERENCE BUDGET
C3: APRIL 2018 TO MARCH 2019
D4: 5501 | E4: 5502 | F4: 5505 | G4: 2018/19 | H4: 2019/20 | I4: 2020/21 | J4: 2017/18
D5: REG. | E5: ADMISS. | F5: CONVOC | G5: REF'NCE | H5: PROJ. | I5: PROJ. | J5: APPROVED
C6: EXPENDITURE: | D6: OFFICE | G6: BUDGET | H6: BUDGET | I6: BUDGET | J6: BUDGET
A7: 001 | C7: Acad./Sabb/I.A. | D7: 21776.34375 | E7: 105169.15 | F7: 0 | G7: 126945.4937 | H7: 129326.9121 | I7: 131755.9589 | J7: 102604
A8: 003 | C8: F.T. Support | D8: 415994.005 | E8: 108079.2 | F8: 0 | G8: 524073.205 | H8: 542469.3166 | I8: 550663.6225 | J8: 450892
A9: 004 | C9: P.T. Support | D9: 0 | E9: 0 | F9: 0 | G9: 0 | H9: 0 | I9: 0
A10: 005 | C10: P.T./Student Assistants/Casual | D10: 1217.540833 | E10: 0 | F10: 379.1025 | G10: 1596.643333 | H10: 1609.815641 | I10: 1635.975145 | J10: 1592
A11: 099/199 | C11: Recoveries | D11: 0 | E11: 0 | F11: 0 | G11: 0 | H11: 0 | I11: 0
A12: 100 | C12: Benefits | D12: 90431.50525 | E12: 43929.1601 | F12: 17.0596125 | G12: 134377.725 | H12: 138048.2391 | I12: 140231.3891 | J12: 115673
C13: SUB-TOTAL: SALARIES & BENEFITS: | D13: 529419.3948 | E13: 257177.5101 | F13: 396.1621125 | G13: 786993.067 | H13: 811454.2835 | I13: 824286.9456 | J13: 670761
A14: 201/02/06 | C14: Travel/Moving/Recruitment | D14: 709.92 | E14: 0 | F14: 142.8 | G14: 852.72 | H14: 852.72 | I14: 852.72 | J14: 836
A15: 204/05/10 | C15: Prof. Dev. Allowances | D15: 2500 | E15: 2000 | F15: 0 | G15: 4500 | H15: 4500 | I15: 4500 | J15: 4500
A16: 214 | C16: Student Travel Fund | D16: 0 | E16: 0 | F16: 0 | G16: 0 | H16: 0 | I16: 0
A17: 299 | C17: Recoveries | D17: 0 | E17: 0 | F17: 0 | G17: 0 | H17: 0 | I17: 0
C18: SUB-TOTAL: TRAVEL & MOVING: | D18: 3209.92 | E18: 2000 | F18: 142.8 | G18: 5352.72 | H18: 5352.72 | I18: 5352.72 | J18: 5336
A19: 301 | C19: Advertising | D19: 0 | E19: 575.28 | F19: 0 | G19: 575.28 | H19: 575.28 | I19: 575.28 | J19: 564
A20: 302 | C20: Special Allowances | D20: 0 | E20: 0 | F20: 0 | G20: 0 | H20: 0 | I20: 0
A21: 304 | C21: Consumables | D21: 3381.3 | E21: 996.54 | F21: 4561.44 | G21: 8939.28 | H21: 8939.28 | I21: 8939.28 | J21: 8764
A22: 305 | C22: Photocopying - Printing | D22: 3910.68 | E22: 4550.22 | F22: 6878.88 | G22: 15339.78 | H22: 15339.78 | I22: 15339.78 | J22: 15039
A23: 307 | C23: Membership Subscriptions | D23: 325.38 | E23: 0 | F23: 0 | G23: 325.38 | H23: 325.38 | I23: 325.38 | J23: 319
A24: 308 | C24: Postage | D24: 3439.44 | E24: 4975.56 | F24: 1569.78 | G24: 9984.78 | H24: 9984.78 | I24: 9984.78 | J24: 9789
A25: 309 | C25: Telephone - Long Dist. | D25: 240.72 | E25: 820.08 | F25: 0 | G25: 1060.8 | H25: 1060.8 | I25: 1060.8 | J25: 1040
A26: 310 | C26: Telephone - Rental | D26: 1417.8 | E26: 1170.96 | F26: 0 | G26: 2588.76 | H26: 2588.76 | I26: 2588.76 | J26: 2538
A27: 311 | C27: Repairs & Maintenance | D27: 179.52 | E27: 0 | F27: 0 | G27: 179.52 | H27: 179.52 | I27: 179.52 | J27: 176
A28: 312 | C28: Other Rentals | D28: 0 | E28: 0 | F28: 18385.5 | G28: 18385.5 | H28: 18385.5 | I28: 18385.5 | J28: 18025
A29: 314 | C29: Consulting | D29: 0 | E29: 0 | F29: 0 | G29: 0 | H29: 0 | I29: 0
A30: 317 | C30: Special Functions | D30: 0 | E30: 0 | F30: 7484.76 | G30: 7484.76 | H30: 7484.76 | I30: 7484.76 | J30: 7338
A31: 330 | C31: Food | D31: 1486.14 | E31: 0 | F31: 0 | G31: 1486.14 | H31: 1486.14 | I31: 1486.14 | J31: 1457
A32: 345 | C32: Staff Development | D32: 0 | E32: 0 | F32: 0 | G32: 0 | H32: 0 | I32: 0
A33: 354 | C33: Fax Expenses | D33: 121.38 | E33: 675.24 | F33: 0 | G33: 796.62 | H33: 796.62 | I33: 796.62 | J33: 781
A34: 358 | C34: Software Licensing | D34: 0 | E34: 0 | F34: 0 | G34: 0 | H34: 0 | I34: 0
A35: 369 | C35: Elders | D35: 0 | E35: 0 | F35: 0 | G35: 0 | H35: 0 | I35: 0
A36: 374 | C36: PLAR | D36: 1593.24 | E36: 0 | F36: 0 | G36: 1593.24 | H36: 1593.24 | I36: 1593.24 | J36: 1562
A37: 393 | C37: Equipment - furniture (under $1000) | D37: 0 | E37: 0 | F37: 0 | G37: 0 | H37: 0 | I37: 0
A38: 399 | C38: Recoveries | D38: 0 | E38: 0 | F38: 0 | G38: 0 | H38: 0 | I38: 0
A39: *** | C39: Unallocated | D39: 5100 | E39: 0 | F39: 0 | G39: 5100 | H39: 5100 | I39: 5100
C40: SUB-TOTAL: SUPPLIES & OTHER EXPS: | D40: 21195.6 | E40: 13763.88 | F40: 38880.36 | G40: 73839.84 | H40: 73839.84 | I40: 73839.84 | J40: 67392
A41: 5xx | C41: Revenues | D41: -18800 | E41: 0 | F41: 0 | G41: -18800 | H41: -18800 | I41: -18800 | J41: -10000
C42: SUB-TOTAL: REVENUES | D42: -18800 | E42: 0 | F42: 0 | G42: -18800 | H42: -18800 | I42: -18800 | J42: -10000
A43: 901 | C43: Equipment purchases | D43: 0 | E43: 0 | F43: 0 | G43: 0 | H43: 0 | I43: 0
C44: SUB-TOTAL: EQUIPMENT: | D44: 0 | E44: 0 | F44: 0 | G44: 0 | H44: 0 | I44: 0 | J44: 0
C45: ANNUAL BUDGET: | D45: 535024.9148 | E45: 272941.3901 | F45: 39419.32211 | G45: 847385.627 | H45: 871846.8435 | I45: 884679.5056 | J45: 733489

Sheet Athletics
C1: BRANDON UNIVERSITY ** ATHLETICS **
C2: REFERENCE BUDGET
C3: APRIL 2018 TO MARCH 2019
E4: 5401 | F4: 5402 | G4: 5403 | H4: 5404 | I4: 5405 | J4: 5406 | K4: 5407 | L4: 5499 | M4: 2018/19 | Q4: 2019/20 | R4: 2020/21 | S4: 2017/18
J5: ATHLETIC | L5: CARRY | M5: REF'NCE | N5: ADMIN | O5: LEAGUE | P5: FUND | Q5: PROJ. | R5: PROJ. | S5: APPROVED
C6: EXPENDITURE: | E6: ADMIN | F6: M.B.B. | G6: W.B.B | H6: M.V.B | I6: W.V.B. | J6: THERAPY | K6: CANTEEN | L6: FWD | M6: BUDGET | O6: PLAY | P6: RAISING | Q6: BUDGET | R6: BUDGET | S6: BUDGET
A7: 001 | C7: Director/Coaches/Therapist | E7: 87869.97631 | F7: 38725.8875 | G7: 60560.37136 | H7: 69411.999 | I7: 79007.4615 | J7: 60662.91875 | K7: 0 | L7: 0 | M7: 396238.6144 | N7: 396238.6144 | Q7: 438912.674 | R7: 445723.7466 | S7: 313758
A8: 002 | C8: Sessionals | J8: -18615 | M8: -18615 | N8: -18615 | Q8: -18616.05 | R8: -18616.05
A9: 003 | C9: Support | E9: 115204.44 | F9: 0 | G9: 0 | H9: 0 | I9: 0 | J9: 0 | K9: 0 | L9: 0 | M9: 115204.44 | N9: 103596.44 | P9: 11608 | Q9: 120388.6398 | R9: 121359.0995 | S9: 110770
A10: 004 | C10: Game Management salaries | E10: 15000 | F10: 0 | G10: 0 | H10: 0 | I10: 0 | J10: 0 | K10: 10000 | L10: 0 | M10: 25000 | O10: 15000 | P10: 10000 | Q10: 25000 | R10: 25000 | S10: 4000
A11: 005 | C11: Student Assistants | E11: 0 | F11: 2050 | G11: 2050 | H11: 2050 | I11: 2050 | J11: 3500 | K11: 15000 | L11: 0 | M11: 26700 | P11: 26700 | Q11: 26700 | R11: 26700 | S11: 26700
A12: 006 | C12: Assist. Coaches/Soccer Coaches | E12: 18410.7 | F12: 3500 | G12: 3500 | H12: 3500 | I12: 3500 | J12: 0 | K12: 0 | L12: 0 | M12: 32410.7 | O12: 32410.7 | Q12: 32410.7 | R12: 32410.7 | S12: 29608
A13: 007 | C13: Major/Minor Officials | E13: 0 | F13: 3000 | G13: 3000 | H13: 3000 | I13: 3000 | J13: 0 | K13: 0 | L13: 0 | M13: 12000 | O13: 12000 | Q13: 12000 | R13: 12000 | S13: 12000
A14: 1XX | C14: Benefits | E14: 34725.72519 | F14: 8209.88815 | G14: 9931.900903 | H14: 12563.57182 | I14: 12878.21622 | J14: 10312.69619 | K14: 0 | L14: 0 | M14: 88621.99847 | N14: 88621.99847 | Q14: 127359.1928 | R14: 128915.4992 | S14: 74294
C15: SUB-TOTAL: SALARIES & BENEFITS: | E15: 271210.8415 | F15: 55485.77565 | G15: 79042.27227 | H15: 90525.57082 | I15: 100435.6777 | J15: 55860.61494 | K15: 25000 | L15: 0 | M15: 677560.7529 | N15: 569842.0529 | O15: 59410.7 | P15: 48308 | Q15: 764155.1566 | R15: 773492.9953 | S15: 571130
A16: 203 | C16: League travel | E16: 0 | F16: 51736.44 | G16: 51736.44 | H16: 64076.4 | I16: 64076.4 | J16: 0 | K16: 0 | L16: 0 | M16: 231625.68 | O16: 231625.68 | Q16: 236258.1936 | R16: 240983.3575 | S16: 245084
A17: 206 | C17: Recruitment staff | E17: 0 | F17: 0 | G17: 0 | H17: 0 | I17: 0 | J17: 0 | K17: 0 | L17: 0 | M17: 0 | N17: 0 | Q17: 0 | R17: 0
A18: 211 | C18: Exhibition travel | E18: 0 | F18: 10000 | G18: 10000 | H18: 10000 | I18: 10000 | J18: 0 | K18: 0 | L18: 0 | M18: 40000 | P18: 40000 | Q18: 40800 | R18: 41616 | S18: 40000
A19: 201 | C19: Departmental travel | E19: 16401.6 | F19: 0 | G19: 0 | H19: 0 | I19: 0 | J19: 0 | K19: 0 | L19: 0 | M19: 16401.6 | N19: 16401.6 | Q19: 16729.632 | R19: 17064.22464 | S19: 16080
A20: 221 | C20: Playoff Travel | E20: 0 | F20: 0 | G20: 0 | H20: 0 | I20: 0 | J20: 0 | K20: 0 | L20: 0 | M20: 0 | Q20: 0 | R20: 0
A21: 231 | C21: Recruitment travel | E21: 0 | F21: 6623.88 | G21: 6623.88 | H21: 6623.88 | I21: 6623.88 | J21: 0 | K21: 0 | L21: 0 | M21: 26495.52 | N21: 26495.52 | Q21: 27025.4304 | R21: 27565.93901 | S21: 25976
C22: SUB-TOTAL: TRAVEL & MOVING: | E22: 16401.6 | F22: 68360.32 | G22: 68360.32 | H22: 80700.28 | I22: 80700.28 | J22: 0 | K22: 0 | L22: 0 | M22: 314522.8 | N22: 42897.12 | O22: 231625.68 | P22: 40000 | Q22: 320813.256 | R22: 327229.5211 | S22: 327140
A23: 301 | C23: Advertising | E23: 17075.82 | F23: 0 | G23: 0 | H23: 0 | I23: 0 | J23: 0 | K23: 0 | L23: 0 | M23: 17075.82 | N23: 17075.82 | Q23: 17417.3364 | R23: 17765.68313 | S23: 14082
A24: 304 | C24: Consumables | E24: 12240 | F24: 5575.32 | G24: 5575.32 | H24: 5575.32 | I24: 5575.32 | J24: 7039.02 | K24: 0 | L24: 0 | M24: 41580.3 | N24: 41580.3 | Q24: 42411.906 | R24: 43260.14412 | S24: 40765
A25: 305 | C25: Photocopying - Printing | E25: 1126.08 | F25: 224.4 | G25: 224.4 | H25: 224.4 | I25: 224.4 | J25: 224.4 | K25: 0 | L25: 0 | M25: 2248.08 | N25: 2248.08 | Q25: 2293.0416 | R25: 2338.902432 | S25: 2204
A26: 307 | C26: Memberships/subscriptions | E26: 447.78 | F26: 581.4 | G26: 581.4 | H26: 581.4 | I26: 581.4 | J26: 0 | K26: 0 | L26: 0 | M26: 2773.38 | N26: 2773.38 | Q26: 2828.8476 | R26: 2885.424552 | S26: 2719
A27: 308 | C27: Postage | E27: 408 | F27: 0 | G27: 0 | H27: 0 | I27: 0 | J27: 0 | K27: 0 | L27: 0 | M27: 408 | N27: 408 | Q27: 416.16 | R27: 424.4832 | S27: 400
A28: 309 | C28: Telephone - LD | E28: 2856 | F28: 1464.72 | G28: 1464.72 | H28: 1464.72 | I28: 1464.72 | J28: 73.44 | K28: 0 | L28: 0 | M28: 8788.32 | N28: 8788.32 | Q28: 8964.0864 | R28: 9143.368128 | S28: 8616
A29: 310 | C29: Telephone - Rental | E29: 1032.24 | F29: 687.48 | G29: 343.74 | H29: 343.74 | I29: 343.74 | J29: 343.74 | K29: 0 | L29: 0 | M29: 3094.68 | N29: 3094.68 | Q29: 3156.5736 | R29: 3219.705072 | S29: 3034
A30: 311 | C30: Repairs & Maintenance | E30: 788.46 | F30: 0 | G30: 0 | H30: 0 | I30: 0 | J30: 0 | K30: 0 | L30: 0 | M30: 788.46 | N30: 788.46 | Q30: 804.2292 | R30: 820.313784 | S30: 773
A31: 314 | C31: Consulting | E31: 0 | F31: 2040 | G31: 2040 | H31: 2040 | I31: 2040 | J31: 0 | K31: 0 | L31: 0 | M31: 8160 | N31: 8160 | Q31: 8323.2 | R31: 8489.664 | S31: 8000
A32: 317 | C32: Athl Direct. Mtgs./News Conf. | E32: 0 | F32: 0 | G32: 0 | H32: 0 | I32: 0 | J32: 0 | K32: 0 | L32: 0 | M32: 0 | N32: 0 | Q32: 0 | R32: 0 | S32: 993
A33: 321 | C33: Insurance | E33: 0 | F33: 0 | G33: 0 | H33: 0 | I33: 0 | J33: 393.72 | K33: 0 | L33: 0 | M33: 393.72 | N33: 393.72 | Q33: 401.5944 | R33: 409.626288 | S33: 386
A34: 328 | C34: Provision Account* | E34: 2040 | F34: 0 | G34: 0 | H34: 0 | I34: 0 | J34: 0 | K34: 0 | L34: 0 | M34: 2040 | P34: 2040 | Q34: 2080.8 | R34: 2122.416 | S34: 800
A35: 357 | C35: Software | E35: 2550 | F35: 0 | G35: 0 | H35: 0 | I35: 0 | J35: 0 | K35: 0 | L35: 0 | M35: 2550 | N35: 2550 | Q35: 2601 | R35: 2653.02 | S35: 2500
A36: 354 | C36: Fax expenses | E36: 255 | F36: 0 | G36: 0 | H36: 0 | I36: 0 | J36: 0 | K36: 0 | L36: 0 | M36: 255 | N36: 255 | Q36: 260.1 | R36: 265.302 | S36: 250
A37: 378 | C37: Special allocations | E37: 5259.12 | F37: 0 | G37: 0 | H37: 0 | I37: 0 | J37: 0 | K37: 0 | L37: 0 | M37: 5259.12 | P37: 5259.12 | Q37: 5364.3024 | R37: 5471.588448 | S37: 2156
A38: 393 | C38: Equipment <$1000 | E38: 1126.08 | F38: 0 | G38: 0 | H38: 0 | I38: 0 | J38: 0 | K38: 0 | L38: 0 | M38: 1126.08 | N38: 1126.08 | Q38: 1148.6016 | R38: 1171.573632 | S38: 1104
A39: 399 | C39: Recoveries | E39: 0 | F39: 0 | G39: 0 | H39: 0 | I39: 0 | J39: 0 | K39: 0 | L39: 0 | M39: 0 | N39: 0 | Q39: 0 | R39: 0
A40: *** | C40: Unallocated | F40: 0 | G40: 0 | H40: 0 | I40: 0 | J40: 0 | K40: 0 | L40: 0 | M40: 0 | N40: 0 | Q40: 0 | R40: 0
C41: SUB-TOTAL: SUPPLIES & OTHER EXPS: | E41: 47204.58 | F41: 10573.32 | G41: 10229.58 | H41: 10229.58 | I41: 10229.58 | J41: 8074.32 | K41: 0 | L41: 0 | M41: 96540.96 | N41: 89241.84 | O41: 0 | P41: 7299.12 | Q41: 98471.7792 | R41: 100441.2148 | S41: 88782
A42: 502 | C42: Merchandise - revenues | E42: -3850 | M42: -3850 | P42: -3850 | Q42: -3850 | R42: -3850 | S42: -3850
A43: 403 | C43: Scholarships | E43: 20796 | M43: 20796 | P43: 20796 | Q43: 20796 | R43: 20796 | S43: 20796
A44: 503 | C44: BUF Donations | E44: 0 | M44: 0 | P44: 0 | Q44: 0 | R44: 0
A45: 405 | C45: Bingo - expenses | E45: 0 | M45: 0 | P45: 0 | Q45: 0 | R45: 0 | S45: 600
A46: 505 | C46: Bingo - revenues | E46: -14905 | M46: -14905 | P46: -14905 | Q46: -14905 | R46: -14905 | S46: -13500
A47: 406 | C47: CIS/CW playoff - expenses | E47: 3021.24 | M47: 3021.24 | O47: 3021.24 | Q47: 3021.24 | R47: 3021.24 | S47: 2962
A48: 506 | C48: CIS/CW playoff - revenues | E48: -13948.5 | M48: -13948.5 | O48: -13948.5 | Q48: -13948.5 | R48: -13948.5 | S48: -13675
A49: 407 | C49: Hall of Fame - expenses | E49: 3500 | M49: 3500 | P49: 3500 | Q49: 3500 | R49: 3500 | S49: 2500
A50: 507 | C50: Hall of Fame - revenues | E50: -2500 | M50: -2500 | P50: -2500 | Q50: -2500 | R50: -2500 | S50: -2500
A51: 408 | C51: Awards banquet - expenses | E51: 10200 | M51: 10200 | N51: 10200 | Q51: 10200 | R51: 10200 | S51: 5000
A52: 508 | C52: Awards banquet -revenues | E52: -1326 | M52: -1326 | N52: -1326 | Q52: -1326 | R52: -1326 | S52: -300
A53: 409 | C53: Parent/Alumni Receptions | E53: 2040 | M53: 2040 | N53: 2040 | Q53: 2040 | R53: 2040 | S53: 2000
A54: 410 | C54: Sp/Su League & Camp Expenses | E54: 0 | G54: 0 | J54: 0 | K54: 0 | L54: 0 | M54: 0 | P54: 0 | Q54: 0 | R54: 0 | S54: 0
A55: 510 | C55: Sp/Su League & Camp revenues | G55: 0 | K55: 0 | L55: 0 | M55: 0 | P55: 0 | Q55: 0 | R55: 0 | S55: 0
A56: 412 | C56: August Sport Camp Expense | E56: 1000 | F56: 1600 | G56: 1600 | H56: 1600 | I56: 1600 | M56: 7400 | P56: 7400 | Q56: 7400 | R56: 7400 | S56: 6400
A57: 512 | C57: August Sport Camp Revenues | E57: 0 | F57: -6038 | G57: -6038 | H57: -6038 | I57: -6038 | M57: -24152 | P57: -24152 | Q57: -24152 | R57: -24152 | S57: -24152
A58: 415 | C58: General CIS Expenses | E58: 18870 | M58: 18870 | O58: 18870 | Q58: 18870 | R58: 18870 | S58: 13500
A59: 416 | C59: General CW Expenses | E59: 85815.66 | M59: 85815.66 | O59: 85815.66 | Q59: 85815.66 | R59: 85815.66 | S59: 71133
A60: 419 | C60: VB High School Tourney - expense | E60: 0 | M60: 0 | P60: 0 | Q60: 0 | R60: 0 | S60: 0
A61: 519 | C61: VB High School Tourney - revenue | E61: 0 | M61: 0 | P61: 0 | Q61: 0 | R61: 0 | S61: 0
A62: 420 | C62: VB Coach Clinic - expense | E62: 0 | M62: 0 | P62: 0 | Q62: 0 | R62: 0 | S62: 0
A63: 520 | C63: VB Coach Clinic - revenue | E63: 0 | M63: 0 | P63: 0 | Q63: 0 | R63: 0 | S63: 0
A64: 421 | C64: Recruitment application fees | E64: 0 | M64: 0 | P64: 0 | Q64: 0 | R64: 0 | S64: 0
A65: 421 | C65: VB Club - expense | E65: 0 | M65: 0 | P65: 0 | Q65: 0 | R65: 0 | S65: 0
A66: 521 | C66: VB Club - revenue | E66: 0 | M66: 0 | P66: 0 | Q66: 0 | R66: 0 | S66: 0
A67: 515 | C67: Inter-Department Transfers | E67: 17000 | M67: 17000 | P67: 17000 | Q67: 17000 | R67: 17000
A68: 422 | C68: Bobcat Den liqour - expenses | E68: 0 | K68: 10000 | M68: 10000 | P68: 10000 | Q68: 10000 | R68: 10000 | S68: 3000
A69: 522 | C69: Bobcat Den liqour - revenues | E69: 0 | K69: -25000 | M69: -25000 | P69: -25000 | Q69: -25000 | R69: -25000 | S69: -5000
A70: 423 | C70: Bobcat Den snack - expenses | E70: 0 | K70: 30200 | M70: 30200 | P70: 30200 | Q70: 30200 | R70: 30200 | S70: 200
A71: 523 | C71: Bobcat Den snack - revenues | E71: 0 | K71: -45200 | M71: -45200 | P71: -45200 | Q71: -45200 | R71: -45200 | S71: -2200
A72: 424 | C72: Bobcat Nation - expenses | E72: 1000 | M72: 1000 | P72: 1000 | Q72: 1000 | R72: 1000 | S72: 1000
A73: 524 | C73: Bobcat Nation Kids Club - revenues | E73: -300 | M73: -300 | P73: -300 | Q73: -300 | R73: -300 | S73: -300
A74: 425 | C74: Fundraising - expense | E74: 1000 | M74: 1000 | P74: 1000 | Q74: 1000 | R74: 1000 | S74: 1000
A75: 525 | C75: Fundraising - revenue | E75: -2028 | M75: -2028 | P75: -2028 | Q75: -2028 | R75: -2028 | S75: -2028
A76: 426 | C76: Men's Soccer | E76: 15000 | M76: 15000 | O76: 15000 | Q76: 15000 | R76: 15000 | S76: 15000
A77: 427 | C77: Women's Soccer | E77: 15000 | M77: 15000 | O77: 15000 | Q77: 15000 | R77: 15000 | S77: 15000
A78: 526 | C78: Soccer - revenue | E78: 0 | M78: 0 | O78: 0 | Q78: 0 | R78: 0
A79: 428 | C79: Cheerleading - expense | E79: 1500 | M79: 1500 | P79: 1500 | Q79: 1500 | R79: 1500 | S79: 1000
A80: 429 | C80: Curling - expense | E80: 1500 | M80: 1500 | P80: 1500 | Q80: 1500 | R80: 1500
A81: 529 | C81: Curling - revenue | E81: 0 | M81: 0 | P81: 0 | Q81: 0 | R81: 0
A82: 430 | C82: Game Management - expense | E82: 12394.02 | M82: 12394.02 | O82: 12394.02 | Q82: 12394.02 | R82: 12394.02 | S82: 10151
A83: 530 | C83: Game Mgmnt - revenues (gate) | E83: -26579.16 | M83: -26579.16 | O83: -26579.16 | Q83: -26579.16 | R83: -26579.16 | S83: -26399
A84: 531 | C84: Season Ticket - revenue | E84: -14000 | M84: -14000 | O84: -14000 | Q84: -14000 | R84: -14000 | S84: -14000
A85: 432 | C85: Raffle - expenses | E85: 1000 | M85: 1000 | P85: 1000 | Q85: 1000 | R85: 1000
A86: 532 | C86: Raffle - revenues | E86: 0 | M86: 0 | P86: 0 | Q86: 0 | R86: 0
A87: 533 | C87: Sport Manitoba | E87: -37740 | M87: -37740 | N87: -37740 | Q87: -37740 | R87: -37740 | S87: -37302
A88: 5XX | C88: Athletic Therapy - revenues | E88: 0 | J88: -2500 | M88: -2500 | N88: -2500 | Q88: -2500 | R88: -2500 | S88: -2500
A89: 438 | C89: Guarantees paid | E89: 0 | M89: 0 | Q89: 0 | R89: 0
A90: 538 | C90: Guarantees received in cash | E90: 0 | M90: 0 | P90: 0 | Q90: 0 | R90: 0
A91: 439 | C91: Sponsorship Expenses | E91: 5000 | M91: 5000 | P91: 5000 | Q91: 5000 | R91: 5000 | S91: 2000
A92: 539 | C92: Sponsorship - revenues | E92: -76978 | M92: -76978 | P92: -76978 | Q92: -76978 | R92: -76978 | S92: -64555
A93: 570 | C93: Employment grant | E93: 0 | M93: 0 | Q93: 0 | R93: 0
C94: SUBTOTAL OTHER PGM REV/EXP | E94: 21482.26 | F94: -4438 | G94: -4438 | H94: -4438 | I94: -4438 | J94: -2500 | K94: -30000 | L94: 0 | M94: -28769.74 | N94: -29326 | O94: 95573.26 | P94: -95017 | Q94: -28769.74 | R94: -28769.74 | S94: -39019
A95: 901 | C95: Renovations and Equipment | E95: 0 | F95: 0 | G95: 0 | H95: 0 | I95: 0 | J95: 0 | K95: 0 | L95: 0 | M95: 0 | N95: 0 | Q95: 0 | R95: 0
C96: SUBTOTAL RENOV AND EQUIP | E96: 0 | F96: 0 | G96: 0 | H96: 0 | I96: 0 | J96: 0 | K96: 0 | L96: 0 | M96: 0 | N96: 0 | O96: 0 | P96: 0 | Q96: 0 | R96: 0 | S96: 0
C97: ANNUAL BUDGET: | E97: 356299.2815 | F97: 129981.4157 | G97: 153194.1723 | H97: 177017.4308 | I97: 186927.5377 | J97: 61434.93494 | K97: -5000 | L97: 0 | M97: 1059854.773 | N97: 672655.0129 | O97: 386609.64 | P97: 590.12 | Q97: 1154670.452 | R97: 1172393.991 | S97: 948033
N98: 0

Sheet Campus Rec.
C1: BRANDON UNIVERSITY ** CAMPUS RECREATION **
C2: REFERENCE BUDGET
C3: APRIL 2018 TO MARCH 2019
D4: 5411 | E4: 5413 | F4: 5498 | G4: 2018/19 | H4: 2019/20 | I4: 2020/21 | J4: 2017/18
D5: FITNESS/ | E5: CAM-REC | F5: CARRY | G5: REF'NCE | H5: PROJ. | I5: PROJ. | J5: APPROVED
C6: EXPENDITURE: | D6: CLUBS | E6: ADMIN | F6: FWRD | G6: BUDGET | H6: BUDGET | I6: BUDGET | J6: BUDGET
A7: 001/002 | C7: Academic FT/PT | D7: 0 | E7: 38725.8875 | F7: 0 | G7: 38725.8875 | H7: 38725.8875 | I7: 38725.8875 | J7: 37781
A8: 003 | C8: Support/Instructors | D8: 0 | E8: 0 | F8: 0 | G8: 0 | H8: 0 | I8: 0 | J8: 0
A9: 005 | C9: Student Assistants | D9: 3000 | E9: 3000 | F9: 0 | G9: 6000 | H9: 6000 | I9: 6000 | J9: 6000
A10: 029 | C10: Tuition Waivers | D10: 0 | E10: 0 | F10: 0 | G10: 0 | H10: 0 | I10: 0 | J10: 0
A11: 1XX | C11: Benefits | D11: 450 | E11: 6258.883125 | F11: 0 | G11: 6708.883125 | H11: 5367.1065 | I11: 8945.1775 | J11: 7239
C12: SUB-TOTAL: SALARIES & BENEFITS: | D12: 3450 | E12: 47984.77062 | F12: 0 | G12: 51434.77062 | H12: 50092.994 | I12: 53671.065 | J12: 51020
A13: 201/02/06 | C13: Travel/Moving/Recruitment | D13: 0 | E13: 473.28 | F13: 0 | G13: 473.28 | H13: 482.7456 | I13: 492.400512 | J13: 464
C14: SUB-TOTAL: TRAVEL & MOVING: | D14: 0 | E14: 473.28 | F14: 0 | G14: 473.28 | H14: 482.7456 | I14: 492.400512 | J14: 464
A15: 301 | C15: Advertising | D15: 0 | E15: 1040.4 | F15: 0 | G15: 1040.4 | H15: 1061.208 | I15: 1082.43216 | J15: 1020
A16: 304 | C16: Consumables | D16: 0 | E16: 2121.6 | F16: 0 | G16: 2121.6 | H16: 2164.032 | I16: 2207.31264 | J16: 2080
A17: 305 | C17: Photocopying - Printing | D17: 0 | E17: 312.12 | F17: 0 | G17: 312.12 | H17: 318.3624 | I17: 324.729648 | J17: 306
A18: 308 | C18: Postage | D18: 0 | E18: 41.82 | F18: 0 | G18: 41.82 | H18: 42.6564 | I18: 43.509528 | J18: 41
A19: 309 | C19: Telephone - Long Dist. | D19: 0 | E19: 520.2 | F19: 0 | G19: 520.2 | H19: 530.604 | I19: 541.21608 | J19: 510
A20: 310 | C20: Telephone - Rental | D20: 0 | E20: 1030.2 | F20: 0 | G20: 1030.2 | H20: 1050.804 | I20: 1071.82008 | J20: 1010
A21: 311 | C21: Repairs & Maintenance | D21: 0 | E21: 104.04 | F21: 0 | G21: 104.04 | H21: 106.1208 | I21: 108.243216 | J21: 102
A22: 314 | C22: Consultants | D22: 2080.8 | E22: 0 | F22: 0 | G22: 2080.8 | H22: 2122.416 | I22: 2164.86432 | J22: 2040
A23: 354 | C23: Fax expenses | D23: 0 | E23: 60.18 | F23: 0 | G23: 60.18 | H23: 61.3836 | I23: 62.611272 | J23: 59
A24: 357/358 | C24: Software/licencing/support | D24: 0 | E24: 1456.56 | F24: 0 | G24: 1456.56 | H24: 1485.6912 | I24: 1515.405024 | J24: 1428
A25: 393 | C25: Equipment - furniture (under $1000) | D25: 0 | E25: 1090.38 | F25: 0 | G25: 1090.38 | H25: 1112.1876 | I25: 1134.431352 | J25: 1069
A26: 399 | C26: Recoveries | G26: 0 | H26: 0 | I26: 0
A27: *** | C27: Unallocated | D27: 0 | E27: 0 | F27: 0 | G27: 0 | H27: 0 | I27: 0
C28: SUB-TOTAL:SUPPLIES & OTHER EXP.: | D28: 2080.8 | E28: 7777.5 | F28: 0 | G28: 9858.3 | H28: 10055.466 | I28: 10256.57532 | J28: 9665
A29: 400 | C29: Program Expenses | D29: 0 | E29: 0 | F29: 0 | G29: 0 | H29: 0 | I29: 0
A30: 600 | C30: Program Revenues | D30: -600 | E30: 0 | F30: 0 | G30: -600 | H30: -612 | I30: -624.24 | J30: -600
A31: 608 | C31: Canoe rental - rev | D31: 0 | E31: 0 | F31: 0 | G31: 0 | H31: 0 | I31: 0 | J31: 0
A32: 609 | C32: Ski rental - rev | D32: 0 | E32: 0 | F32: 0 | G32: 0 | H32: 0 | I32: 0 | J32: 0
A33: 410/610 | C33: Touch football | D33: 0 | E33: 0 | F33: 0 | G33: 0 | H33: 0 | I33: 0 | J33: 0
A34: 411/611 | C34: Soccer | D34: -100 | E34: 0 | F34: 0 | G34: -100 | H34: -102 | I34: -104.04 | J34: -100
A35: 412/612 | C35: Fencing | D35: 0 | E35: 0 | F35: 0 | G35: 0 | H35: 0 | I35: 0 | J35: 0
C36: Ice hockey | D36: 0 | E36: 0 | F36: 0 | G36: 0 | H36: 0 | I36: 0 | J36: 0
A37: 413/613 | C37: Judo | D37: 0 | E37: 0 | G37: 0 | H37: 0 | I37: 0 | J37: 0
A38: 414/614 | C38: Basketball | D38: 0 | E38: 0 | F38: 0 | G38: 0 | H38: 0 | I38: 0 | J38: 0
C39: Vollyball | D39: 0 | E39: 0 | F39: 0 | G39: 0 | H39: 0 | I39: 0 | J39: 0
A40: 416/616 | C40: Doc Hannah Vollyball | D40: 0 | E40: 0 | F40: 0 | G40: 0 | H40: 0 | I40: 0 | J40: 0
A41: 417/617 | C41: Slo-pitch | D41: 0 | E41: 0 | F41: 0 | G41: 0 | H41: 0 | I41: 0 | J41: 0
A42: 616 | C42: Table Tennis | D42: 0 | E42: 0 | F42: 0 | G42: 0 | H42: 0 | I42: 0
A43: 617 | C43: Ultimate Disc | D43: 0 | E43: 0 | F43: 0 | G43: 0 | H43: 0 | I43: 0
A44: 418/618 | C44: Blue and Gold Curling | D44: 0 | E44: 0 | F44: 0 | G44: 0 | H44: 0 | I44: 0 | J44: 0
A45: 419/619 | C45: Road race | D45: 0 | E45: 0 | F45: 0 | G45: 0 | H45: 0 | I45: 0 | J45: 0
A46: 422/622 | C46: Badminton | D46: -5371 | E46: 0 | F46: 0 | G46: -5371 | H46: -5478.42 | I46: -5587.9884 | J46: -5371
A47: 423/625 | C47: TRX | D47: -760 | E47: 0 | F47: 0 | G47: -760 | H47: -775.2 | I47: -790.704 | J47: -760
A48: 430/630 | C48: Swim/Skate program | D48: 5000 | E48: 0 | F48: 0 | G48: 5000 | H48: 5100 | I48: 5202 | J48: 5000
A49: 431/631 | C49: HIIT | D49: 0 | E49: 0 | F49: 0 | G49: 0 | H49: 0 | I49: 0
A50: 432/632 | C50: Racquetball | D50: 0 | E50: 0 | F50: 0 | G50: 0 | H50: 0 | I50: 0
A51: 435/635 | C51: Yoga | D51: -1500 | E51: 0 | F51: 0 | G51: -1500 | H51: -1530 | I51: -1560.6 | J51: -1500
A52: 636 | C52: Boot Camp | D52: -300 | E52: 0 | F52: 0 | G52: -300 | H52: -306 | I52: -312.12 | J52: -300
A53: 638 | C53: Pilates | D53: -300 | E53: 0 | F53: 0 | G53: -300 | H53: -306 | I53: -312.12 | J53: -300
A54: 639 | C54: Cardio | G54: 0 | H54: 0 | I54: 0
A55: 440/640 | C55: Zumba | D55: -1500 | E55: 0 | F55: 0 | G55: -1500 | H55: -1530 | I55: -1560.6 | J55: -1500
A56: 641 | C56: Tabata | G56: 0 | H56: 0 | I56: 0
A57: 442/642 | C57: Swing Dance | D57: -500 | E57: 0 | F57: 0 | G57: -500 | H57: -510 | I57: -520.2 | J57: -500
A58: 646 | C58: Ki-Rin Tae Kwon-Do rev | D58: 0 | G58: 0 | H58: 0 | I58: 0 | J58: 0
A59: 672 | C59: Donations | D59: 0 | E59: 0 | F59: 0 | G59: 0 | H59: 0 | I59: 0 | J59: 0
A60: 673 | C60: BUSU Recreation fee | D60: 0 | E60: 0 | F60: 0 | G60: 0 | H60: 0 | I60: 0 | J60: 0
A61: 644 | C61: Kickboxing | G61: 0 | H61: 0 | I61: 0
A62: 679 | C62: Fundraising | D62: 0 | E62: 0 | F62: 0 | G62: 0 | H62: 0 | I62: 0
A63: 647 | C63: Multi-Sport Toddler/Youth Camp | G63: 0 | H63: 0 | I63: 0
A64: 480/680 | C64: Clinics - net | D64: 0 | E64: 0 | F64: 0 | G64: 0 | H64: 0 | I64: 0
A65: 481/681 | C65: Workshops - net | D65: 0 | E65: 0 | F65: 0 | G65: 0 | H65: 0 | I65: 0
A66: 499/699 | C66: Other activities/recoveries | D66: 0 | E66: 0 | F66: 0 | G66: 0 | H66: 0 | I66: 0
A67: 570 | C67: Employment Grant - Provincial | G67: 0 | H67: 0 | I67: 0
C68: SUB-TOTAL: PROGRAM EXPS/REVS: | D68: -5931 | E68: 0 | F68: 0 | G68: -5931 | H68: -6049.62 | I68: -6170.6124 | J68: -5931
A69: 9xx | C69: Equipment purchases | D69: 0 | E69: 0 | F69: 0 | G69: 0 | H69: 0 | I69: 0
C70: SUB-TOTAL: EQUIPMENT: | D70: 0 | E70: 0 | F70: 0 | G70: 0 | H70: 0 | I70: 0 | J70: 0
C71: ANNUAL BUDGET | D71: -400.2 | E71: 56235.55062 | F71: 0 | G71: 55835.35062 | H71: 54581.5856 | I71: 58249.42843 | J71: 55218

Sheet HLC
C1: BRANDON UNIVERSITY ** HEALTHY LIVING CENTRE **
C2: REFERENCE BUDGET
C3: APRIL 2018 TO MARCH 2019 | F3: 2018/19 | G3: 2019/20 | H3: 2020/21 | I3: 2017/18
E4: CARRY | F4: REF'NCE | G4: PROJ. | H4: PROJ. | I4: APPROVED
C5: EXPENDITURE: | D5: HLC | E5: FWD | F5: BUDGET | G5: BUDGET | H5: BUDGET | I5: BUDGET
C6: SALARIES & BENEFITS
A7: 003 | C7: Full-Time Support | D7: 255881.21 | E7: 0 | F7: 255881.21 | G7: 261405.2399 | H7: 263364.028 | I7: 248636
A8: 005 | C8: Student Assistants | D8: 84245 | E8: 0 | F8: 84245 | G8: 84940.02125 | H8: 86320.2966 | I8: 84000
A9: 018/019 | C9: Cleaners (charge from PP) | D9: 181246.36 | F9: 181246.36 | G9: 185777.519 | H9: 185777.519 | I9: 180325
A10: 100 | C10: Benefits | D10: 40815.1452 | E10: 0 | F10: 40815.1452 | G10: 55415.24178 | H10: 55949.49194 | I10: 41580
A11: 099/199 | C11: Recoveries | D11: -10000 | E11: 0 | F11: -10000 | G11: -10000 | H11: -10000 | I11: -10000
C12: SUB-TOTAL: SALARIES & BENEFITS: | D12: 552187.7152 | E12: 0 | F12: 552187.7152 | G12: 577538.0219 | H12: 581411.3356 | I12: 544541
A13: 201/02/06 | C13: Travel/Moving/Recruitment | D13: 400 | E13: 0 | F13: 400 | G13: 408 | H13: 416.16 | I13: 400
A14: 204/05/10 | C14: Prof. Dev. Allowances | D14: 2000 | E14: 0 | F14: 2000 | G14: 2000 | H14: 2000 | I14: 2000
D15: 2400 | E15: 0 | F15: 2400 | G15: 2408 | H15: 2416.16 | I15: 2400
A16: 301 | C16: Advertising | D16: 10000 | F16: 10000 | G16: 10200 | H16: 10404 | I16: 10000
A17: 304 | C17: Consumables | D17: 3000 | E17: 0 | F17: 3000 | G17: 3060 | H17: 3121.2 | I17: 3000
A18: 305 | C18: Photocopying - Printing | D18: 3500 | E18: 0 | F18: 3500 | G18: 3570 | H18: 3641.4 | I18: 3500
A19: 308 | C19: Postage | D19: 350 | E19: 0 | F19: 350 | G19: 357 | H19: 364.14 | I19: 350
A20: 309 | C20: Telephone - Long Dist. | D20: 1020 | E20: 0 | F20: 1020 | G20: 1040.4 | H20: 1061.208 | I20: 1020
A21: 310 | C21: Telephone - Rental | D21: 1310 | E21: 0 | F21: 1310 | G21: 1336.2 | H21: 1362.924 | I21: 1310
A22: 311 | C22: Repairs & Maintenance | D22: 46500 | E22: 0 | F22: 46500 | G22: 47430 | H22: 48378.6 | I22: 46500
A23: 312 | C23: Other Rentals | D23: 3100 | E23: 0 | F23: 3100 | G23: 3162 | H23: 3225.24 | I23: 3100
A24: 314 | C24: Consulting/Professional Fees | D24: 0 | F24: 0 | G24: 0 | H24: 0
A25: 320 | C25: Licences | D25: 135 | E25: 0 | F25: 135 | G25: 137.7 | H25: 140.454 | I25: 135
A26: 322 | C26: Cleaning Supplies | D26: 10000 | E26: 0 | F26: 10000 | G26: 10200 | H26: 10404 | I26: 10000
A27: 325 | C27: Security Services | D27: 100 | F27: 100 | G27: 102 | H27: 104.04 | I27: 100
A28: 328 | C28: Prov. for Replace. (equip & floor sanding) | D28: 5300 | F28: 5300 | G28: 5406 | H28: 5514.12 | I28: 5300
A29: 329 | C29: Service Contracts | D29: 4300 | F29: 4300 | G29: 4386 | H29: 4473.72 | I29: 4300
A30: 330 | C30: Food Purchases | D30: 0 | F30: 0 | G30: 0 | H30: 0
A31: 345 | C31: Staff Development/Training | D31: 900 | E31: 0 | F31: 900 | G31: 918 | H31: 936.36 | I31: 900
A32: 354 | C32: Fax expenses | D32: 370 | E32: 0 | F32: 370 | G32: 377.4 | H32: 384.948 | I32: 370
A33: 358 | C33: Software | D33: 12000 | E33: 0 | F33: 12000 | G33: 12240 | H33: 12484.8 | I33: 12000
A34: 361 | C34: Fitness Centre replaments/repairs | D34: 5000 | F34: 5000 | G34: 5100 | H34: 5202 | I34: 5000
A35: 362 | C35: Membership equipment/supplies | D35: 6000 | F35: 6000 | G35: 6120 | H35: 6242.4 | I35: 6000
A36: 384/6/8 | C36: Bad debt/Credit Card Collection | D36: 10000 | F36: 10000 | G36: 10200 | H36: 10404 | I36: 10000
A37: 393 | C37: Equipment - furniture (under $1000) | D37: 8000 | E37: 0 | F37: 8000 | G37: 8160 | H37: 8323.2 | I37: 8000
A38: 399 | C38: Recoveries | D38: -13000 | E38: 0 | F38: -13000 | G38: -13260 | H38: -13525.2 | I38: -13000
A39: 461/661 | C39: Community Outreach | D39: -5600 | E39: 0 | F39: -5600 | G39: -5712 | H39: -5826.24 | I39: -5600
A40: 800 | C40: Utilities | D40: 88000 | F40: 88000 | G40: 88000 | H40: 88000 | I40: 88000
A41: *** | C41: Unallocated | D41: -21218 | E41: 0 | F41: -21218 | G41: -44029 | H41: -44711 | I41: -3570
C42: SUB-TOTAL: SUPPLIES & OTHER EXPS: | D42: 179067 | E42: 0 | F42: 179067 | G42: 158501.7 | H42: 160110.314 | I42: 196715
A43: 501 | C43: Merchandise Revenue | F43: 0 | G43: 0 | H43: 0
A44: 533 | C44: Miscellaneous Revenue | D44: -15100 | E44: 0 | F44: -15100 | G44: -15402 | H44: -15710.04 | I44: -15100
A45: 510 | C45: Student Fitness Fee | D45: -213000 | F45: -213000 | G45: -213000 | H45: -213000 | I45: -213000
A46: 511 | C46: User Fees/Memberships | D46: -223450 | F46: -223450 | G46: -223450 | H46: -223450 | I46: -223450
A47: 535/40/41/50 | C47: Rental Revenue | D47: -75500 | E47: 0 | F47: -75500 | G47: -75500 | H47: -75500 | I47: -75500
A48: 551/52 | C48: Therapist/Trainer Revenues | D48: -5950 | F48: -5950 | G48: -5950 | H48: -5950 | I48: -5950
A49: 570 | C49: Employment grant - provincial | D49: 0 | F49: 0 | G49: 0 | H49: 0 | I49: -10000
A50: 580 | C50: Vending | D50: -4500 | F50: -4500 | G50: -4500 | H50: -4500 | I50: -4500
C51: SUB-TOTAL: REVENUES: | D51: -537500 | E51: 0 | F51: -537500 | G51: -537802 | H51: -538110.04 | I51: -547500
C52: RENOVATIONS & EQUIPMENT
A53: 9xx | C53: Renovations & Equipment Purchases | D53: 0 | E53: 0 | F53: 0 | G53: 0 | H53: 0
C54: SUB-TOTAL: RENOV.& EQUIP: | D54: 0 | E54: 0 | F54: 0 | G54: 0 | H54: 0 | I54: 0
C55: ANNUAL BUDGET: | D55: 196154.7152 | E55: 0 | F55: 196154.7152 | G55: 200645.7219 | H55: 205827.7696 | I55: 196156

Sheet Admin & Finance
C1: BRANDON UNIVERSITY: ** ADMINISTRATION & FINANCE **
C2: REFERENCE BUDGET
C3: APRIL 2018 TO MARCH 2019 | D3: 5204 | E3: 5205 | F3: 5206 | G3: 5215 | H3: 61XX | I3: 5299 | J3: 2018/19 | K3: 2019/20 | L3: 2020/21 | M3: 2017/18
D4: VP (A&F) | E4: FIN & REG | F4: MAIL/PRINT | G4: HUMAN | H4: PHYSICAL | I4: CARRY | J4: REF'NCE | K4: PROJ. | L4: PROJ. | M4: APPROVED
C5: EXPENDITURE: | E5: SERVICES | F5: SERVICES | G5: RESOURCES | H5: PLANT | I5: FWD | J5: BUDGET | K5: BUDGET | L5: BUDGET | M5: BUDGET
A6: 003 | C6: F.T. Support | D6: 395586.085 | E6: 618362.51 | F6: 49338.42 | G6: 771930.85 | H6: 1177649.19 | I6: 0 | J6: 3012867.055 | K6: 3009838.714 | L6: 3033659.722 | M6: 2939801
A7: 004 | C7: P.T. Support | D7: 0 | E7: 0 | F7: 22679.7 | G7: 0 | H7: 0 | I7: 0 | J7: 22679.7 | K7: 86554.81218 | L7: 87820.97457 | M7: 22692
A8: 005 | C8: O.T./Student Assistants/Casual | D8: 0 | E8: 0 | F8: 4429.882917 | G8: 1660.83 | H8: 6643.32 | I8: 0 | J8: 12734.03292 | K8: 12839.08869 | L8: 13047.72388 | M8: 12697
A9: 018/019 | C9: Cleaners | D9: 0 | E9: 0 | F9: 0 | G9: 0 | H9: 694963.06 | I9: 0 | J9: 694963.06 | K9: 723293.2974 | L9: 725328.4115 | M9: 674347
A10: 099 | C10: Recoveries | D10: 0 | E10: -56000 | F10: 0 | G10: 0 | H10: 0 | I10: 0 | J10: -56000 | K10: -56000 | L10: -56000 | M10: -56000
A11: 100 | C11: Benefits | D11: 63293.7736 | E11: 123672.502 | F11: 15289.60058 | G11: 143114.4608 | H11: 425783.697 | I11: 0 | J11: 771154.034 | K11: 766505.1825 | L11: 771971.3663 | M11: 804792
A12: 106 | C12: Workers' Compensation | D12: 0 | E12: 0 | F12: 0 | G12: 55000 | H12: 0 | I12: 0 | J12: 55000 | K12: 55000 | L12: 55000 | M12: 55000
A13: 107 | C13: Employee Assistance Program | D13: 0 | E13: 0 | F13: 0 | G13: 12065 | H13: 0 | I13: 0 | J13: 12065 | K13: 12065 | L13: 12065 | M13: 12065
C14: SUB-TOTAL: SALARIES & BENEFITS: | D14: 458879.8586 | E14: 686035.012 | F14: 91737.6035 | G14: 983771.1408 | H14: 2305039.267 | I14: 0 | J14: 4525462.882 | K14: 4610096.095 | L14: 4642893.198 | M14: 4465394
A15: 201/02/06 | C15: Travel/Moving/Recruitment | D15: 8281.38 | E15: 6093.48 | F15: 59.16 | G15: 3746.46 | H15: 6360.72 | I15: 0 | J15: 24541.2 | K15: 25032.024 | L15: 25532.66448 | M15: 24060
A16: 213 | C16: Vehicle Expense | H16: 8160 | J16: 8160 | K16: 8568 | L16: 8996.4 | M16: 8000
A17: 204/05/10 | C17: Prof. Dev. Allowances | D17: 5000 | E17: 4500 | F17: 0.1599993015 | G17: 13250 | H17: 8000 | I17: 0 | J17: 30750.16 | K17: 30750.16 | L17: 30750.16 | M17: 32000
C18: SUB-TOTAL: TRAVEL & MOVING: | D18: 13281.38 | E18: 10593.48 | F18: 59.3199993 | G18: 16996.46 | H18: 22520.72 | I18: 0 | J18: 63451.36 | K18: 64350.184 | L18: 65279.22448 | M18: 64060
A19: 301 | C19: Advertising | D19: 0 | E19: 0 | F19: 0 | G19: 0 | H19: 603.84 | I19: 0 | J19: 603.84 | K19: 615.9168 | L19: 628.235136 | M19: 592
A20: 302 | C20: Special Allowances | D20: 0 | E20: 728.28 | F20: 0 | G20: 362.1 | H20: 0 | I20: 0 | J20: 1090.38 | K20: 1112.1876 | L20: 1134.431352 | M20: 1069
A21: 303 | C21: Computer Utilization (Payroll Service Provider) | D21: 0 | E21: 0 | F21: 0 | G21: 79175.46 | H21: 2040 | I21: 0 | J21: 81215.46 | K21: 82839.7692 | L21: 84496.56458 | M21: 79623
A22: 304 | C22: Consumables | D22: 1691.16 | E22: 5504.94 | F22: 37808.34 | G22: 5309.1 | H22: 93372.84 | I22: 0 | J22: 143686.38 | K22: 146560.1076 | L22: 149491.3098 | M22: 140869
A23: 305 | C23: Photocopying - Printing | D23: 1508.58 | E23: 9030.06 | F23: 7721.4 | G23: 4539 | H23: 1382.1 | I23: 0 | J23: 24181.14 | K23: 24664.7628 | L23: 25158.05806 | M23: 23707
A24: 307 | C24: Membership Subscriptions | D24: 4223.82 | E24: 4671.6 | F24: 0 | G24: 1350.48 | H24: 694.62 | I24: 0 | J24: 10940.52 | K24: 11159.3304 | L24: 11382.51701 | M24: 10726
A25: 308 | C25: Postage | D25: 119.34 | E25: 10795.68 | F25: 72662.76 | G25: 1569.78 | H25: 2133.84 | I25: 0 | J25: 87281.4 | K25: 89027.028 | L25: 90807.56856 | M25: 85570
A26: 309 | C26: Telephone - Long Dist. | D26: 1629.96 | E26: 283.56 | F26: 33.66 | G26: 316.2 | H26: 13218.18 | I26: 0 | J26: 15481.56 | K26: 15791.1912 | L26: 16107.01502 | M26: 15178
A27: 310 | C27: Telephone - Rental | D27: 808.86 | E27: 4643.04 | F27: 906.78 | G27: 3529.2 | H27: 5481.48 | I27: 0 | J27: 15369.36 | K27: 15676.7472 | L27: 15990.28214 | M27: 15068
A28: 311 | C28: Repairs & Maintenance | D28: 0 | E28: 2040 | F28: 603.84 | G28: 119.34 | H28: 161100.4 | I28: 0 | J28: 163863.58 | K28: 167140.8516 | L28: 170483.6686 | M28: 160581
A29: 312 | C29: Maintenance Materials | D29: 0 | E29: 0 | F29: 0 | G29: 0 | H29: 102000 | I29: 0 | J29: 102000 | K29: 104040 | L29: 106120.8 | M29: 100000
A30: 314 | C30: Consulting/Professional Fees | D30: 0 | E30: 0 | F30: 0 | G30: 0 | H30: 0 | I30: 0 | J30: 0 | K30: 0 | L30: 0
A31: 314 | C31: Uniforms | D31: 0 | E31: 0 | F31: 0 | G31: 0 | H31: 10070.46 | I31: 0 | J31: 10070.46 | K31: 10271.8692 | L31: 10477.30658 | M31: 9873
A32: 317 | C32: Special Functions* | D32: 926.16 | E32: 0 | F32: 0 | G32: 563.04 | H32: 0 | I32: 0 | J32: 1489.2 | K32: 1518.984 | L32: 1549.36368 | M32: 1460
A33: 321 | C33: Insurance | D33: 0 | E33: 269398.32 | F33: 0 | G33: 0 | H33: 22075 | I33: 0 | J33: 291473.32 | K33: 297302.7864 | L33: 303248.8421 | M33: 286051
A34: 322 | C34: Cleaning Supplies | D34: 0 | E34: 0 | F34: 0 | G34: 0 | H34: 71476.5 | I34: 0 | J34: 71476.5 | K34: 72906.03 | L34: 74364.1506 | M34: 70075
A35: 324 | C35: Grounds Upkeep | D35: 0 | E35: 0 | F35: 0 | G35: 0 | H35: 5418.24 | I35: 0 | J35: 5418.24 | K35: 5526.6048 | L35: 5637.136896 | M35: 5312
A36: 325/316 | C36: Security Services/Emergency Phones | D36: 0 | E36: 0 | F36: 0 | G36: 0 | H36: 77375.16 | I36: 0 | J36: 77375.16 | K36: 78922.6632 | L36: 80501.11646 | M36: 75858
A37: 328 | C37: Provision for Replacement | D37: 0 | E37: 0 | F37: 2165.46 | G37: 0 | H37: 0 | I37: 0 | J37: 2165.46 | K37: 2208.7692 | L37: 2252.944584 | M37: 2123
A38: 329 | C38: Service Contracts | D38: 0 | E38: 0 | F38: 2051.22 | G38: 0 | H38: 73715.4 | I38: 0 | J38: 75766.62 | K38: 77281.9524 | L38: 78827.59145 | M38: 74281
A39: 345 | C39: Staff Development | D39: 0 | E39: 2841.72 | F39: 0 | G39: 3018.18 | H39: 870.06 | I39: 0 | J39: 6729.96 | K39: 6864.5592 | L39: 7001.850384 | M39: 6598
A40: 346 | C40: Asbestos Management | D40: 0 | E40: 0 | F40: 0 | G40: 0 | H40: 11468.88 | I40: 0 | J40: 11468.88 | K40: 11698.2576 | L40: 11932.22275 | M40: 11244
A41: 354 | C41: Fax Expenses | D41: 0 | E41: 1388.22 | F41: 33.66 | G41: 603.84 | H41: 119.34 | I41: 0 | J41: 2145.06 | K41: 2187.9612 | L41: 2231.720424 | M41: 2103
A42: 357/358 | C42: Software/licensing/support | D42: 0 | E42: 1060.8 | F42: 0 | G42: 17314.5 | H42: 0 | I42: 0 | J42: 18375.3 | K42: 18742.806 | L42: 19117.66212 | M42: 18015
C43: Utilities (net of internal recoveries) | D43: 0 | E43: 0 | F43: 0 | G43: 0 | H43: 729662.16 | I43: 0 | J43: 729662.16 | K43: 756459.5584 | L43: 779153.3452 | M43: 703244
A44: 378 | C44: Special Allocations | D44: 0 | E44: 0 | F44: 0 | G44: 21648.48 | H44: 0 | I44: 0 | J44: 21648.48 | K44: 22081.4496 | L44: 22523.07859 | M44: 21224
A45: 382/4/6/8 | C45: Serv chg/Bad debt/Collection | D45: 0 | E45: 26080.38 | F45: 0 | G45: 0 | H45: 0 | I45: 0 | J45: 26080.38 | K45: 26601.9876 | L45: 27134.02735 | M45: 25569
A46: 383 | C46: Legal and Audit | D46: 0 | E46: 96900 | F46: 0 | G46: 0 | H46: 0 | I46: 0 | J46: 96900 | K46: 98838 | L46: 100814.76 | M46: 95000
A47: 393/394 | C47: Equipment - furniture (under $1000) | D47: 0 | E47: 2414.34 | F47: 0 | G47: 0 | H47: 4266.66 | I47: 0 | J47: 6681 | K47: 11166.6132 | L47: 15828.97853 | M47: 6550
A48: 397 | C48: Internal Mat/Labour Recoveries | D48: 0 | E48: 0 | F48: -70000 | G48: 0 | H48: -310545.98 | I48: 0 | J48: -380545.98 | K48: -380545.98 | L48: -380545.98 | M48: -374849
A49: 810 | C49: Internal Cleaning Supplies Recoveries | D49: 0 | E49: 0 | F49: 0 | G49: 0 | H49: -17000 | I49: 0 | J49: -17000 | K49: -17000 | L49: -17000 | M49: -17000
A50: 399/500 | C50: Recoveries - CMB/Postage &Print Shop | D50: 0 | E50: -35100 | F50: -86830 | G50: 0 | H50: 0 | I50: 0 | J50: -121930 | K50: -121930 | L50: -121930 | M50: -121930
A51: 799 | C51: Interfund Transfer/Workforce | D51: 0 | E51: 0 | F51: 0 | G51: 0 | H51: 0 | I51: 0 | J51: 0
A52: *** | C52: Unallocated | D52: 0 | E52: 0 | F52: 0 | G52: 0 | H52: 0 | I52: 0 | J52: 0 | K52: 0 | L52: 0
C53: SUB-TOTAL: SUPPL & OTHER: | D53: 10907.88 | E53: 402680.94 | F53: -32842.88 | G53: 139418.7 | H53: 1060999.18 | I53: 0 | J53: 1581163.82 | K53: 1639732.764 | L53: 1694920.568 | M53: 1533784
A54: 503 | C54: BUF Donations | D54: 0 | E54: -5200 | F54: 0 | G54: 0 | H54: 0 | I54: 0 | J54: -5200 | K54: -5304 | L54: -5410.08 | M54: -5200
A55: 5xx | C55: Revenues/External Recoveries | D55: 0 | E55: -31100 | F55: 0 | G55: 0 | H55: -49602.6 | I55: 0 | J55: -80702.6 | K55: -82316.652 | L55: -83962.98504 | M55: -84130
C56: Utility Recoveries (External) | F56: 0 | G56: 0 | H56: -87246.64 | J56: -87246.64 | K56: -90736.5056 | L56: -93458.60077 | M56: -83891
C57: SUB-TOTAL: REVENUES | D57: 0 | E57: -36300 | F57: 0 | G57: 0 | H57: -136849.24 | I57: 0 | J57: -173149.24 | K57: -178357.1576 | L57: -182831.6658 | M57: -173221
A58: 9xx | C58: Renovations & Equipment Purchases | D58: 0 | E58: 0 | F58: 0 | G58: 0 | H58: 0 | I58: 0 | J58: 0 | K58: 0 | L58: 0
C59: SUB-TOTAL: EQUIPMENT | D59: 0 | E59: 0 | F59: 0 | G59: 0 | H59: 0 | I59: 0 | J59: 0 | K59: 0 | L59: 0 | M59: 0
C60: ANNUAL BUDGET: | D60: 483069.1186 | E60: 1063009.432 | F60: 58954.0435 | G60: 1140186.301 | H60: 3251709.927 | I60: 0 | J60: 5996928.822 | K60: 6135821.886 | L60: 6220261.325 | M60: 5890017

Sheet A&F(PhysicalPlant)
C1: BRANDON UNIVERSITY: **PHYSICAL PLANT**
C2: REFERENCE BUDGET
C3: APRIL 2018 TO MARCH 2019 | D3: 6100 | E3: 6102 | F3: 6107 | G3: 6109 | H3: 2018/19 | I3: 2019/20 | J3: 2020/21 | K3: 2017/18
D4: PLANT | E4: UTILITIES | F4: BLDGS& | G4: RECOV | H4: REF'NCE | I4: PROJ. | J4: PROJ. | K4: APPROVED
C5: EXPENDITURE: | D5: MAIN | F5: GRNDS | H5: BUDGET | I5: BUDGET | J5: BUDGET | K5: BUDGET
A6: 003 | C6: F.T. Support | D6: 1177649.19 | E6: 0 | F6: 0 | G6: 0 | H6: 1177649.19 | I6: 1199379.463 | J6: 1202519.597 | K6: 1111013
A7: 004 | C7: P.T. Support | D7: 0 | E7: 0 | F7: 0 | G7: 0 | H7: 0 | I7: 0 | J7: 0
A8: 005 | C8: O.T./Student Assistants/Casual | D8: 3321.66 | E8: 0 | F8: 3321.66 | G8: 0 | H8: 6643.32 | I8: 6698.12739 | J8: 6806.97196 | K8: 6624
A9: 018/019 | C9: Cleaners/BSWs | D9: 0 | E9: 0 | F9: 1062723.06 | G9: -367760 | H9: 694963.06 | I9: 723293.2974 | J9: 725328.4115 | K9: 674347
A10: 040 | C10: Overtime | D10: 0 | E10: 0 | F10: 0 | G10: 0 | H10: 0 | I10: 0 | J10: 0 | K10: 0
A11: 041/042 | C11: Night/Weekend Premiums | D11: 0 | E11: 0 | F11: 0 | G11: 0 | H11: 0 | I11: 0 | J11: 0 | K11: 0
A12: 044 | C12: Callbacks | D12: 0 | E12: 0 | F12: 0 | G12: 0 | H12: 0 | I12: 0 | J12: 0 | K12: 0
A13: 099 | C13: Recoveries | D13: 0 | E13: 0 | F13: 0 | G13: 0 | H13: 0 | I13: 0 | J13: 0
A14: 100 | C14: Benefits | D14: 212574.753 | E14: 0 | F14: 213208.944 | G14: 0 | H14: 425783.697 | I14: 385874.1775 | J14: 386930.9962 | K14: 454397
C15: SUB-TOTAL: SALARIES & BENEFITS: | D15: 1393545.603 | E15: 0 | F15: 1279253.664 | G15: -367760 | H15: 2305039.267 | I15: 2315245.065 | J15: 2321585.977 | K15: 2246381
A16: 201/02/06 | C16: Travel/Moving/Recruitment | D16: 6360.72 | E16: 0 | F16: 0 | G16: 0 | H16: 6360.72 | I16: 6487.9344 | J16: 6617.693088 | K16: 6236
A17: 213 | C17: Vehicle Expense | D17: 8160 | H17: 8160 | I17: 8568 | J17: 8996.4 | K17: 8000
A18: 204/05/10 | C18: Prof. Dev. Allowances | D18: 8000 | E18: 0 | F18: 0 | G18: 0 | H18: 8000 | I18: 8000 | J18: 8000 | K18: 8000
C19: SUB-TOTAL: TRAVEL & MOVING: | D19: 22520.72 | E19: 0 | F19: 0 | G19: 0 | H19: 22520.72 | I19: 23055.9344 | J19: 23614.09309 | K19: 22236
A20: 301 | C20: Advertising | D20: 603.84 | E20: 0 | F20: 0 | G20: 0 | H20: 603.84 | I20: 615.9168 | J20: 628.235136 | K20: 592
A21: 303 | C21: Computer Utilization | D21: 2040 | H21: 2040 | I21: 2080.8 | J21: 2122.416 | K21: 2000
A22: 304/306 | C22: Consumables/Chemicals | D22: 73767.42 | E22: 13572.12 | F22: 6033.3 | G22: 0 | H22: 93372.84 | I22: 95240.2968 | J22: 97145.10274 | K22: 91542
A23: 305 | C23: Photocopying - Printing | D23: 1382.1 | E23: 0 | F23: 0 | G23: 0 | H23: 1382.1 | I23: 1409.742 | J23: 1437.93684 | K23: 1355
A24: 307 | C24: Membership Subscriptions | D24: 694.62 | E24: 0 | F24: 0 | G24: 0 | H24: 694.62 | I24: 708.5124 | J24: 722.682648 | K24: 681
A25: 308 | C25: Postage | D25: 2133.84 | E25: 0 | F25: 0 | G25: 0 | H25: 2133.84 | I25: 2176.5168 | J25: 2220.047136 | K25: 2092
A26: 309 | C26: Telephone - Long Dist. | D26: 3018.18 | E26: 0 | F26: 0 | G26: 0 | H26: 3018.18 | I26: 3078.5436 | J26: 3140.114472 | K26: 2959
A27: 310 | C27: Telephone - Rental | D27: 5481.48 | E27: 0 | F27: 0 | G27: 0 | H27: 5481.48 | I27: 5591.1096 | J27: 5702.931792 | K27: 5374
A28: 311 | C28: Repairs & Maintenance | D28: 141054.34 | E28: 15218.4 | F28: 4827.66 | G28: 0 | H28: 161100.4 | I28: 164322.408 | J28: 167608.8562 | K28: 157872
A29: 312 | C29: Materials - Recoverable | D29: 0 | E29: 0 | F29: 0 | G29: 102000 | H29: 102000 | I29: 104040 | J29: 106120.8 | K29: 100000
A30: 314 | C30: Uniforms | D30: 1623.84 | E30: 0 | F30: 8446.62 | G30: 0 | H30: 10070.46 | I30: 10271.8692 | J30: 10477.30658 | K30: 9873
A31: 316 | C31: Emergency Phones | D31: 10200 | H31: 10200 | I31: 10404 | J31: 10612.08 | K31: 10000
A32: 321 | C32: Insurance | D32: 22075 | E32: 0 | F32: 0 | G32: 0 | H32: 22075 | I32: 22516.5 | J32: 22966.83 | K32: 21935
A33: 322 | C33: Cleaning Supplies | D33: 0 | E33: 0 | F33: 71476.5 | G33: 0 | H33: 71476.5 | I33: 72906.03 | J33: 74364.1506 | K33: 70075
A34: 324 | C34: Grounds Upkeep | D34: 0 | E34: 0 | F34: 5418.24 | G34: 0 | H34: 5418.24 | I34: 5526.6048 | J34: 5637.136896 | K34: 5312
A35: 325 | C35: Security Services | D35: 77375.16 | E35: 0 | F35: 0 | G35: 0 | H35: 77375.16 | I35: 78922.6632 | J35: 80501.11646 | K35: 75858
A36: 328 | C36: Provision for Replacement | D36: 0 | E36: 0 | F36: 0 | G36: 0 | H36: 0 | I36: 0 | J36: 0
A37: 329 | C37: Service Contracts | D37: 73715.4 | E37: 0 | F37: 0 | G37: 0 | H37: 73715.4 | I37: 75189.708 | J37: 76693.50216 | K37: 72270
A38: 345 | C38: Staff Development | D38: 870.06 | E38: 0 | F38: 0 | G38: 0 | H38: 870.06 | I38: 887.4612 | J38: 905.210424 | K38: 853
A39: 346 | C39: Asbestos Mgmnt | D39: 11468.88 | E39: 0 | F39: 0 | G39: 0 | H39: 11468.88 | I39: 11698.2576 | J39: 11932.22275 | K39: 11244
A40: 354 | C40: Fax Expenses | D40: 119.34 | E40: 0 | F40: 0 | G40: 0 | H40: 119.34 | I40: 121.7268 | J40: 124.161336 | K40: 117
A41: 357/358 | C41: Software/licensing/support | D41: 0 | E41: 0 | F41: 0 | G41: 0 | H41: 0 | I41: 0 | J41: 0
A42: 393 | C42: Furniture <$1000 | D42: 0 | E42: 0 | F42: 0 | G42: 0 | H42: 0 | I42: 0 | J42: 0
A43: 394 | C43: Tools | D43: 4266.66 | E43: 0 | F43: 0 | G43: 0 | H43: 4266.66 | I43: 4351.9932 | J43: 4439.033064 | K43: 4183
A44: 500 | C44: Hydro | D44: 0 | E44: 635201.84 | F44: 0 | G44: 0 | H44: 635201.84 | I44: 660609.9136 | J44: 680428.211 | K44: 610771
A45: 501 | C45: Steam Plant Meter | D45: 0 | E45: 34450 | F45: 0 | G45: 0 | H45: 34450 | I45: 35828 | J45: 36902.84 | K45: 33125
A46: 600 | C46: Fuel | D46: 0 | E46: 305279.64 | F46: 0 | G46: 0 | H46: 305279.64 | I46: 314438.0292 | J46: 323871.1701 | K46: 296388
A47: 700 | C47: Water | D47: 0 | E47: 66370.84 | F47: 0 | G47: 0 | H47: 66370.84 | I47: 69689.382 | J47: 71780.06346 | K47: 62614
A48: 799 | C48: Interfund Transfer
A49: 810/811 | C49: Internal - Ancillary Utilities | D49: 0 | E49: -311640.16 | F49: 0 | G49: 0 | H49: -311640.16 | I49: -324105.7664 | J49: -333828.9394 | K49: -299654
A50: 808 | C50: Project Management | G50: -20000 | H50: -20000 | I50: -20800 | J50: -21424 | K50: -20000
A51: 801/02/03/05/06 | C51: Internal - Material/Labour Recov. | D51: 1020 | E51: 0 | F51: 0 | G51: -291565.98 | H51: -290545.98 | I51: -290545.98 | J51: -290545.98 | K51: -284849
A52: 810 | C52: Internal - Cleaning Supplies Recoveries | D52: 0 | E52: 0 | F52: 0 | G52: -17000 | H52: -17000 | I52: -17000 | J52: -17000 | K52: -17000
D53: 432910.16 | E53: 758452.68 | F53: 96202.32 | G53: -226565.98 | H53: 1060999.18 | I53: 1100174.238 | J53: 1135685.238 | K53: 1027582
A54: 503 | C54: BUF Donations | D54: 0 | E54: 0 | F54: 0 | G54: 0 | H54: 0 | I54: 0 | J54: 0
A55: 5xx | C55: Revenues | H55: 0 | I55: 0 | J55: 0
A56: 851/52/53 | C56: External - Materials & Labour/Cleaning Recov. | D56: 0 | E56: 0 | F56: 0 | G56: -49602.6 | H56: -49602.6 | I56: -49602.6 | J56: -49602.6 | K56: -48630
A57: 831 | C57: Rent | H57: 0 | I57: 0 | J57: 0
A58: 800 | C58: External - Utility Recoveries | D58: 0 | E58: -87246.64 | F58: 0 | G58: 0 | H58: -87246.64 | I58: -90736.5056 | J58: -93458.60077 | K58: -83891
C59: SUB-TOTAL: REVENUES: | D59: 0 | E59: -87246.64 | F59: 0 | G59: -49602.6 | H59: -136849.24 | I59: -140339.1056 | J59: -143061.2008 | K59: -132521
A60: 9xx | C60: Renovations & Equipment Purchases | D60: 0 | E60: 0 | F60: 0 | G60: 0 | H60: 0 | I60: 0 | J60: 0 | K60: 0
C61: SUB-TOTAL: RENOV & EQUIP: | D61: 0 | E61: 0 | F61: 0 | G61: 0 | H61: 0 | I61: 0 | J61: 0 | K61: 0
C62: ANNUAL BUDGET: | D62: 1848976.483 | E62: 671206.04 | F62: 1375455.984 | G62: -643928.58 | H62: 3251709.927 | I62: 3298136.132 | J62: 3337824.108 | K62: 3163678

Sheet MiscInit
C1: BRANDON UNIVERSITY: **OTHER INITIATIVES **
C2: REFERENCE BUDGET
C3: APRIL 2018 TO MARCH 2019 | D3: Approved | E3: 2017/18 | F3: Adj. Baseline | G3: 2018/19 | H3: 2018/19 | I3: 2018/19 | J3: 2019/20 | K3: 2020/21 | L3: 2017/18
D4: Budget | E4: Adjustments | F4: Budget | G4: Salary | H4: Other | I4: Budget | J4: Budget | K4: Budget | L4: APPROVED
D5: 2017/18 | F5: 2017/18 | G5: Increments | H5: Adjustments | I5: Allocation | J5: Allocation | K5: Allocation | L5: BUDGET
A6: 5202 | B6: Recongnize | C6: Other
A7: 320/321 | B7: 029 | C7: - Tuition Waivers - BUSU/Quill | D7: 35464 | F7: 35464 | I7: 35464 | J7: 35464 | K7: 35464 | L7: 35464
A8: 322/323/324 | B8: 100 | C8: - Tuition Waivers - Staff | D8: 17836 | F8: 17836 | I8: 17836 | J8: 17836 | K8: 17836 | L8: 17836
A9: 325 | B9: S | C9: - Tuition Waivers - Dependants | D9: 100000 | F9: 100000 | I9: 100000 | J9: 100000 | K9: 100000 | L9: 100000
A10: 334 | B10: S | C10: - BOG Scholarships | D10: 230000 | F10: 230000 | I10: 230000 | J10: 230000 | K10: 230000 | L10: 230000
A11: 333 | B11: S | C11: - President's Scholarship Awards | D11: 70000 | F11: 70000 | I11: 70000 | J11: 70000 | K11: 70000 | L11: 70000
A12: 329 | B12: S | C12: - Int'll Student Scholarships | D12: 80000 | E12: 5052.7 | F12: 85052.7 | H12: 37674.52315 | I12: 122727.2231 | J12: 122727.2231 | K12: 122727.2231 | L12: 80000
A13: 328 | B13: S | C13: - Scholarship/Exchange Students/Professors | D13: 15118 | F13: 15118 | I13: 15118 | J13: 15118 | K13: 15118 | L13: 15118
A14: 327 | B14: S | C14: - WUSC | D14: 30000 | F14: 30000 | I14: 30000 | J14: 30000 | K14: 30000 | L14: 30000
A15: 326 | B15: S | C15: - Youth In Care Study Awards | D15: 10000 | F15: 10000 | I15: 10000 | J15: 10000 | K15: 10000 | L15: 10000
A16: 337 | B16: S | C16: - Research buyouts and USRA | D16: 9000 | F16: 9000 | I16: 9000 | J16: 9000 | K16: 9000 | L16: 9000
A17: 336 | B17: 001 | C17: - CRC Funding* | D17: 106739 | E17: -57156 | F17: 49583 | H17: 26312 | I17: 75895 | J17: 108061 | K17: 108061 | L17: 106739
A18: 339 | B18: 372 | C18: - Research Funding* | D18: 105000 | F18: 105000 | I18: 105000 | J18: 105000 | K18: 105000 | L18: 105000
A19: 341 | B19: 304 | C19: - Indirect Costs/Research Support | D19: 0 | F19: 0 | I19: 0 | J19: 0 | K19: 0
A20: 340 | B20: 005 | C20: - BUSU workstudy program | D20: 15000 | F20: 15000 | I20: 15000 | J20: 15000 | K20: 15000 | L20: 15000
A21: 338 | B21: 001 | C21: - Enhanced Business Admin. Prgm (2840) | D21: 106146 | E21: -6066 | F21: 100080 | H21: 6785 | I21: 106865 | J21: 112428 | K21: 112428 | L21: 106146
A22: 301 | B22: 304 | C22: - Campus Beautification | D22: 5000 | F22: 5000 | I22: 5000 | J22: 5000 | K22: 5000 | L22: 5000
A23: 310 | B23: 304 | C23: - BU Early Learning Centre Subsidy | D23: 4895 | F23: 4895 | I23: 4895 | J23: 4895 | K23: 4895 | L23: 4895
A24: 345 | B24: 311? | C24: - AMA Implementation | D24: 50000 | F24: 50000 | I24: 50000 | J24: 50000 | K24: 50000 | L24: 50000
A25: 346 | B25: 378 | C25: - PENT funding adjustment (multi-year) | D25: 45000 | F25: 45000 | H25: 45000 | I25: 90000 | J25: 135000 | K25: 180000 | L25: 45000
A26: 358 | B26: 305 | C26: - Access Copyright/CANCOPY Per Capita Fees | D26: 45000 | F26: 45000 | I26: 45000 | J26: 45000 | K26: 45000 | L26: 45000
A27: 315 | C27: - General Campus Property Taxes | D27: 114710 | F27: 114710 | I27: 114710 | J27: 114710 | K27: 114710 | L27: 114710
A28: 350 | B28: 307 | C28: - Institutional Memberships | D28: 110128 | F28: 110128 | H28: -53000 | I28: 57128 | J28: 57128 | K28: 57128 | L28: 110128
A29: 342 | B29: 100 | C29: - Pension liability payment | D29: 678000 | E29: -14000 | F29: 664000 | I29: 664000 | J29: 664000 | K29: 664000 | L29: 678000
C30: University bursary fund - special purpose acct. | D30: 0 | F30: 0 | I30: 0
C31: BUFA members | D31: 0 | F31: 0 | I31: 0
C32: - Carryforward contributions | D32: -470014 | F32: -470014 | H32: 470014 | I32: 0 | L32: -470014
A33: 360 | B33: 799 | C33: - Ancillary contribution | D33: -200000 | F33: -200000 | H33: 200000 | I33: 0 | J33: 0 | K33: 0 | L33: -200000
A34: 361 | B34: 799 | C34: - Conservatory contribution | D34: -20000 | F34: -20000 | H34: 20000 | I34: 0 | L34: -20000
C35: - Unappropriated surplus | D35: -969402 | F35: -969402 | H35: 969402 | I35: 0 | J35: 0 | K35: 0 | L35: -969402
A36: 4209xxx | C36: - Junior Kindergarten (4209) | D36: 23832 | F36: 23832 | H36: 2481.850833 | I36: 26313.85083 | J36: 27902.61302 | K36: 27984.86704 | L36: 23832
A37: 4501xxx | C37: - Dauphin (4501) | D37: 43610 | F37: 43610 | H37: 2677.91 | I37: 46287.91 | J37: 48485.8682 | K37: 50727.78556 | L37: 43610
A38: 359 | C38: - Contingency fund | D38: 514593 | F38: 514592.608 | H38: 419842.0218 | I38: 934434.6298 | J38: 898735.3371 | K38: 908222.0585 | L38: 514593
A39: 362 | B39: 321? | C39: - "I Am Well" Student Assistance Insurance | D39: 20000 | F39: 20000 | I39: 20000 | J39: 20000 | K39: 20000 | L39: 20000
D40: 925655 | E40: -72169.3 | F40: 853485.308 | G40: 0 | H40: 2147189.306 | I40: 3000674.614 | J40: 3051491.041 | K40: 3108301.934 | L40: 925655

Sheet BJ Hales (hidden)
C1: BRANDON UNIVERSITY BJ HALES MUESEM
C2: REFERENCE BUDGET
C3: =#REF! -> 
D4: =#REF! ->  | E4: 2008-09
A5: 4131 | D5: REF'NCE | E5: APPROVED | F5: 2008/09 | G5: 2007-08
C6: EXPENDITURE: | D6: BUDGET | E6: BUDGET | F6: ACTUAL | G6: ACTUAL
A7: 004 | C7: P.T./Student Assistants/Casual | D7: ='Position Details'!#REF! ->  | E7: 14958 | F7: 15481 | G7: 14842
A8: 100 | C8: Benefits | D8: =(SUM(D7:D7)*0.145)*((1+#REF!)) ->  | E8: 2169 | F8: 3042 | G8: 2909
A9: 099/199 | C9: Recoveries | D9: 0 | E9: 0 | F9: 0 | G9: 0
C10: SUB-TOTAL: SALARIES & BENEFITS: | D10: =SUM(D7:D9) ->  | E10: =SUM(E7:E9) -> 17127 | F10: =SUM(F7:F9) -> 18523 | G10: =SUM(G7:G9) -> 17751
A11: 201/02/06 | C11: Travel/Moving/Recruitment | D11: 0 | E11: 0 | F11: 0 | G11: 0
A12: 204/05/10 | C12: Prof. Dev. Allowances | D12: 0 | E12: 0 | F12: 0 | G12: 0
A13: 299 | C13: Recoveries | D13: 0 | E13: 0 | F13: 0 | G13: 0
C14: SUB-TOTAL: TRAVEL & MOVING: | D14: =SUM(D11:D13) -> 0 | E14: =SUM(E11:E13) -> 0 | F14: =SUM(F11:F13) -> 0 | G14: =SUM(G11:G13) -> 0
A15: 301 | C15: Advertising | D15: =0*((1+#REF!)) ->  | E15: 0 | F15: 0 | G15: 0
A16: 302 | C16: Special Allowances | D16: =0*((1+#REF!)) ->  | E16: 0 | F16: 0 | G16: 0
A17: 304 | C17: Consumables | D17: 0 | E17: 155 | F17: 0 | G17: 60
A18: 305 | C18: Photocopying - Printing | D18: 0 | E18: 0 | F18: 0 | G18: 51
A19: 306 | C19: Films - Film Rental | D19: =0*((1+#REF!)) ->  | E19: 0 | F19: 0 | G19: 0
A20: 307 | C20: Membership Subscriptions | D20: 0 | E20: 157 | F20: 102 | G20: 152
A21: 308 | C21: Postage | D21: =0*((1+#REF!)) ->  | E21: 0 | F21: 0 | G21: 0
A22: 309 | C22: Telephone - Long Dist. | D22: =0*((1+#REF!)) ->  | E22: 0 | F22: 2 | G22: 16
A23: 310 | C23: Telephone - Rental | D23: 0 | E23: 312 | F23: 306 | G23: 303
A24: 311 | C24: Repairs & Maintenance | D24: =0*((1+#REF!)) ->  | E24: 0 | F24: 0 | G24: 0
A25: 312 | C25: Other Rentals | D25: =0*((1+#REF!)) ->  | E25: 0 | F25: 0 | G25: 0
A26: 315 | C26: AV Supplies | D26: =0*((1+#REF!)) ->  | E26: 0 | F26: 0 | G26: 0
A27: 330 | C27: Food Purchases | D27: =0*((1+#REF!)) ->  | E27: 0 | F27: 0 | G27: 0
A28: 333 | C28: Sundry | D28: =0*((1+#REF!)) ->  | E28: 0 | F28: 0 | G28: 0
A29: 335 | C29: Program Expenses | D29: =0*((1+#REF!)) ->  | E29: 0 | F29: 0 | G29: 0
A30: 354 | C30: Fax Expenses | D30: =0*((1+#REF!)) ->  | E30: 0 | F30: 0 | G30: 0
A31: 357/358 | C31: Software/Software Licensing | D31: =0*((1+#REF!)) ->  | E31: 0 | F31: 0 | G31: 0
A32: 382/386 | C32: Service Charges/Collection Bureau | D32: =0*((1+#REF!)) ->  | E32: 0 | F32: 0 | G32: 0
A33: 392 | C33: Activity Supplies | D33: =0*((1+#REF!)) ->  | E33: 0 | F33: 0 | G33: 0
A34: 393 | C34: Equipment - furniture(under $1000) | D34: =0*((1+#REF!)) ->  | E34: 0 | F34: 0 | G34: 0
A35: 399 | C35: Recoveries | D35: 0 | E35: 0 | F35: 0 | G35: 0
A36: *** | C36: Unallocated | D36: 0 | E36: 0 | F36: 0 | G36: 0
C37: SUB-TOTAL: SUPPLIES & OTHER EXPS: | D37: =SUM(D15:D36) ->  | E37: =SUM(E15:E36) -> 624 | F37: =SUM(F15:F36) -> 410 | G37: =SUM(G15:G36) -> 582
A38: 502 | C38: Donations | D38: 0 | E38: -250 | F38: -111 | G38: =-185-100 -> -285
A39: 586 | C39: Grant - Prov MB | D39: 0 | E39: -3150 | F39: -3150 | G39: -3150
C40: SUB-TOTAL: REVENUES: | D40: =SUM(D38:D39) -> 0 | E40: =SUM(E38:E39) -> -3400 | F40: =SUM(F38:F39) -> -3261 | G40: =SUM(G38:G39) -> -3435
A41: 9xx | C41: Equipment Purchases | D41: 0 | E41: 0 | F41: =E41 -> 0 | G41: 0
C42: SUB-TOTAL: EQUIPMENT | D42: =SUM(D41) -> 0 | E42: =SUM(E41) -> 0 | F42: =SUM(F41) -> 0 | G42: =SUM(G41) -> 0
C43: ANNUAL BUDGET: | D43: =D10+D14+D37+D40+D42 ->  | E43: =E10+E14+E37+E40+E42 -> 14351 | F43: =F10+F14+F37+F40+F42 -> 15672 | G43: =G10+G14+G37+G40+G42 -> 14898

Sheet Dauphin
C1: BRANDON UNIVERSITY DAUPHIN PROJECT
C2: REFERENCE BUDGET
C3: APRIL 2018 TO MARCH 2019
D4: 2018/19 | E4: 2019/20 | F4: 2020/21 | G4: 2017/18
A5: 4501 | D5: REF'NCE | E5: PROJ. | F5: PROJ. | G5: APPROVED
C6: EXPENDITURE: | D6: BUDGET | E6: BUDGET | F6: BUDGET | G6: BUDGET
A7: 001 | C7: F.T. Support | D7: 33513.4 | E7: 34183.668 | F7: 34867.34136 | G7: 32695
A8: 002 | C8: Acad./I.A. (10 sessionals) | D8: 62050 | E8: 63291 | F8: 64556.82 | G8: 60540
A9: 005 | C9: P.T./Student Assistants/Casual
A10: 100 | C10: Benefits | D10: 14334.51 | E10: 14621.2002 | F10: 14913.6242 | G10: 13985
A11: 099/199 | C11: Recoveries
C12: SUB-TOTAL: SALARIES & BENEFITS: | D12: 109897.91 | E12: 112095.8682 | F12: 114337.7856 | G12: 107220
A13: 201/02/06 | C13: Travel/Moving/Recruitment | D13: 6000 | E13: 6000 | F13: 6000 | G13: 6000
A14: 204/05/10 | C14: Prof. Dev. Allowances | D14: 1000 | E14: 1000 | F14: 1000 | G14: 1000
A15: 299 | C15: Recoveries
C16: SUB-TOTAL: TRAVEL & MOVING: | D16: 7000 | E16: 7000 | F16: 7000 | G16: 7000
A17: 301 | C17: Advertising | D17: 2000 | E17: 2000 | F17: 2000 | G17: 2000
A18: 302 | C18: Special Allowances
A19: 304 | C19: Consumables | D19: 2150 | E19: 2150 | F19: 2150 | G19: 2150
A20: 305 | C20: Photocopying - Printing | D20: 300 | E20: 300 | F20: 300 | G20: 300
A21: 307 | C21: Membership Subscriptions
A22: 308 | C22: Postage | D22: 300 | E22: 300 | F22: 300 | G22: 300
A23: 309 | C23: Telephone - Long Dist. | D23: 250 | E23: 250 | F23: 250 | G23: 250
A24: 310 | C24: Telephone - Rental
A25: 311 | C25: Repairs & Maintenance
A26: 312 | C26: Facility Rental (ACC) | D26: 8000 | E26: 8000 | F26: 8000 | G26: 8000
A27: 3?? | C27: IT Support (ACC) | D27: 1000 | E27: 1000 | F27: 1000 | G27: 1000
A28: 354 | C28: Fax Expenses
A29: 357/358 | C29: Software/Software Licensing
A30: 382/386 | C30: Service Charges/Collection Bureau
A31: 393 | C31: Equipment - furniture(under $1000)
A32: 399 | C32: Recoveries
A33: *** | C33: Unallocated
C34: SUB-TOTAL: SUPPLIES & OTHER EXPS: | D34: 14000 | E34: 14000 | F34: 14000 | G34: 14000
A35: 507 | C35: Tuition Revenue | D35: -45000 | E35: -45000 | F35: -45000 | G35: -45000
A36: 509 | C36: Materials Fees
C37: City of Dauphin share of shortfall | D37: -43610 | E37: -43610 | F37: -43610 | G37: -43610
C38: SUB-TOTAL: REVENUES: | D38: -88610 | E38: -88610 | F38: -88610 | G38: -88610
A39: 9xx | C39: Equipment Purchases | D39: 4000 | E39: 4000 | F39: 4000 | G39: 4000
C40: SUB-TOTAL: EQUIPMENT | D40: 4000 | E40: 4000 | F40: 4000 | G40: 4000
C41: ANNUAL BUDGET: | D41: 46287.91 | E41: 48485.8682 | F41: 50727.78556 | G41: 43610

Sheet Jr. Kindergarten
C1: BRANDON UNIVERSITY JUNIOR KINDERGARTEN
C2: REFERENCE BUDGET
C3: APRIL 2018 TO MARCH 2019
D4: 2018/19 | E4: 2019/20 | F4: 2020/21 | G4: 2017/18
A5: 4209 | D5: REF'NCE | E5: PROJ. | F5: PROJ. | G5: APPROVED
C6: EXPENDITURE: | D6: BUDGET | E6: BUDGET | F6: BUDGET | G6: BUDGET
A7: 003 | C7: F.T. Support | D7: 50950.03333 | E7: 53268.25985 | F7: 53268.25985 | G7: 48989
A8: 005 | C8: P.T./Student Assistants/Casual | D8: 0 | E8: 0 | F8: 0
A9: 100 | C9: Benefits | D9: 11463.7575 | E9: 10653.65197 | F9: 10653.65197 | G9: 11022
A10: 099/199 | C10: Recoveries | D10: 0 | E10: 0 | F10: 0
C11: SUB-TOTAL: SALARIES & BENEFITS: | D11: 62413.79083 | E11: 63921.91182 | F11: 63921.91182 | G11: 60011
A12: 201/02/06 | C12: Travel/Moving/Recruitment | D12: 0 | E12: 0 | F12: 0
A13: 204/05/10 | C13: Prof. Dev. Allowances | D13: 0 | E13: 0 | F13: 0
A14: 299 | C14: Recoveries | D14: 0 | E14: 0 | F14: 0
C15: SUB-TOTAL: TRAVEL & MOVING: | D15: 0 | E15: 0 | F15: 0 | G15: 0
A16: 304 | C16: Consumables | D16: 3980.04 | E16: 4059.6408 | F16: 4140.833616 | G16: 3902
A17: 305 | C17: Photocopying - Printing | D17: 52.02 | E17: 53.0604 | F17: 54.121608 | G17: 51
A18: 308 | C18: Postage | D18: 0 | E18: 0 | F18: 0
A19: 309 | C19: Telephone - Long Dist. | D19: 0 | E19: 0 | F19: 0
A20: 310 | C20: Telephone - Rental | D20: 0 | E20: 0 | F20: 0
A21: 311 | C21: Repairs & Maintenance | D21: 0 | E21: 0 | F21: 0
A22: 382/386 | C22: Service Charges/Collection Bureau | D22: 0 | E22: 0 | F22: 0
A23: 393 | C23: Equipment - furniture(under $1000) | D23: 0 | E23: 0 | F23: 0
A24: 399 | C24: Recoveries | D24: 0 | E24: 0 | F24: 0
A25: *** | C25: Unallocated | D25: 0 | E25: 0 | F25: 0
C26: SUB-TOTAL: SUPPLIES & OTHER EXPS: | D26: 4032.06 | E26: 4112.7012 | F26: 4194.955224 | G26: 3953
A27: 5xx | C27: Revenues | D27: -40132 | E27: -40132 | F27: -40132 | G27: -40132
C28: SUB-TOTAL: REVENUES: | D28: -40132 | E28: -40132 | F28: -40132 | G28: -40132
A29: 9xx | C29: Equipment Purchases | D29: 0 | E29: 0 | F29: 0
C30: SUB-TOTAL: EQUIPMENT | D30: 0 | E30: 0 | F30: 0 | G30: 0
C31: ANNUAL BUDGET: | D31: 26313.85083 | E31: 27902.61302 | F31: 27984.86704 | G31: 23832
